{"text_format":"1","workbook":"xlsx","n_sheets":1,"sheets":["Main_Crew"],"not_rendered":{"charts":0,"images":1,"macros":1,"external_links":0,"defined_names":51,"comments":1,"pivot_tables":0},"unopened":[],"bounds":{"document_bytes":16777216,"sheet_cells":100000,"rows_first":2000,"rows_last":500,"rows_between":2000,"halvings":0,"cell_chars":16384,"cell_head_chars":4096},"cells_cut":0,"cells_raw":0,"read":"whole","date_system":"1900"}

{"sheet":"Main_Crew","index":0,"n_rows":1988,"n_cols":28,"rows_kept":1988,"cut":false,"hidden":false,"merged":[[4,17,4,19],[1986,3,1986,5]]}
[null,"Qté",{"$f":"IF(I1=\"x\",\"Electrical Material List\",\"Liste Matériel Electrique\")","v":"Liste Matériel Electrique"},{"$f":"IF(I1=\"x\",\"Weight\",\"Poids\")","v":"Poids"},null,null,null,null,null,"English",null,{"$f":"IF($I$1=\"x\",\"French\",\"Français\")","v":"Français"},{"$f":"IF($I$1=\"x\",\"English\",\"Anglais\")","v":"Anglais"},{"$f":"IF($I$1=\"x\",\"Power\",\"Puiss\")","v":"Puiss"},"Total puiss",{"$f":"IF($I$1=\"x\",\"Weigh Kg\",\"Poid Kg\")","v":"Poid Kg"},"total poid","Self","BE","PG","Kit Fly","FLY CASE VIDE","MONTE DE LAMPE","LENTILLE",null,"WWW",null,"Don à l'auteur"]
["x","Prod :",null,{"$f":"IF(I1=\"x\",(SUM(Q11:Q2332)*2.204),(SUM(Q11:Q2332)))","v":0},{"$f":"IF(I1=\"x\",\"pds.\",\"kg.\")","v":"kg."},null,null,null,null,null,null,null,null,null,null,null,{"$f":"IF(I1=\"x\",(SUM(Q5:Q2332)*2.204),(SUM(Q5:Q2332)))","v":0}]
["x",{"$f":"IF(I1=\"x\",\"Movie :\",\"Film :\")","v":"Film :"},null,{"$f":"IF(I1=\"x\",\"Power\",\"Puissance\")","v":"Puissance"}]
["x",{"$f":"IF(I1=\"x\",\"Gaffer :\",\"Chef :\")","v":"Chef :"},null,{"$f":"SUM(O11:O1985)","v":0},"KWS."]
["x",{"$f":"IF(I1=\"x\",\"From :\",\"Du :\")","v":"Du :"},null,null,null,null,null,null,null,null,null,null,null,null,null,null,null,"BALLAST"]
["x",{"$f":"IF(I1=\"x\",\"To :\",\"Au:\")","v":"Au:"},null,null,null,null,null,null,null,null,null,null,null,"Puiss","Total puiss","Poids","total poid","Self","ELEC","P-GEM",null,null,"MONTE DE LAMPE","LENTILLE"]
[]
[null,null,"LEDS"]
[{"$f":"IF(B9>0,\"x\",0)","v":0},{"$f":"IF(SUM(B10:B213)>0,\"Qté\",0)","v":0},{"$f":"IF($I$1=\"x\",M9,L9)","v":"PROJECTEUR A  LED"},"Louver de Tête",null,"Chim","Louver",null,null,null,null,"PROJECTEUR A  LED","LED FIXTURE"]
[0,{"$f":"IF(SUM(B11:B34)>0,\"Marq\",0)","v":0},{"$f":"IF($I$1=\"x\",M10,L10)","v":"ALADIN"},null,null,null,null,null,null,null,null,"ALADIN","ALADIN"]
[0,null,{"$f":"IF($I$1=\"x\",M11,L11)","v":"A-LITE"},null,null,null,null,null,null,null,null,"A-LITE","A-LITE",null,{"$f":"B11*N11","v":0},null,{"$f":"P11*B11","v":0}]
[0,null,"ALL-IN 1",null,null,null,null,null,null,null,null,"ALL-IN 1","ALL-IN 1",null,0,null,0]
[0,null,"ALL-IN 2",null,null,null,null,null,null,null,null,"ALL-IN 2","ALL-IN 2",null,0,null,0]
[0,null,"ALL-IN LINE",null,null,null,null,null,null,null,null,"ALL-IN LINE","ALL-IN LINE",null,0,null,0]
[0,null,"BI-FABRIC 2",null,null,null,null,null,null,null,null,"BI-FABRIC 2","BI-FABRIC 2",null,0,null,0]
[0,null,"BI-FABRIC 4",null,null,null,null,null,null,null,null,"BI-FABRIC 4","BI-FABRIC 4",null,0,null,0]
[0,null,"BI-FLEX 1",null,null,null,null,null,null,null,null,"BI-FLEX 1","BI-FLEX 1",null,0,null,0]
[0,null,"BI-FLEX 2",null,null,null,null,null,null,null,null,"BI-FLEX 2","BI-FLEX 2",null,0,null,0]
[0,null,"BI-FLEX 4",null,null,null,null,null,null,null,null,"BI-FLEX 4","BI-FLEX 4",null,0,null,0]
[{"$f":"IF(B20>0,\"x\",0)","v":0},null,"BI-FLEX M3",null,null,null,null,null,null,null,null,"BI-FLEX M3","BI-FLEX M3",null,0,null,0]
[0,null,"BI-FLEX M7",null,null,null,null,null,null,null,null,"BI-FLEX M7","BI-FLEX M7",null,0,null,0]
[0,null,"BI-FOLD",null,null,null,null,null,null,null,null,"BI-FOLD","BI-FOLD",null,0,null,0]
[0,null,"CAPE-LITE",null,null,null,null,null,null,null,null,"CAPE-LITE","CAPE-LITE",null,0,null,0]
[0,null,"DESK-LITE",null,null,null,null,null,null,null,null,"DESK-LITE","DESK-LITE",null,0,null,0]
[0,null,"EYE-LITE",null,null,null,null,null,null,null,null,"EYE-LITE","EYE-LITE",null,0,null,0]
[0,null,"FABRIC-LITE 200",null,null,null,null,null,null,null,null,"FABRIC-LITE 200","FABRIC-LITE 200",null,0,null,0]
[0,null,"FABRIC-LITE 350",null,null,null,null,null,null,null,null,"FABRIC-LITE 350","FABRIC-LITE 350",null,0,null,0]
[0,null,"FLEX-LITE 1",null,null,null,null,null,null,null,null,"FLEX-LITE 1","FLEX-LITE 1",null,0,null,0]
[0,null,"FOOT-LITE",null,null,null,null,null,null,null,null,"FOOT-LITE","FOOT-LITE",null,0,null,0]
[0,null,"GENIE-LITE",null,null,null,null,null,null,null,null,"GENIE-LITE","GENIE-LITE",null,0,null,0]
[0,null,"MOSAIC 2X4",null,null,null,null,null,null,null,null,"MOSAIC 2X4","MOSAIC 2X5",null,0,null,0]
[0,null,"MOSAIC 3X6",null,null,null,null,null,null,null,null,"MOSAIC 3X6","MOSAIC 3X7",null,0,null,0]
[0,null,"MOSAIC 4X4",null,null,null,null,null,null,null,null,"MOSAIC 4X4","MOSAIC 4X5",null,0,null,0]
[0,null,"WHIP-LITE",null,null,null,null,null,null,null,null,"WHIP-LITE","WHIP-LITE",null,0,null,0]
[0,{"$f":"IF(SUM(B36:B55)>0,\"Marq\",0)","v":0},{"$f":"IF($I$1=\"x\",M35,L35)","v":"ARRI"},null,null,null,null,null,null,null,null,"ARRI","ARRI"]
[0,null,"L5-C",null,null,null,null,null,null,null,null,"L5-C","L5-C",null,{"$f":"B36*N36","v":0},null,{"$f":"P36*B36","v":0}]
[0,null,"L5-TT",null,null,null,null,null,null,null,null,"L5-TT","L5-TT",null,0,null,0]
[0,null,"L5-DT",null,null,null,null,null,null,null,null,"L5-DT","L5-DT",null,0,null,0]
[0,null,"L7-C",null,null,null,null,null,null,null,null,"L7-C","L7-C",0.22,0,10.9,0]
[0,null,"L7-TT",null,null,null,null,null,null,null,null,"L7-TT","L7-TT",0.22,0,10.9,0]
[0,null,"L7-DT",null,null,null,null,null,null,null,null,"L7-DT","L7-DT",0.22,0,10.9,0]
[0,null,"L10-C",null,null,null,null,null,null,null,null,"L10-C","L10-C",null,0,null,0]
[0,null,"L10-TT",null,null,null,null,null,null,null,null,"L10-TT","L10-TT",null,0,null,0]
[0,null,"L10-DT",null,null,null,null,null,null,null,null,"L10-DT","L10-DT",null,0,null,0]
[0,null,"00:00:00",null,null,null,null,null,null,null,null,null,null,null,0,null,0]
[0,null,"SKYPANEL30-C",null,null,null,null,null,null,null,null,"SKYPANEL30-C","SKYPANEL30-C",null,0,null,0]
[0,null,"SKYPANEL30-RP",null,null,null,null,null,null,null,null,"SKYPANEL30-RP","SKYPANEL30-RP",null,0,null,0]
[0,null,"SKYPANEL60-C",null,null,null,null,null,null,null,null,"SKYPANEL60-C","SKYPANEL60-C",0.4,0,null,0]
[0,null,"SKYPANEL60-RP",null,null,null,null,null,null,null,null,"SKYPANEL60-RP","SKYPANEL60-RP",0.4,0,null,0]
[0,null,"S120-C",null,null,null,null,null,null,null,null,"S120-C","S120-C",null,0,null,0]
[{"$f":"IF(B51>0,\"x\",0)","v":0},null,{"$f":"IF($I$1=\"x\",M51,L51)","v":"SKYPANEL360"},null,null,null,null,null,null,null,null,"SKYPANEL360","SKYPANEL360",null,0,null,0]
[{"$f":"IF(B52>0,\"x\",0)","v":0},null,{"$f":"IF($I$1=\"x\",M52,L52)","v":"00:00:00"},null,null,null,null,null,null,null,null,null,null,null,0,null,0]
[{"$f":"IF(B53>0,\"x\",0)","v":0},null,{"$f":"IF($I$1=\"x\",M53,L53)","v":"ORBITER"},null,null,null,null,null,null,null,null,"ORBITER","ORBITER",null,0,null,0]
[{"$f":"IF(B54>0,\"x\",0)","v":0},null,{"$f":"IF($I$1=\"x\",M54,L54)","v":"SkyPanel Remote"},null,null,null,null,null,null,null,null,"SkyPanel Remote","SkyPanel Remote",null,0,null,0]
[{"$f":"IF(B55>0,\"x\",0)","v":0},null,{"$f":"IF($I$1=\"x\",M55,L55)","v":"00:00:00"},null,null,null,null,null,null,null,null,null,null,null,0,null,0]
[{"$f":"IF(B56>0,\"x\",0)","v":0},{"$f":"IF(SUM(B57:B65)>0,\"Marq\",0)","v":0},{"$f":"IF($I$1=\"x\",M56,L56)","v":"ASTERA"},null,null,null,null,null,null,null,null,"ASTERA","ASTERA"]
[0,null,"AX 1",null,null,null,null,null,null,null,null,"AX 1","AX 1",2.8000000000000001E-2,{"$f":"B57*N57","v":0},1,{"$f":"P57*B57","v":0}]
[0,null,"AX9",null,null,null,null,null,null,null,null,"AX9","AX9",0.13500000000000001,0,7.98,0]
[0,null,"AX3",null,null,null,null,null,null,null,null,"AX3","AX3",1.4999999999999999E-2,0,0.67,0]
[0,null,"AX5",null,null,null,null,null,null,null,null,"AX5","AX5",4.4999999999999998E-2,0,3.4,0]
[0,null,"HELIOS","1 jeu","2 snapbag et snapgrid",null,null,null,null,null,null,"HELIOS","HELIOS",3.5999999999999997E-2,0,0.76,0]
[0,null,"HYPERION",null,null,null,null,null,null,null,null,"HYPERION","HYPERION",0.14399999999999999,0,0.76,0]
[0,null,"TITAN","1 jeu","2 snapbag et snapgrid",null,null,null,null,null,null,"TITAN","TITAN",7.1999999999999995E-2,0,1.34,0]
[{"$f":"IF(B64>0,\"x\",0)","v":0},null,{"$f":"IF($I$1=\"x\",M64,L64)","v":"NYX"},null,null,null,null,null,null,null,null,"NYX","NYX",0.01,{"$f":"B64*N64","v":0},2.34]
[0,null,"00:00:00",null,null,null,null,null,null,null,null,null,null,null,{"$f":"B65*N65","v":0},null,0]
[0,{"$f":"IF(SUM(B67:B71)>0,\"Marq\",0)","v":0},"APUTURE",null,null,null,null,null,null,null,null,"APUTURE","APUTURE"]
[0,null,"Led kit for phone",null,null,null,null,null,null,null,null,"Led kit for phone","Led kit for phone",null,{"$f":"B67*N67","v":0},null,{"$f":"P67*B67","v":0}]
[0,null,"LS 600CPRO",null,null,null,null,null,null,null,null,"LS 600CPRO","LS 600CPRO",null,{"$f":"B68*N68","v":0},null,{"$f":"P68*B68","v":0}]
[0,null,"LS 600DPRO",null,null,null,null,null,null,null,null,"LS 600DPRO","LS 600DPRO",null,{"$f":"B69*N69","v":0},null,{"$f":"P69*B69","v":0}]
[0,null,"LS 600XPRO",null,null,null,null,null,null,null,null,"LS 600XPRO","LS 600XPRO",0.04,{"$f":"B70*N70","v":0},2.2000000000000002,{"$f":"P70*B70","v":0}]
[{"$f":"IF(B71>0,\"x\",0)","v":0},null,{"$f":"IF($I$1=\"x\",M71,L71)","v":"LS 1200DPRO"},null,null,null,null,null,null,null,null,"LS 1200DPRO","LS 1200DPRO",null,{"$f":"B71*N71","v":0},null,{"$f":"P71*B71","v":0}]
[{"$f":"IF(B72>0,\"x\",0)","v":0},null,{"$f":"IF($I$1=\"x\",M72,L72)","v":"AMARAN F21C"},null,null,null,null,null,null,null,null,"AMARAN F21C","AMARAN F21C",null,{"$f":"B72*N72","v":0},null,{"$f":"P72*B72","v":0}]
[0,null,"AMARAN F22C",null,null,null,null,null,null,null,null,"AMARAN F22C","AMARAN F22C",null,0,null,0]
[0,null,"AMARAN F22X",null,null,null,null,null,null,null,null,"AMARAN F22X","AMARAN F22X",null,0,null,0]
[0,null,"NOVA P600C",null,null,null,null,null,null,null,null,"NOVA P600C","NOVA P600C",null,0,null,0]
[{"$f":"IF(B76>0,\"x\",0)","v":0},null,{"$f":"IF($I$1=\"x\",M76,L76)","v":"LS60X"},null,null,null,null,null,null,null,null,"LS60X","LS60X",null,{"$f":"B76*N76","v":0},null,{"$f":"P76*B76","v":0}]
[{"$f":"IF(B77>0,\"x\",0)","v":0},null,{"$f":"IF($I$1=\"x\",M77,L77)","v":"LS60D"},null,null,null,null,null,null,null,null,"LS60D","LS60D",null,{"$f":"B77*N77","v":0},null,{"$f":"P77*B77","v":0}]
[{"$f":"IF(B78>0,\"x\",0)","v":0},null,{"$f":"IF($I$1=\"x\",M78,L78)","v":"ACCENT B7C"},null,null,null,null,null,null,null,null,"ACCENT B7C","ACCENT B7C",null,{"$f":"B78*N78","v":0},null,{"$f":"P78*B78","v":0}]
[{"$f":"IF(B79>0,\"x\",0)","v":0},null,{"$f":"IF($I$1=\"x\",M79,L79)","v":"00:00:00"},null,null,null,null,null,null,null,null,null,null,null,{"$f":"B79*N79","v":0},null,{"$f":"P79*B79","v":0}]
[0,null,"00:00:00",null,null,null,null,null,null,null,null,null,null,null,0,null,0]
[{"$f":"IF(B81>0,\"x\",0)","v":0},{"$f":"IF(SUM(B82:B92)>0,\"Marq\",0)","v":0},{"$f":"IF($I$1=\"x\",M81,L81)","v":"CREAM SOURCE"},null,null,null,null,null,null,null,null,"CREAM SOURCE","CREAM SOURCE"]
[0,null,"MICRO",null,null,null,null,null,null,null,null,"MICRO","MICRO",0.08,{"$f":"B82*N82","v":0},2.5,{"$f":"P82*B82","v":0}]
[0,null,"MINI+",null,null,null,null,null,null,null,null,"MINI+","MINI+",0.15,0,5.2,0]
[0,null,"MINI BENDER",null,null,null,null,null,null,null,null,"MINI BENDER","MINI BENDER",0.155,0,5.2,0]
[0,null,"CLASSIC",null,null,null,null,null,null,null,null,"CLASSIC","CLASSIC",0.4,0,9.4,0]
[0,null,"DOPPIO+",null,null,null,null,null,null,null,null,"DOPPIO+","DOPPIO+",0.35,0,9.4,0]
[0,null,"BENDER",null,null,null,null,null,null,null,null,"BENDER","BENDER",0.4,0,9.4,0]
[0,null,"SKY",null,null,null,null,null,null,null,null,"SKY","SKY",1.2,0,23,{"$f":"P88*B88","v":0}]
[0,null,{"$f":"IF($I$1=\"x\",M89,L89)","v":"VORTEX 8"},null,null,null,null,null,null,null,null,"VORTEX 8","VORTEX 8",null,0,null,{"$f":"P89*B89","v":0}]
[0,null,{"$f":"IF($I$1=\"x\",M90,L90)","v":"VORTEX 4"},null,null,null,null,null,null,null,null,"VORTEX 4","VORTEX 4",null,0,null,{"$f":"P90*B90","v":0}]
[{"$f":"IF(B91>0,\"x\",0)","v":0},null,{"$f":"IF($I$1=\"x\",M91,L91)","v":"00:00:00"},null,null,null,null,null,null,null,null,null,null,null,0,null,{"$f":"P91*B91","v":0}]
[{"$f":"IF(B92>0,\"x\",0)","v":0},null,{"$f":"IF($I$1=\"x\",M92,L92)","v":"00:00:00"},null,null,null,null,null,null,null,null,null,null,null,0,null,{"$f":"P92*B92","v":0}]
[0,{"$f":"IF(SUM(B94:B98)>0,\"Marq\",0)","v":0},{"$f":"IF($I$1=\"x\",M93,L93)","v":"DIGITAL SPUTNIK"},null,null,null,null,null,null,null,null,"DIGITAL SPUTNIK","DIGITAL SPUTNIK"]
[0,null,"DIGITAL SPUTNIK DS1",null,null,null,null,null,null,null,null,"DIGITAL SPUTNIK DS1","DIGITAL SPUTNIK DS1",null,{"$f":"B94*N94","v":0},null,{"$f":"P94*B94","v":0}]
[0,null,"DIGITAL SPUTNIK DS3",null,null,null,null,null,null,null,null,"DIGITAL SPUTNIK DS3","DIGITAL SPUTNIK DS3",null,0,null,0]
[0,null,"DIGITAL SPUTNIK DS6",null,null,null,null,null,null,null,null,"DIGITAL SPUTNIK DS6","DIGITAL SPUTNIK DS6",null,0,null,0]
[0,null,"VOYAGER SMART LIGHT",null,null,null,null,null,null,null,null,"VOYAGER SMART LIGHT","VOYAGER SMART LIGHT",0.04,0,2.2000000000000002,0]
[0,null,"00:00:00",null,null,null,null,null,null,null,null,null,null,null,0,null,0]
[0,null,"00:00:00",null,null,null,null,null,null,null,null,null,null,null,0,null,0]
[0,null,"00:00:00",null,null,null,null,null,null,null,null,null,null,null,0,null,0]
[0,{"$f":"IF(SUM(B102:B108)>0,\"Marq\",0)","v":0},"DMG",null,null,null,null,null,null,null,null,"DMG","DMG"]
[0,null,"SL1 JOUR",null,null,null,null,null,null,null,null,"SL1 JOUR","SL1 DAYLIGHT",null,{"$f":"B102*N102","v":0},null,{"$f":"P102*B102","v":0}]
[0,null,"SL1 ARTIF",null,null,null,null,null,null,null,null,"SL1 ARTIF","SL1 TUNGSTEN",null,0,null,0]
[0,null,"SL1 SWITCH","chim","louver",null,null,null,null,null,null,"SL1 SWITCH","SL1 SWITCH",null,0,null,0]
[0,null,"SL MIX",null,null,null,null,null,null,null,null,"SL MIX","SL MIX",null,0,null,0]
[0,null,"MAXI MIX",null,null,null,null,null,null,null,null,"MAXI MIX","MAXI MIX",null,0,null,0]
[0,null,"MINI MIX",null,null,null,null,null,null,null,null,"MINI MIX","MINI MIX",null,0,null,0]
[{"$f":"IF(B108>0,\"x\",0)","v":0},null,{"$f":"IF($I$1=\"x\",M108,L108)","v":"DASH POCKET"},null,null,null,null,null,null,null,null,"DASH POCKET","DASH POCKET"]
[{"$f":"IF(B109>0,\"x\",0)","v":0},{"$f":"IF(SUM(B110:B119)>0,\"Marq\",0)","v":0},{"$f":"IF($I$1=\"x\",M109,L109)","v":"ETC"},null,null,null,null,null,null,null,null,"ETC","ETC"]
[0,null,{"$f":"IF($I$1=\"x\",M110,L110)","v":"SOURCE 4 LED"},null,null,null,null,null,null,null,null,"SOURCE 4 LED","SOURCE 4 LED"]
[0,null,"00:00:00"]
[0,null,"00:00:00"]
[0,null,"00:00:00"]
[0,null,"00:00:00"]
[0,null,"00:00:00"]
[0,null,"00:00:00"]
[0,null,"00:00:00"]
[0,null,"00:00:00",null,null,null,null,null,null,null,null,null,null,null,{"$f":"B118*N118","v":0},null,{"$f":"P118*B118","v":0}]
[0,null,"00:00:00"]
[0,{"$f":"IF(SUM(B121:B133)>0,\"Marq\",0)","v":0},"FIILEX",null,null,null,null,null,null,null,null,"FIILEX","FIILEX"]
[0,null,"Q10 COLOR",null,null,null,null,null,null,null,null,"Q10 COLOR","Q10 COLOR",null,{"$f":"B121*N121","v":0},null,{"$f":"P121*B121","v":0}]
[0,null,"Q8 COLOR",null,null,null,null,null,null,null,null,"Q8 COLOR","Q8 COLOR",null,0,null,0]
[0,null,"Q5 COLOR",null,null,null,null,null,null,null,null,"Q5 COLOR","Q5 COLOR",null,0,null,0]
[0,null,"P3 COLOR",null,null,null,null,null,null,null,null,"P3 COLOR","P3 COLOR",null,0,null,0]
[{"$f":"IF(B125>0,\"x\",0)","v":0},null,"MOTOQUAD",null,null,null,null,null,null,null,null,"MOTOQUAD","MOTOQUAD",null,0,null,0]
[0,null,"QUAD COLOR",null,null,null,null,null,null,null,null,"QUAD COLOR","QUAD COLOR",null,0,null,0]
[0,null,"MATRIX COLOR",null,null,null,null,null,null,null,null,"MATRIX COLOR","MATRIX COLOR",null,0,null,0]
[0,null,"P3X",null,null,null,null,null,null,null,null,"P3X","P3X",null,0,null,0]
[0,null,"P3S",null,null,null,null,null,null,null,null,"P3S","P3S",null,0,null,0]
[0,null,"P3F",null,null,null,null,null,null,null,null,"P3F","P3F",null,0,null,0]
[0,null,"Q5F",null,null,null,null,null,null,null,null,"Q5F","Q5F",null,0,null,0]
[0,null,"00:00:00",null,null,null,null,null,null,null,null,null,null,null,0,null,0]
[0,null,{"$f":"IF($I$1=\"x\",M133,L133)","v":"00:00:00"},null,null,null,null,null,null,null,null,null,null,null,0,null,0]
[0,{"$f":"IF(SUM(B135:B136)>0,\"Marq\",0)","v":0},"K 5600",null,null,null,null,null,null,null,null,"K 5600","K 5600"]
[0,null,"ALPHA 300",null,null,null,null,null,null,null,null,"ALPHA 300","ALPHA 300",0.3,{"$f":"B135*N135","v":0},5.4,{"$f":"P135*B135","v":0}]
[0,null,"JOKER",null,null,null,null,null,null,null,null,"JOKER","JOKER",0.3,{"$f":"B136*N136","v":0},3.6,{"$f":"P136*B136","v":0}]
[0,null,"00:00:00",null,null,null,null,null,null,null,null,null,null,1.3,{"$f":"B137*N137","v":0},4.5999999999999996,{"$f":"P137*B137","v":0}]
[0,{"$f":"IF(SUM(B139:B148)>0,\"Marq\",0)","v":0},"KINO FLOW",null,null,null,null,null,null,null,null,"KINO FLOW","KINO FLOW"]
[0,null,"Celeb 201 DMX",null,null,null,null,null,null,null,null,"Celeb 201 DMX","Celeb 201 DMX",null,{"$f":"B139*N139","v":0},null,{"$f":"P139*B139","v":0}]
[0,null,"Celeb 401 DMX",null,null,null,null,null,null,null,null,"Celeb 401 DMX","Celeb 401 DMX",null,0,null,0]
[0,null,"Celeb 401Q DMX",null,null,null,null,null,null,null,null,"Celeb 401Q DMX","Celeb 401Q DMX",null,0,null,0]
[0,null,"Diva-Lite 20/30 DMX",null,null,null,null,null,null,null,null,"Diva-Lite 20/30 DMX","Diva-Lite 20/30 DMX",null,0,null,0]
[0,null,"Select 30/20 DMX",null,null,null,null,null,null,null,null,"Select 30/20 DMX","Select 30/20 DMX",null,0,null,0]
[0,null,"Select 30/20 DMX",null,null,null,null,null,null,null,null,"Select 30/20 DMX","Select 30/20 DMX",null,0,null,0]
[0,null,"FREE STYLE 41",null,null,null,null,null,null,null,null,"FREE STYLE 41","FREE STYLE 41",0.15,0,7,0]
[0,null,"FREE STYLE 31",null,null,null,null,null,null,null,null,"FREE STYLE 31","FREE STYLE 31",0.15,0,7,0]
[0,null,"FREE STYLE 21",null,null,null,null,null,null,null,null,"FREE STYLE 21","FREE STYLE 21",0.15,0,5,0]
[]
[{"$f":"IF(B149>0,\"x\",0)","v":0},{"$f":"IF(SUM(B150:B156)>0,\"Marq\",0)","v":0},{"$f":"IF($I$1=\"x\",M149,L149)","v":"LIGHTSTAR"},null,null,null,null,null,null,null,null,"LIGHTSTAR","LIGHTSTAR"]
[0,null,"LUXED 12",null,null,null,null,null,null,null,null,"LUXED 12","LUXED 12",2.16,{"$f":"B150*N150","v":0},50,{"$f":"P150*B150","v":0}]
[0,null,"LUXED 9",null,null,null,null,null,null,null,null,"LUXED 9","LUXED 9",1.62,0,39,0]
[0,null,"LUXED 6",null,null,null,null,null,null,null,null,"LUXED 6","LUXED 6",1.08,0,33,0]
[0,null,"LUXED 4",null,null,null,null,null,null,null,null,"LUXED 4","LUXED 4",0.72,0,24,0]
[0,null,"LUXED 2",null,null,null,null,null,null,null,null,"LUXED 2","LUXED 2",0.36,0,4,0]
[0,null,"LUXED 1",null,null,null,null,null,null,null,null,"LUXED 1","LUXED 1",0.18,0,4,0]
[]
[{"$f":"IF(B157>0,\"x\",0)","v":0},{"$f":"IF(SUM(B158:B170)>0,\"Marq\",0)","v":0},{"$f":"IF($I$1=\"x\",M157,L157)","v":"LITE GEAR"},null,null,null,null,null,null,null,null,"LITE GEAR","LITE GEAR"]
[0,null,"LITE TILE Plus 8",null,null,null,null,null,null,null,null,"LITE TILE Plus 8","LITE TILE Plus 8",0.4,{"$f":"B158*N158","v":0},3.6,{"$f":"P158*B158","v":0}]
[0,null,"LITE TILE Plus 4",null,null,null,null,null,null,null,null,"LITE TILE Plus 4","LITE TILE Plus 4",0.2,0,1.8,0]
[0,null,"LITE MAT 1 S2",null,null,null,null,null,null,null,null,"LITE MAT 1 S2","LITE MAT 1 S2",0.05,0,1.1000000000000001,0]
[0,null,"LITE MAT 2 S2",null,null,null,null,null,null,null,null,"LITE MAT 2 S2","LITE MAT 2 S2",0.1,0,1.6,0]
[0,null,"LITE MAT 2L S2",null,null,null,null,null,null,null,null,"LITE MAT 2L S2","LITE MAT 2L S2",0.1,0,1.6,0]
[0,null,"LITE MAT 3 S2",null,null,null,null,null,null,null,null,"LITE MAT 3 S2","LITE MAT 3 S2",0.15,0,2.1,0]
[0,null,"LITE MAT 4 S2",null,null,null,null,null,null,null,null,"LITE MAT 4 S2","LITE MAT 4 S2",0.2,0,2.6,0]
[0,null,"LITE MAT 4 SPECTRUM",null,null,null,null,null,null,null,null,"LITE MAT 4 SPECTRUM","LITE MAT 4 SPECTRUM",0.2,0,3.4,0]
[0,null,"LITE MAT 3 SPECTRUM",null,null,null,null,null,null,null,null,"LITE MAT 3 SPECTRUM","LITE MAT 3 SPECTRUM",0.15,0,3.4,0]
[0,null,"LITE MAT 2 SPECTRUM",null,null,null,null,null,null,null,null,"LITE MAT 2 SPECTRUM","LITE MAT 2 SPECTRUM",0.1,0,3.4,0]
[0,null,"LITE MAT 2L SPECTRUM",null,null,null,null,null,null,null,null,"LITE MAT 2L SPECTRUM","LITE MAT 2L SPECTRUM",0.1,0,3.4,0]
[{"$f":"IF(B169>0,\"x\",0)","v":0},null,{"$f":"IF($I$1=\"x\",M169,L169)","v":"LITE TILE PLUS 2X8"},null,null,null,null,null,null,null,null,"LITE TILE PLUS 2X8","LITE TILE PLUS 2X8",null,{"$f":"B169*N169","v":0},5.7,{"$f":"P169*B169","v":0}]
[]
[{"$f":"IF(B171>0,\"x\",0)","v":0},{"$f":"IF(SUM(B172:B204)>0,\"Marq\",0)","v":0},{"$f":"IF($I$1=\"x\",M171,L171)","v":"LITEPANELS"},null,null,null,null,null,null,null,null,"LITEPANELS","LITEPANELS"]
[0,null,{"$f":"IF($I$1=\"x\",M172,L172)","v":"ASTRA 3X BI-COLOR LED"},null,null,null,null,null,null,null,null,"ASTRA 3X BI-COLOR LED",{"$f":"UPPER(L172)","v":"ASTRA 3X BI-COLOR LED"},null,{"$f":"B172*N172","v":0},null,{"$f":"P172*B172","v":0}]
[0,null,"ASTRA 6X BI-COLOR LED",null,null,null,null,null,null,null,null,"ASTRA 6X BI-COLOR LED",{"$f":"UPPER(L173)","v":"ASTRA 6X BI-COLOR LED"},null,0,null,0]
[0,null,"ASTRA BI-FOCUS DAYLIGHT",null,null,null,null,null,null,null,null,"ASTRA BI-FOCUS DAYLIGHT","ASTRA BI-FOCUS DAYLIGHT",null,0,null,0]
[0,null,"ASTRA SOFT BI-COLOR",null,null,null,null,null,null,null,null,"ASTRA SOFT BI-COLOR","ASTRA SOFT BI-COLOR",null,0,null,0]
[0,null,"CROMA 2 LED LIGHT",null,null,null,null,null,null,null,null,"CROMA 2 LED LIGHT","CROMA 2 LED LIGHT",null,0,null,0]
[0,null,"GEMINI 1X1 HARD","Snapbag Softbox",null,null,null,null,null,null,null,"GEMINI 1X1 HARD","GEMINI 1X1 HARD",null,0,null,0]
[0,null,"GEMINI 1X1 SOFT",null,null,null,null,null,null,null,null,"GEMINI 1X1 SOFT","GEMINI 1X1 SOFT",null,0,null,0]
[0,null,"GEMINI 2X1 HARD","Snapbag Softbox",null,null,null,null,null,null,null,"GEMINI 2X1 HARD","GEMINI 2X1 HARD",null,0,null,0]
[0,null,"GEMINI 2X1 SOFT",null,null,null,null,null,null,null,null,"GEMINI 2X1 SOFT","GEMINI 2X1 SOFT",null,0,null,0]
[0,null,"INCA 4 TUNGSTEN",null,null,null,null,null,null,null,null,"INCA 4 TUNGSTEN","INCA 4 TUNGSTEN",null,0,null,0]
[0,null,"LITE PANEL CHROMA","6/20v",null,null,null,null,null,null,null,"LITE PANEL CHROMA","LITE PANEL CHROMA",null,0,0.34,0]
[0,null,"LITE PANEL HILIO",null,null,null,null,null,null,null,null,"LITE PANEL HILIO","LITE PANEL HILIO",0.115,{"$f":"B183*N183","v":0},5.9,0]
[0,null,"LITE PANEL SERIE 30X30 BI COLOR",null,null,null,null,null,null,null,null,"LITE PANEL SERIE 30X30 BI COLOR","LITE PANEL SERIE 30X30 BI COLOR",4.4999999999999998E-2,0,1.4,0]
[{"$f":"IF(B185>0,\"x\",0)","v":0},null,"LITE PANEL SERIE 30X30 BI FOCUS",null,null,null,null,null,null,null,null,"LITE PANEL SERIE 30X30 BI FOCUS","LITE PANEL SERIE 30X30 BI FOCUS",4.4999999999999998E-2,0,1.4,0]
[0,null,"LITE PANEL SERIE 30X30 LOW PROFILE",null,null,null,null,null,null,null,null,"LITE PANEL SERIE 30X30 LOW PROFILE","LITE PANEL SERIE 30X30 LOW PROFILE",4.4999999999999998E-2,0,1.4,0]
[0,null,"LITE PANEL SERIE 30X30 STANDARD","12/30V",null,null,null,null,null,null,null,"LITE PANEL SERIE 30X30 STANDARD","LITE PANEL SERIE 30X30 STANDARD",4.4999999999999998E-2,0,1.4,0]
[0,null,"LITE PANEL SERIE 30X30 SUPER SPOT",null,null,null,null,null,null,null,null,"LITE PANEL SERIE 30X30 SUPER SPOT","LITE PANEL SERIE 30X30 SUPER SPOT",4.4999999999999998E-2,0,1.4,0]
[0,null,"LITE PANELS MINI PLUS","10/30V",null,null,null,null,null,null,null,"LITE PANELS MINI PLUS","LITE PANELS MINI PLUS",0.06,0,0.3,0]
[0,null,"LYKOS+ BI COLOR",null,null,null,null,null,null,null,null,"LYKOS+ BI COLOR","LYKOS+ BI COLOR",null,0,null,0]
[0,null,"RING LITE LED CINEMA","24/30V",null,null,null,null,null,null,null,"RING LITE LED CINEMA","RING LITE LED CINEMA",7.0000000000000007E-2,0,2.5,0]
[0,null,"RING LITE LED MINI","12/30V",null,null,null,null,null,null,null,"RING LITE LED MINI","RING LITE LED MINI",0.04,0,1.6,0]
[0,null,"SOLA 4",null,null,null,null,null,null,null,null,"SOLA 4","SOLA 4",0.03,0,0.65,0]
[0,null,"SOLA 4+ DAYLIGHT",null,null,null,null,null,null,null,null,"SOLA 4+ DAYLIGHT","SOLA 4+ DAYLIGHT",null,0,null,0]
[0,null,"SOLA 6",null,null,null,null,null,null,null,null,"SOLA 6","SOLA 6",7.4999999999999997E-2,0,2.7,0]
[0,null,"SOLA 6+ DAYLIGHT",null,null,null,null,null,null,null,null,"SOLA 6+ DAYLIGHT","SOLA 6+ DAYLIGHT",null,0,null,0]
[0,null,"SOLA ENG",null,null,null,null,null,null,null,null,"SOLA ENG","SOLA ENG",0.03,0,0.3,{"$f":"P197*B197","v":0}]
[0,null,"STUDIO X2 60W",null,null,null,null,null,null,null,null,"STUDIO X2 60W","STUDIO X2 60W",null,0,null,{"$f":"P198*B198","v":0}]
[0,null,"STUDIO X3 100W",null,null,null,null,null,null,null,null,"STUDIO X3 100W","STUDIO X3 100W",null,0,null,0]
[0,null,"STUDIO X4 150W",null,null,null,null,null,null,null,null,"STUDIO X4 150W","STUDIO X4 150W",null,0,null,0]
[0,null,"STUDIO X5 200W",null,null,null,null,null,null,null,null,"STUDIO X5 200W","STUDIO X5 200W",null,0,null,0]
[0,null,"STUDIO X6 300W",null,null,null,null,null,null,null,null,"STUDIO X6 300W","STUDIO X6 300W",null,0,null,0]
[0,null,"STUDIO X7 300W",null,null,null,null,null,null,null,null,"STUDIO X7 300W","STUDIO X7 300W",null,0,null,0]
[0,null,{"$f":"IF($I$1=\"x\",M204,L204)","v":"00:00:00"}]
[0,{"$f":"IF(SUM(B206:B210)>0,\"Marq\",0)","v":0},"NILA",null,null,null,null,null,null,null,null,"NILA","NILA"]
[0,null,"NILA BOXER",null,null,null,null,null,null,null,null,"NILA BOXER","NILA BOXER",null,{"$f":"B206*N206","v":0},null,{"$f":"P206*B206","v":0}]
[0,null,"NILA VARSA",null,null,null,null,null,null,null,null,"NILA VARSA","NILA VARSA",null,{"$f":"B207*N207","v":0},null,{"$f":"P207*B207","v":0}]
[0,null,"NILA ZAILA",null,null,null,null,null,null,null,null,"NILA ZAILA","NILA ZAILA",null,{"$f":"B208*N208","v":0},null,{"$f":"P208*B208","v":0}]
[0,null,"NILA ARINA",null,null,null,null,null,null,null,null,"NILA ARINA","NILA ARINA",null,{"$f":"B209*N209","v":0},null,{"$f":"P209*B209","v":0}]
[0,null,null,null,null,null,null,null,null,null,null,null,null,null,{"$f":"B210*N210","v":0},null,{"$f":"P210*B210","v":0}]
[0,{"$f":"IF(SUM(B212:B213)>0,\"Marq\",0)","v":0},{"$f":"IF($I$1=\"x\",M211,L211)","v":"ROSCO"},null,null,null,null,null,null,null,null,"ROSCO","ROSCO"]
[0,null,{"$f":"IF($I$1=\"x\",M212,L212)","v":"KIT ROSCO LITE PAD"},null,null,null,null,null,null,null,null,"KIT ROSCO LITE PAD","KIT ROSCO LITE PAD",null,{"$f":"B212*N212","v":0},16.3,{"$f":"P212*B212","v":0}]
[0,null,{"$f":"IF($I$1=\"x\",M213,L213)","v":"00:00:00"},null,null,null,null,null,null,null,null,null,null,null,{"$f":"B213*N213","v":0},null,{"$f":"P213*B213","v":0}]
[null,{"$f":"IF(SUM(B215:B396)>0,\"Type\",0)","v":0},{"$f":"IF($I$1=\"x\",M214,L214)","v":"HMI"},null,null,null,null,null,null,null,null,"HMI","HMI"]
[{"$f":"IF(B215>0,\"x\",0)","v":0},{"$f":"IF(SUM(B216:B271)>0,\"Qté\",0)","v":0},"HMI CINEPAR",{"$f":"IF(I318=\"x\",\"HMI extension\",\"Rallonge HMI\")","v":"Rallonge HMI"},"Scrim","Chim",{"$f":"IF(I1=\"x\",\"Magnetic\",\"Selfic\")","v":"Selfic"},"PG",null,null,null,"HMI CINEPAR","DISCHARGING LIGHTING CINEPAR"]
[0,{"$f":"IF(SUM(B217:B232)>0,\"Marq\",0)","v":0},"ARRI",null,null,null,null,null,null,null,null,"ARRI","ARRI"]
[0,null,"Arrimax 12/18kw",null,null,null,null,null,null,null,null,"Arrimax 12/18kw","Arri Arrimax 12/18kw",18,{"$f":"B217*N217","v":0},65,{"$f":"IF(G217=\"x\",(R217+P217)*B217,(IF(H217=\"x\",(T217+P217)*B217,(S217+P217)*B217)))","v":0},137,64,55]
[0,null,"Arri M90",null,null,null,null,null,null,null,null,"Arri M90","Arri M90",9,0,39.5,0,null,28]
[0,null,"ArriSun 12kw",null,null,null,null,null,null,null,null,"ArriSun 12kw","Arri Arrisun 12kw",12,0,46.3,0,90,43,51]
[0,null,"ArriSun 6kw",null,null,null,null,null,null,null,null,"ArriSun 6kw","Arri Arrisun 6kw",6,0,28.1,0,85,21.7,30]
[0,null,"ArriSun 4kw",null,null,null,null,null,null,null,null,"ArriSun 4kw","ArriSun 4kw",4,0,23,0,40,21,15.6]
[0,null,"ArriSun 2,5/4kw",null,null,null,null,null,null,null,null,"ArriSun 2,5/4kw","Arri Arrisun 2,5/4kw",4,0,23,0,40,21,15.6]
[0,null,"Arri M40/25",null,null,null,null,null,null,null,null,"Arri M40/25","Arri M40/25 ",4,0,19,0,40,21,15.6]
[0,null,"Baby Max M18",null,"x","x",null,null,null,null,null,"Baby Max M18","Arri M18 Babymax",1.8,0,13.5,0,18,7,7.5]
[0,null,"Arri M8",null,null,null,null,null,null,null,null,"Arri M8","Arri M8",0.8,0,null,0]
[0,null,"ArriSun 1200w",null,null,null,null,null,null,null,null,"ArriSun 1200w","Arri Arrisun 1200w",1.2,0,12.3,0,18,7,7]
[{"$f":"IF(B227>0,\"x\",0)","v":0},null,{"$f":"IF($I$1=\"x\",M227,L227)","v":"ArriSun 400/575w"},null,null,null,null,null,null,null,null,"ArriSun 400/575w","Arri Arrisun 400/575w",0.57499999999999996,0,5.4,0,10,2.6,3.5]
[0,null,"ArriSun 125/200w",null,null,null,null,null,null,null,null,"ArriSun 125/200w","Arri Arrisun 125/200w",0.2,0,2.6,0,7,2.2999999999999998,1.86]
[0,null,"Pocket Par 400w",null,null,null,null,null,null,null,null,"Pocket Par 400w","Arri Pocket Par 400w",0.4,0,2.8,0,10,2.6,3.5,26]
[0,null,"Pocket Par 200w",null,null,null,null,null,null,null,null,"Pocket Par 200w","Arri Pocket Par 200w",0.2,0,2.1,0,7,2.2999999999999998,1.86,13]
[0,null,"Pocket Par 125w",null,null,null,null,null,null,null,null,"Pocket Par 125w","Arri Pocket Par 125w",0.125,0,0.9,0,7,2.2999999999999998,1.86,13]
[0,null,"00:00:00",null,null,null,null,null,null,null,null,null,null,null,0,null,0]
[0,{"$f":"IF(SUM(B234:B245)>0,\"Marq\",0)","v":0},"LTM",null,null,null,null,null,null,null,null,"LTM","LTM"]
[0,null,"Cinepar 12/18kw LTM",null,null,null,null,null,null,null,null,"Cinepar 12/18kw LTM","LTM Cinepar 12/18kw",18,{"$f":"B234*N234","v":0},59,{"$f":"IF(G234=\"x\",(R234+P234)*B234,(IF(H234=\"x\",(T234+P234)*B234,(S234+P234)*B234)))","v":0},137,50,55]
[0,null,"Cinepar 6/12kw LTM",null,null,null,null,null,null,null,null,"Cinepar 6/12kw LTM","LTM Cinepar 6/12kw ",12,0,34.5,0,137,50,51]
[0,null,"Cinepar 6kw LTM",null,null,null,null,null,null,null,null,"Cinepar 6kw LTM","LTM Cinepar 6kw",6,0,27,0,90,30,30]
[0,null,"Cinepar 4kw LTM",null,null,null,null,null,null,null,null,"Cinepar 4kw LTM","LTM Cinepar 4kw",4,0,18,0,85,19,15.6]
[0,null,"Cinepar 2,5/4kw LTM",null,null,null,null,null,null,null,null,"Cinepar 2,5/4kw LTM","LTM Cinepar 2,5/4kw",4,0,18,0,85,19,15.6]
[0,null,"Cinepar 2,5kw LTM",null,null,null,null,null,null,null,null,"Cinepar 2,5kw LTM","LTM Cinepar 2,5kw",2.5,0,15.6,0,40,19,13.5]
[0,null,"Cinepar 1200w focalisable LTM",null,null,null,null,null,null,null,null,"Cinepar 1200w focalisable LTM","LTM Cinepar focal 1200w",1.2,0,8,0,18,9,7]
[0,null,"Cinepar 1200w LTM",null,null,null,null,null,null,null,null,"Cinepar 1200w LTM","LTM Cinepar 1200w",1.2,0,8,0,18,9,7]
[0,null,"Cinepar 575w LTM",null,null,null,null,null,null,null,null,"Cinepar 575w LTM","LTM Cinepar575w",0.57499999999999996,0,3.5,0,10,3.8,3.5]
[0,null,"Cinepar 400w LTM",null,null,null,null,null,null,null,null,"Cinepar 400w LTM","LTM Cinepar 400w",0.4,0,1.5,0,10,3.8,3.5]
[0,null,"Cinepar 200w LTM",null,null,null,null,null,null,null,null,"Cinepar 200w LTM","LTM Cinepar 200w",0.2,0,1.5,0,7,2,1.86]
[0,null,"00:00:00",null,null,null,null,null,null,null,null,null,null,null,0,null,0]
[0,{"$f":"IF(SUM(B247:B252)>0,\"Marq\",0)","v":0},"DESISTI",null,null,null,null,null,null,null,null,"DESISTI","DESISTI"]
[0,null,"Remington 6/12kw",null,null,null,null,null,null,null,null,"Remington 6/12kw","Desisti Remington 6/12kw",12,{"$f":"B247*N247","v":0},45.7,{"$f":"IF(G247=\"x\",(R247+P247)*B247,(IF(H247=\"x\",(T247+P247)*B247,(S247+P247)*B247)))","v":0},137,44.9,51]
[0,null,"Remington 6kw",null,null,null,null,null,null,null,null,"Remington 6kw","Desisti Remington 6kw",6,0,29.2,{"$f":"IF(G248=\"x\",(R248+P248)*B248,(IF(H248=\"x\",(T248+P248)*B248,(S248+P248)*B248)))","v":0},90,24.5,30]
[0,null,"Remington 2,5/4kw",null,null,null,null,null,null,null,null,"Remington 2,5/4kw","Desisti Remington 2,5/4kw",4,0,21,{"$f":"IF(G249=\"x\",(R249+P249)*B249,(IF(H249=\"x\",(T249+P249)*B249,(S249+P249)*B249)))","v":0},85,22,15.6]
[0,null,"Remington 1200w",null,null,null,null,null,null,null,null,"Remington 1200w","Desisti Remington 1200w",1.2,0,13,{"$f":"IF(G250=\"x\",(R250+P250)*B250,(IF(H250=\"x\",(T250+P250)*B250,(S250+P250)*B250)))","v":0},18,9.5,7]
[0,null,"Remington 575w",null,null,null,null,null,null,null,null,"Remington 575w","Desisti Remington 575w",0.57499999999999996,0,6.5,null,10,3.5,3.5]
[0,null,"00:00:00",null,null,null,null,null,null,null,null,null,null,null,0,null,{"$f":"IF(G251=\"x\",(R251+P251)*B251,(IF(H251=\"x\",(T251+P251)*B251,(S251+P251)*B251)))","v":0}]
[0,{"$f":"IF(SUM(B254:B261)>0,\"Marq\",0)","v":0},"AUTRES approximation",null,null,null,null,null,null,null,null,"AUTRES approximation","OTHERS approximate"]
[0,null,"CINEPAR  12 KW  ",null,null,null,null,null,null,null,null,"CINEPAR  12 KW  ","CINEPAR  12 KW  ",12,{"$f":"B254*N254","v":0},30,{"$f":"IF(G254=\"x\",(R254+P254)*B254,(IF(H254=\"x\",(T254+P254)*B254,(S254+P254)*B254)))","v":0},90,62,51]
[0,null,"CINEPAR  6 KW  ",null,null,null,null,null,null,null,null,"CINEPAR  6 KW  ","CINEPAR  6 KW  ",6,0,22,0,85,35,30]
[0,null,"CINEPAR  4 KW   ",null,null,null,null,null,null,null,null,"CINEPAR  4 KW   ","CINEPAR  4 KW   ",4,0,18,0,85,20.5,15.6]
[0,null,"CINEPAR  2.5 KW",null,null,null,null,null,null,null,null,"CINEPAR  2.5 KW","CINEPAR  2.5 KW",2.5,0,15,0,40,20.5,13.5]
[0,null,"CINEPAR 1200 W",null,null,null,null,null,null,null,null,"CINEPAR 1200 W","CINEPAR 1200 W",1.2,0,9,0,17,5.0999999999999996,7]
[0,null,"CINEPAR 575 W",null,null,null,null,null,null,null,null,"CINEPAR 575 W","CINEPAR 575 W",0.57499999999999996,0,3.1,0,11,5.0999999999999996,3.5]
[0,null,"CINEPAR 200 W  ",null,null,null,null,null,null,null,null,"CINEPAR 200 W  ","CINEPAR 200 W  ",0.2,0,1.2,0,7,2.2000000000000002,1.86]
[0,null,"00:00:00",null,null,null,null,null,null,null,null,null,null,null,null,null,0]
[0,{"$f":"IF(SUM(B263:B271)>0,\"Marq\",0)","v":0},"K 5600",null,null,null,null,null,null,null,null,"K 5600","K 5600"]
[0,null,"JOKER   1200 W ",null,null,null,null,null,null,null,null,"JOKER   1200 W ","JOKER   1200 W ",1.2,{"$f":"B263*N263","v":0},3.2,{"$f":"IF(G263=\"x\",(R263+P263)*B263,(IF(H263=\"x\",(T263+P263)*B263,(S263+P263)*B263)))","v":0},17,5.0999999999999996]
[0,null,"JOKER 800W",null,null,null,null,null,null,null,null,"JOKER 800W","JOKER 800W",0.8,0,2.8,{"$f":"IF(G264=\"x\",(U264-S264+R264)*B264,(U264)*B264)","v":0},12,4.4000000000000004,null,19.5]
[0,null,"JOKER   400 W ",null,null,null,null,null,null,null,null,"JOKER   400 W ","JOKER   400 W ",0.4,0,1.7,{"$f":"IF(G265=\"x\",(U265-S265+R265)*B265,(U265)*B265)","v":0},10,2.2000000000000002,null,14]
[0,null,"JOKER   200 W  ",null,null,null,null,null,null,null,null,"JOKER   200 W  ","JOKER   200 W  ",0.2,0,1.65,{"$f":"IF(G266=\"x\",(U266-S266+R266)*B266,(U266)*B266)","v":0},7,2,null,12]
[0,null,"JOKER BUG 1600W",null,null,null,null,null,null,null,null,"JOKER BUG 1600W","JOKER BUG 1600W",1.6,0,6.7,{"$f":"IF(G267=\"x\",(R267+P267)*B267,(IF(H267=\"x\",(T267+P267)*B267,(S267+P267)*B267)))","v":0},null,6,null,30]
[0,null,"JOKER BUGLITE 800 W","bug a beam",null,null,null,null,null,null,null,"JOKER BUGLITE 800 W","JOKER BUGLITE 800 W",0.8,0,2.8,{"$f":"IF(G268=\"x\",(U268-S268+R268)*B268,(U268)*B268)","v":0},12,4.4000000000000004,null,19.5]
[0,null,"JOKER BUGLITE 400 W","bug a beam",null,null,null,null,null,null,null,"JOKER BUGLITE 400 W","JOKER BUGLITE 400 W",0.4,0,1.7,{"$f":"IF(G269=\"x\",(U269-S269+R269)*B269,(U269)*B269)","v":0},10,2.2000000000000002,null,14]
[0,null,"JOKER BUGLITE 200 W",null,null,null,null,null,null,null,null,"JOKER BUGLITE 200 W","JOKER BUGLITE 200 W",0.2,0,1.65,{"$f":"IF(G270=\"x\",(U270-S270+R270)*B270,(U270)*B270)","v":0},7,2,null,12]
[0,null,"00:00:00",null,null,null,null,null,null,null,null,null,null,null,0,null,{"$f":"IF(G271=\"x\",(S271+P271)*B271,(R271+P271)*B271)","v":0}]
[{"$f":"IF(B272>0,\"x\",0)","v":0},{"$f":"IF(SUM(B273:B322)>0,\"Qté\",0)","v":0},{"$f":"IF($I$1=\"x\",M272,L272)","v":"HMI LUXARC/FRESNEL"},{"$f":"IF(I1=\"x\",\"HMI extension\",\"Rallonge HMI\")","v":"Rallonge HMI"},"Scrim","Chim",{"$f":"IF(I1=\"x\",\"Magnet\",\"Self\")","v":"Self"},"PG",null,null,null,"HMI LUXARC/FRESNEL","DISCHARGING LIGHTING LUXARC"]
[0,{"$f":"IF(SUM(B274:B280)>0,\"Marq\",0)","v":0},"K 5600",null,null,null,null,null,null,null,null,"K 5600","K 5600"]
[0,null,"ALPHA 18kw K5600","1 jour 04/10",null,null,null,null,null,null,null,"ALPHA 18kw K5600","K5600 ALPHA 18 kw",18,{"$f":"B274*N274","v":0},58,{"$f":"IF(G274=\"x\",(R274+P274)*B274,(IF(H274=\"x\",(T274+P274)*B274,(S274+P274)*B274)))","v":0},137,50,55]
[0,null,"Alpha 4kw K5600 ",null,null,null,null,null,null,null,null,"Alpha 4kw K5600 ","K5600 ALPHA 2,5/4 kw",4,0,21.5,0,85,19,15.6]
[0,null,"Alpha 1600W",null,null,null,null,null,null,null,null,"Alpha 1600W","K5600 Alpha 1600W",1.6,0,9.5,0,null,6]
[0,null,"Alpha 800w",null,null,null,null,null,null,null,null,"Alpha 800w","Alpha 800w",0.8,0,5.4,0,null,6]
[0,null,"Alpha 200w",null,null,null,null,null,null,null,null,"Alpha 200w","Alpha 200w",0.2,0,2.2999999999999998,0]
[0,null,"Black Jack 400w",null,null,null,null,null,null,null,null,"Black Jack 400w","K5600 Black Jack 400w",0.4,0,5.8,0,10,2.2000000000000002,3.5]
[0,null,"Alpha 9kw",null,null,null,null,null,null,null,null,"Alpha 9kw",null,9,0,40,0,null,25]
[0,{"$f":"IF(SUM(B282:B292)>0,\"Marq\",0)","v":0},"LTM",null,null,null,null,null,null,null,null,"LTM","LTM"]
[0,null,"Luxarc 12/18kw LTM",null,null,null,null,null,null,null,null,"Luxarc 12/18kw LTM","LTM Luxarc 12/18kw",18,{"$f":"B282*N282","v":0},65,{"$f":"IF(G282=\"x\",(R282+P282)*B282,(IF(H282=\"x\",(T282+P282)*B282,(S282+P282)*B282)))","v":0},137,50,55]
[0,null,"Prolight 12/18kw LTM",null,null,null,null,null,null,null,null,"Prolight 12/18kw LTM","LTM Prolight 12/18kw",18,0,65,0,137,50,55]
[0,null,"Prolight 6/12kw LTM",null,null,null,null,null,null,null,null,"Prolight 6/12kw LTM","LTM Prolight 6/12kw",12,0,37,0,137,50,51]
[0,null,"Prolight 6000w LTM",null,null,null,null,null,null,null,null,"Prolight 6000w LTM","LTM Prolight 6000w",6,0,37,0,90,30,30]
[0,null,"Prolight 4000w LTM",null,null,null,null,null,null,null,null,"Prolight 4000w LTM","LTM Prolight 4000w",4,0,25.8,0,85,19,15.6]
[0,null,"Prolight 2500w LTM",null,null,null,null,null,null,null,null,"Prolight 2500w LTM","LTM Prolight 2500w",2.5,0,21.5,0,40,19,15.6]
[0,null,"Prolight 1200w LTM",null,null,null,null,null,null,null,null,"Prolight 1200w LTM","LTM Prolight 1200w",1.2,0,8.5,0,18,9,13.5]
[0,null,"Prolight 575w LTM",null,null,null,null,null,null,null,null,"Prolight 575w LTM","LTM Prolight 575w",0.57499999999999996,0,5.4,0,10,3.8,3.5]
[0,null,"Prolight 400w LTM",null,null,null,null,null,null,null,null,"Prolight 400w LTM","LTM Prolight 400w",0.4,0,3.5,0,10,3.8,3.5]
[0,null,"Prolight 125w/200w LTM",null,null,null,null,null,null,null,null,"Prolight 125w/200w LTM","LTM Prolight 125/200w",0.2,0,2.4,0,7,2,1.86]
[0,null,0]
[0,{"$f":"IF(SUM(B294:B303)>0,\"Marq\",0)","v":0},"ARRI",null,null,null,null,null,null,null,null,"ARRI","ARRI"]
[0,null,"Daylight 12/18kw",null,null,null,null,null,null,null,null,"Daylight 12/18kw","Arri Daylight 12/18kw",18,{"$f":"B294*N294","v":0},70,{"$f":"IF(G294=\"x\",(R294+P294)*B294,(IF(H294=\"x\",(T294+P294)*B294,(S294+P294)*B294)))","v":0},137,64,55]
[0,null,"Compact 12000w Arri",null,null,null,null,null,null,null,null,"Compact 12000w Arri","Arri Compact 12000w",12,0,59,0,137,43.1,51]
[0,null,"Compact 6000w Arri",null,null,null,null,null,null,null,null,"Compact 6000w Arri","Arri Compact 6000w",6,0,34.9,0,90,21.7,51]
[0,null,"Compact 4000w Arri",null,null,null,null,null,null,null,null,"Compact 4000w Arri","Arri Compact 4000w",4,0,22.2,0,85,21,30]
[0,null,"Compact 2500w Arri",null,null,null,null,null,null,null,null,"Compact 2500w Arri","Arri Compact 2500w",2.5,0,17.2,0,40,21,15.6]
[0,null,"Compact 1200w Arri",null,null,null,null,null,null,null,null,"Compact 1200w Arri","Arri Compact 1200w",1.2,0,10,0,18,7,13.5]
[0,null,"Compact 575w Arri",null,null,null,null,null,null,null,null,"Compact 575w Arri","Arri Compact 575w",0.57499999999999996,0,7.9,0,10,2.6,3.5]
[0,null,"Compact 200w Arri",null,null,null,null,null,null,null,null,"Compact 200w Arri","Arri Compact 200w",0.2,0,2.5,0,10,2.2999999999999998,1.86]
[0,null,"Compact 125w Arri",null,null,null,null,null,null,null,null,"Compact 125w Arri","Arri Compact 125w",0.125,0,2,0,7,2.2999999999999998,1.86]
[0,null,0]
[{"$f":"IF(B304>0,\"x\",0)","v":0},{"$f":"IF(SUM(B305:B313)>0,\"Marq\",0)","v":0},{"$f":"IF($I$1=\"x\",M304,L304)","v":"DESISTI"},null,null,null,null,null,null,null,null,"DESISTI","DESISTI"]
[0,null,"Rembrandt 12/18kw",null,null,null,null,null,null,null,null,"Rembrandt 12/18kw","Desisti Rembrandt 12/18kw",18,{"$f":"B305*N305","v":0},70.849999999999994,{"$f":"IF(G305=\"x\",(R305+P305)*B305,(IF(H305=\"x\",(T305+P305)*B305,(S305+P305)*B305)))","v":0},137,46.9,55]
[0,null,"Rembrandt 6/12kw",null,null,null,null,null,null,null,null,"Rembrandt 6/12kw","Desisti Rembrandt 6/12kw",12,0,45.9,0,137,44.9,51]
[0,null,"Rembrandt 6kw",null,null,null,null,null,null,null,null,"Rembrandt 6kw","Desisti Rembrandt 6kw",6,0,28.6,0,90,24.5,30]
[0,null,"Rembrandt 2,5/4kw",null,null,null,null,null,null,null,null,"Rembrandt 2,5/4kw","Desisti Rembrandt 2,5/4kw",4,0,21,0,85,21.5,15.6]
[0,null,"Rembrandt 1,2/2,5kw",null,null,null,null,null,null,null,null,"Rembrandt 1,2/2,5kw","Desisti Rembrandt 1,2/2,5kw",2.5,0,14.3,0,40,18,13.5]
[0,null,"Rembrandt 1200w",null,null,null,null,null,null,null,null,"Rembrandt 1200w","Desisti Rembrandt 1200w",1.2,0,9,0,18,9.5,7]
[0,null,"Rembrandt 575w",null,null,null,null,null,null,null,null,"Rembrandt 575w","Desisti Rembrandt 575w",0.57499999999999996,0,5.8,0,10,3.5,3.5]
[0,null,"Rembrandt 200w",null,null,null,null,null,null,null,null,"Rembrandt 200w","Desisti Rembrandt 200w",0.2,0,2.2000000000000002,0,7,2.2999999999999998,1.86]
[0,null,0]
[0,{"$f":"IF(SUM(B315:B322)>0,\"Marq\",0)","v":0},"AUTRES approximation",null,null,null,null,null,null,null,null,"AUTRES approximation","OTHERS approximate"]
[0,null,"18 KW  Luxarc ",null,null,null,null,null,null,null,null,"18 KW  Luxarc ","18 KW  Luxarc ",18,{"$f":"B315*N315","v":0},65,{"$f":"IF(G315=\"x\",(R315+P315)*B315,(IF(H315=\"x\",(T315+P315)*B315,(S315+P315)*B315)))","v":0},140,70,55]
[0,null,"12 KW  Luxarc ",null,null,null,null,null,null,null,null,"12 KW  Luxarc ","12 KW  Luxarc ",12,0,60,0,90,62,51]
[0,null,"6  KW  Luxarc",null,null,null,null,null,null,null,null,"6  KW  Luxarc","6  KW  Luxarc",6,0,57,0,85,35,30]
[0,null,"4  KW  Luxarc",null,null,null,null,null,null,null,null,"4  KW  Luxarc","4  KW  Luxarc",4,0,37,0,85,20.5,15.6]
[0,null,"2.5KW  Luxarc",null,null,null,null,null,null,null,null,"2.5KW  Luxarc","2.5KW  Luxarc",2.5,0,33,0,40,20.5,13.5]
[0,null,"1200 W Luxarc",null,null,null,null,null,null,null,null,"1200 W Luxarc","1200 W Luxarc",1.2,0,11,0,17,5.0999999999999996,7]
[0,null,"575 W  Luxarc",null,null,null,null,null,null,null,null,"575 W  Luxarc","575 W  Luxarc",0.57499999999999996,0,6,0,11,5.0999999999999996,3.5]
[0,null,0,null,null,null,null,null,null,null,null,null,null,null,0,null,0]
[0,{"$f":"IF(SUM(B324:B366)>0,\"Qté\",0)","v":0},"HMI SOFT",{"$f":"IF(I266=\"x\",\"HMI extension\",\"Rallonge HMI\")","v":"Rallonge HMI"},"Scrim","Chim",{"$f":"IF(I1=\"x\",\"Magnetic\",\"Selfic\")","v":"Selfic"},"PG",null,null,null,"HMI SOFT","DISCHARGING LIGHTING SOFT"]
[0,{"$f":"IF(SUM(B325:B330)>0,\"Marq\",0)","v":0},"ARRI",null,null,null,null,null,null,null,null,"ARRI","ARRI"]
[0,null,"Arri X60 soft 6kw",null,null,null,null,null,null,null,null,"Arri X60 soft 6kw","Arri X60 soft 6kw",6,{"$f":"B325*N325","v":0},34.5,{"$f":"IF(G325=\"x\",(R325+P325)*B325,(IF(H325=\"x\",(T325+P325)*B325,(S325+P325)*B325)))","v":0},85,21.7,30]
[0,null,"Arri X40/25 soft 2,5/4kw",null,null,null,null,null,null,null,null,"Arri X40/25 soft 2,5/4kw","Arri X40/25 soft 2,5/4kw",4,{"$f":"B326*N326","v":0},20,{"$f":"IF(G326=\"x\",(R326+P326)*B326,(IF(H326=\"x\",(T326+P326)*B326,(S326+P326)*B326)))","v":0},40,21,15.6]
[0,null,"Arri X12 soft 1200w",null,null,null,null,null,null,null,null,"Arri X12 soft 1200w","Arri X12 soft 1200w",1.2,{"$f":"B327*N327","v":0},14.5,{"$f":"IF(G327=\"x\",(R327+P327)*B327,(IF(H327=\"x\",(T327+P327)*B327,(S327+P327)*B327)))","v":0},18,7,7]
[0,null,"Arri X5 soft 400/575w",null,null,null,null,null,null,null,null,"Arri X5 soft 400/575w","Arri X5 soft 400/575w",0.57499999999999996,{"$f":"B328*N328","v":0},7.5,{"$f":"IF(G328=\"x\",(R328+P328)*B328,(IF(H328=\"x\",(T328+P328)*B328,(S328+P328)*B328)))","v":0},10,2.6,3.5]
[0,null,"Arri X2 soft 200w",null,null,null,null,null,null,null,null,"Arri X2 soft 200w","Arri X2 soft 200w",0.2,{"$f":"B329*N329","v":0},3.2,{"$f":"IF(G329=\"x\",(R329+P329)*B329,(IF(H329=\"x\",(T329+P329)*B329,(S329+P329)*B329)))","v":0},7,2.2999999999999998,1.86]
[0,null,"00:00:00"]
[0,{"$f":"IF(SUM(B332:B342)>0,\"Marq\",0)","v":0},"DESISTI",null,null,null,null,null,null,null,null,"DESISTI","DESISTI"]
[0,null,"GOYA 6/12 KW",null,null,null,null,null,null,null,null,"GOYA 6/12 KW","GOYA 6/12 KW",12,{"$f":"B332*N332","v":0},43,{"$f":"IF(G332=\"x\",(R332+P332)*B332,(IF(H332=\"x\",(T332+P332)*B332,(S332+P332)*B332)))","v":0},137,45,51]
[0,null,"GOYA 2,5/4kw",null,null,null,null,null,null,null,null,"GOYA 2,5/4kw","GOYA 2,5/4kw",4,{"$f":"B333*N333","v":0},17,{"$f":"IF(G333=\"x\",(R333+P333)*B333,(IF(H333=\"x\",(T333+P333)*B333,(S333+P333)*B333)))","v":0},40,20.5,15.6]
[0,null,"GOYA 1200",null,null,null,null,null,null,null,null,"GOYA 1200","GOYA 1200",1.2,{"$f":"B334*N334","v":0},8.8000000000000007,{"$f":"IF(G334=\"x\",(R334+P334)*B334,(IF(H334=\"x\",(T334+P334)*B334,(S334+P334)*B334)))","v":0},17,9.5,7]
[0,null,"GOYA 575w",null,null,null,null,null,null,null,null,"GOYA 575w","GOYA 575w",0.57499999999999996,{"$f":"B335*N335","v":0},4.58,{"$f":"IF(G335=\"x\",(R335+P335)*B335,(IF(H335=\"x\",(T335+P335)*B335,(S335+P335)*B335)))","v":0},17,3.49,3.5]
[0,null,"GOYA 400",null,null,null,null,null,null,null,null,"GOYA 400","GOYA 400",0.4,{"$f":"B336*N336","v":0},3.31,{"$f":"IF(G336=\"x\",(R336+P336)*B336,(IF(H336=\"x\",(T336+P336)*B336,(S336+P336)*B336)))","v":0},17,2.59,3.5]
[0,null,"RAFFAELLO 6000 W ",null,null,null,null,null,null,null,null,"RAFFAELLO 6000 W ","RAFFAELLO 6000 W ",6,null,20]
[0,null,"RAFFAELLO 4000 W ",null,null,null,null,null,null,null,null,"RAFFAELLO 4000 W ","RAFFAELLO 4000 W ",4,null,20]
[0,null,"RAFFAELLO 2500 W ",null,null,null,null,null,null,null,null,"RAFFAELLO 2500 W ","RAFFAELLO 2500 W ",2.5,{"$f":"B339*N339","v":0},20,{"$f":"IF(G339=\"x\",(R339+P339)*B339,(IF(H339=\"x\",(T339+P339)*B339,(S339+P339)*B339)))","v":0},40,20.5,13.5]
[0,null,"RAFFAELLO 1200 W ",null,null,null,null,null,null,null,null,"RAFFAELLO 1200 W ","RAFFAELLO 1200 W ",1.2,{"$f":"B340*N340","v":0},11,{"$f":"IF(G340=\"x\",(R340+P340)*B340,(IF(H340=\"x\",(T340+P340)*B340,(S340+P340)*B340)))","v":0},17,5.0999999999999996,7]
[0,null,"RAFFAELLO 575 W ",null,null,null,null,null,null,null,null,"RAFFAELLO 575 W ","RAFFAELLO 575 W ",0.57499999999999996,{"$f":"B341*N341","v":0},9.5,{"$f":"IF(G341=\"x\",(R341+P341)*B341,(IF(H341=\"x\",(T341+P341)*B341,(S341+P341)*B341)))","v":0},17,5.0999999999999996,3.5]
[{"$f":"IF(B342>0,\"x\",0)","v":0},null,{"$f":"IF($I$1=\"x\",M342,L342)","v":"00:00:00"}]
[0,{"$f":"IF(SUM(B344:B346)>0,\"Marq\",0)","v":0},"LTM",null,null,null,null,null,null,null,null,"LTM","LTM"]
[0,null,"SOFTARC 1200 W  LTM",null,null,null,null,null,null,null,null,"SOFTARC 1200 W  LTM","SOFTARC 1200 W  LTM",1.2,{"$f":"B344*N344","v":0},13.5,{"$f":"IF(G344=\"x\",(R344+P344)*B344,(IF(H344=\"x\",(T344+P344)*B344,(S344+P344)*B344)))","v":0},17,5.0999999999999996,7]
[0,null,"SOFTARC 575  W LTM",null,null,null,null,null,null,null,null,"SOFTARC 575  W LTM","SOFTARC 575  W LTM",0.57499999999999996,0,8,{"$f":"IF(G345=\"x\",(R345+P345)*B345,(IF(H345=\"x\",(T345+P345)*B345,(S345+P345)*B345)))","v":0},17,5.0999999999999996,3.5]
[0,null,"00:00:00",null,null,null,null,null,null,null,null,null,null,null,0,null,{"$f":"IF(G346=\"x\",(R346+P346)*B346,(IF(H346=\"x\",(T346+P346)*B346,(S346+P346)*B346)))","v":0}]
[0,{"$f":"IF(SUM(B348:B353)>0,\"Marq\",0)","v":0},"QUARTZCOLOR",null,null,null,null,null,null,null,null,"QUARTZCOLOR","QUARTZCOLOR",null,0]
[0,null,"SHAULA  2500 HMI",null,null,null,null,null,null,null,null,"SHAULA  2500 HMI","SHAULA  2500 HMI",2.5,0,4.8,{"$f":"IF(G348=\"x\",(R348+P348)*B348,(IF(H348=\"x\",(T348+P348)*B348,(S348+P348)*B348)))","v":0},40,20.5,13.5]
[0,null,"SHAULA  1200 HMI",null,null,null,null,null,null,null,null,"SHAULA  1200 HMI","SHAULA  1200 HMI",1.2,0,4.8,{"$f":"IF(G349=\"x\",(R349+P349)*B349,(IF(H349=\"x\",(T349+P349)*B349,(S349+P349)*B349)))","v":0},17,5.0999999999999996,7]
[0,null,"SHAULA  575 HMI",null,null,null,null,null,null,null,null,"SHAULA  575 HMI","SHAULA  575 HMI",0.57499999999999996,0,4.8,{"$f":"IF(G350=\"x\",(R350+P350)*B350,(IF(H350=\"x\",(T350+P350)*B350,(S350+P350)*B350)))","v":0},17,5.0999999999999996,3.5]
[0,null,"00:00:00",null,null,null,null,null,null,null,null,null,null,null,0,null,{"$f":"IF(G351=\"x\",(R351+P351)*B351,(IF(H351=\"x\",(T351+P351)*B351,(S351+P351)*B351)))","v":0}]
[0,null,"KIKO POWER MOON 4KW",null,null,null,null,null,null,null,null,"KIKO POWER MOON 4KW","KIKO POWER MOON 4KW",4,0,8,{"$f":"IF(G352=\"x\",(R352+P352)*B352,(IF(H352=\"x\",(T352+P352)*B352,(S352+P352)*B352)))","v":0},85,20.5,15.6]
[0,null,"00:00:00"]
[0,{"$f":"IF(SUM(B355:B366)>0,\"Marq\",0)","v":0},"AUTRES approximation",null,null,null,null,null,null,null,null,"AUTRES approximation","OTHERS approximate"]
[0,null,"00:00:00",null,null,null,null,null,null,null,null,null,null,null,{"$f":"B355*N355","v":0}]
[0,null,"AMBIARC 2500 W ",null,null,null,null,null,null,null,null,"AMBIARC 2500 W ","AMBIARC 2500 W ",2.5,0,25,{"$f":"IF(G356=\"x\",(R356+P356)*B356,(IF(H356=\"x\",(T356+P356)*B356,(S356+P356)*B356)))","v":0},40,20.5,13.5]
[0,null,"AMBIARC 1200 W ",null,null,null,null,null,null,null,null,"AMBIARC 1200 W ","AMBIARC 1200 W ",1.2,0,12,0,17,5.0999999999999996,7]
[0,null,"AMBIARC 575 W ",null,null,null,null,null,null,null,null,"AMBIARC 575 W ","AMBIARC 575 W ",0.57499999999999996,0,9,0,11,5.0999999999999996,3.5]
[0,null,"AMBIARC 200 W",null,null,null,null,null,null,null,null,"AMBIARC 200 W","AMBIARC 200 W",0.2,0,15,0,7,2.2999999999999998,1.86]
[0,null,"TOP HAT 575 HMI ",null,null,null,null,null,null,null,null,"TOP HAT 575 HMI ","TOP HAT 575 HMI ",0.57499999999999996,0,8,0,17,5.0999999999999996,3.5]
[0,null,"AURASOFT 4000",null,null,null,null,null,null,null,null,"AURASOFT 4000","AURASOFT 4000",4,0,16,0,85,20.5,30]
[0,null,"AURASOFT 2500",null,null,null,null,null,null,null,null,"AURASOFT 2500","AURASOFT 2500",2.5,0,16,0,40,20.5,13.5]
[0,null,"AURASOFT 1200w",null,null,null,null,null,null,null,null,"AURASOFT 1200w","AURASOFT 1200w",1.2,0,14,0,17,5.0999999999999996,7]
[0,null,"SOFT 2500",null,null,null,null,null,null,null,null,"SOFT 2500","SOFT 2500",2.5,0,23,0,40,20.5,13.5]
[0,null,"SOFT 1200",null,null,null,null,null,null,null,null,"SOFT 1200","SOFT 1200",1.2,0,11,0,17,5.0999999999999996,7]
[0,null,"SOFT 575",null,null,null,null,null,null,null,null,"SOFT 575","SOFT 575",0.57499999999999996,0,9.5,0,17,5.0999999999999996,3.5]
[0,{"$f":"IF(SUM(B368:B383)>0,\"Qté\",0)","v":0},"ACCESSOIRES POUR HMI",null,null,null,null,null,null,null,null,"ACCESSOIRES POUR HMI","HMI FIXTURE ACCESSORIES"]
[0,{"$f":"IF(SUM(B369:B378)>0,\"Marq\",0)","v":0},"K5600",null,null,null,null,null,null,null,null,"K5600","K5600"]
[0,null,"SPACE BEAM ALPHA 4",null,null,null,null,null,null,null,null,"SPACE BEAM ALPHA 4","SPACE BEAM ALPHA 4",null,{"$f":"B369*N369","v":0},null,{"$f":"P369*B369","v":0}]
[0,null,"SPACE LIGHT ALPHA 4",null,null,null,null,null,null,null,null,"SPACE LIGHT ALPHA 4","SPACE LIGHT ALPHA 4",null,0,null,0]
[0,null,"BIG EYE POUR JOKER BUG",null,null,null,null,null,null,null,null,"BIG EYE POUR JOKER BUG","BIG EYE POUR JOKER BUG",null,0,null,0]
[0,null,"SOFT TUBE 200",null,null,null,null,null,null,null,null,"SOFT TUBE 200","SOFT TUBE 200",null,0,null,0]
[0,null,"SOFT TUBE 400",null,null,null,null,null,null,null,null,"SOFT TUBE 400","SOFT TUBE 400",null,0,null,0]
[0,null,"SOFT TUBE 800",null,null,null,null,null,null,null,null,"SOFT TUBE 800","SOFT TUBE 800",null,0,null,0]
[0,null,"MULTI BUG SPEED RING",null,null,null,null,null,null,null,null,"MULTI BUG SPEED RING","MULTI BUG SPEED RING",null,0,null,0]
[0,null,"BUG A BEAM 400",null,"ZOOM 25-50°",null,null,null,null,null,null,"BUG A BEAM 400","BUG A BEAM 400",null,0,null,0]
[0,null,"BUG A BEAM 800",null,"ZOOM 25-50°",null,null,null,null,null,null,"BUG A BEAM 800","BUG A BEAM 800",null,0,null,0]
[0,null,"00:00:00",null,null,null,null,null,null,null,null,null,null,null,0,null,0]
[0,{"$f":"IF(SUM(B380:B383)>0,\"Marq\",0)","v":0},"ARRI",null,null,null,null,null,null,null,null,"ARRI","ARRI",null,null,null,0]
[0,null,"ARRI 125W LIGHT PIPE (pour pocket par)",null,null,null,null,null,null,null,null,"ARRI 125W LIGHT PIPE (pour pocket par)","ARRI 125W LIGHT PIPE (pour pocket par)",null,0,null,0]
[0,null,"ARRI 200W LIGHT PIPE",null,null,null,null,null,null,null,null,"ARRI 200W LIGHT PIPE","ARRI 200W LIGHT PIPE",null,0,null,0]
[0,null,"ARRI 400W LIGHT PIPE",null,null,null,null,null,null,null,null,"ARRI 400W LIGHT PIPE","ARRI 400W LIGHT PIPE",null,0,null,0]
[0,null,"ARRI LIQUIDE LIGHT TUBE 1m50",null,null,null,null,null,null,null,null,"ARRI LIQUIDE LIGHT TUBE 1m50","ARRI LIQUIDE LIGHT TUBE 1m50",null,0,null,0]
[0,{"$f":"IF(SUM(B385:B396)>0,\"Qté\",0)","v":0},"BALAST POWERGEMS","DMX",null,null,null,null,null,null,null,"BALAST POWERGEMS","POWERGEMS BALAST"]
[0,null,"POWERGEMS 200w",null,null,null,null,null,null,null,null,"POWERGEMS 200w","POWERGEMS 200w",null,{"$f":"B385*N385","v":0},null,{"$f":"T385*B385","v":0},null,null,1.86]
[0,null,"POWERGEMS 400/575w",null,null,null,null,null,null,null,null,"POWERGEMS 400/575w","POWERGEMS 400/575w",null,0,null,0,null,null,3.5]
[0,null,"POWERGEMS 575w",null,null,null,null,null,null,null,null,"POWERGEMS 575w","POWERGEMS 575w",null,0,null,0,null,null,3.5]
[0,null,"POWERGEMS 575/1200w ",null,null,null,null,null,null,null,null,"POWERGEMS 575/1200w ","POWERGEMS 575/1200w",null,0,null,0,null,null,7]
[0,null,"POWERGEMS 575/1200/ 1800W",null,null,null,null,null,null,null,null,"POWERGEMS 575/1200/ 1800W","POWERGEMS 575/1200/ 1800W",null,0,null,0,null,null,7.5]
[0,null,"POWERGEMS 1,2/2,5kw ",null,null,null,null,null,null,null,null,"POWERGEMS 1,2/2,5kw ","POWERGEMS 1,2/2,5kw ",null,0,null,0,null,null,13.5]
[0,null,"POWERGEMS 2,5/4kw ",null,null,null,null,null,null,null,null,"POWERGEMS 2,5/4kw ","POWERGEMS 2,5/4kw ",null,0,null,0,null,null,15.6]
[0,null,"POWERGEMS 4/6kw ",null,null,null,null,null,null,null,null,"POWERGEMS 4/6kw ","POWERGEMS 4/6kw ",null,0,null,0,null,null,30]
[0,null,"POWERGEMS 6/12kw ",null,null,null,null,null,null,null,null,"POWERGEMS 6/12kw ","POWERGEMS 6/12kw ",null,0,null,0,null,null,51]
[0,null,"POWERGEMS 12/18kw ",null,null,null,null,null,null,null,null,"POWERGEMS 12/18kw ","POWERGEMS 12/18kw",null,0,null,0,null,null,55]
[0,null,"POWERGEMS 6/12/18kw ",null,null,null,null,null,null,null,null,"POWERGEMS 6/12/18kw ","POWERGEMS 6/12/18kw ",null,0,null,0,null,null,55]
[0,null,"00:00:00"]
[{"$f":"IF(B397>0,\"x\",0)","v":0},{"$f":"IF(SUM(B398:B459)>0,\"Qté\",0)","v":0},{"$f":"IF($I$1=\"x\",M397,L397)","v":"SPECIAL"},{"$f":"IF(I364=\"x\",\"extension\",\"Rallonge\")","v":"Rallonge"},"Scrim","Chim",{"$f":"IF(I1=\"x\",\"Magnetic\",\"Selfic\")","v":"Selfic"},"PG",null,null,null,"SPECIAL"," LIGHTING SPECIAL"]
[0,null,"XENON 7KW ",null,null,null,null,null,null,null,null,"XENON 7KW ","XENON 7KW ",7,{"$f":"B398*N398","v":0},77,{"$f":"IF(G398=\"x\",(S398+P398)*B398,(R398+P398)*B398)","v":0},null,80]
[0,null,"XENON 4 KW ",null,null,null,null,null,null,null,null,"XENON 4 KW ","XENON 4 KW ",4,0,65,0,null,70]
[0,null,"ARC 225",null,null,null,null,null,null,null,null,"ARC 225","BRUTE 225A DC",null,0,null,0]
[0,null,"SOFTSUN 100 KW XENON",null,null,null,null,null,null,null,null,"SOFTSUN 100 KW XENON","SOFTSUN100 KW XENON",100,0,145,0,null,200,null,null,null,null,null,null,"http://www.luminyscorp.com/pdf/softsun/SoftSonBrch.pdf"]
[0,null,"SOFTSUN 50 KW XENON",null,null,null,null,null,null,null,null,"SOFTSUN 50 KW XENON","SOFTSUN50 KW XENON",50,0,95,0,null,200,null,null,null,null,null,null,"http://www.luminyscorp.com/pdf/softsun/SoftSonBrch.pdf"]
[0,null,"SOFTSUN 3.3 KW XENON",null,null,null,null,null,null,null,null,"SOFTSUN 3.3 KW XENON","SOFTSUN3.3 KW XENON",4,0,11,0,null,13,null,null,null,null,null,null,"http://www.luminyscorp.com/pdf/softsun/SoftSonBrch.pdf"]
[0,null,"SOFTSUN 3,6KW CYLINDERLIGHT XENON",null,null,null,null,null,null,null,null,"SOFTSUN 3,6KW CYLINDERLIGHT XENON","SOFTSUN 3,6KW CYLINDERLIGHT XENON",4,0,9,0,null,13,null,null,null,null,null,null,"http://www.luminyscorp.com/pdf/softsun/SoftSonBrch.pdf"]
[0,null,"SOFTSUN 3,5KW PARABOLIC XENON",null,null,null,null,null,null,null,null,"SOFTSUN 3,5KW PARABOLIC XENON","SOFTSUN 3,5KW PARABOLIC XENON",4,0,9,0,null,13,null,null,null,null,null,null,"http://www.luminyscorp.com/pdf/softsun/SoftSonBrch.pdf"]
[0,null,"MOLE BEAM 12KW",null,null,null,null,null,null,null,null,"MOLE BEAM 12KW","MOLE BEAM 12KW",12,0,null,0,137,44.9,51]
[0,null,"MÔLE BEAM 2,5/4Kw",null,null,null,null,null,null,null,null,"MÔLE BEAM 2,5/4Kw","MÔLE BEAM 4Kw",4,0,13,0,85,21.5,15.6]
[0,null,"MÔLE BEAM 1,2Kw",null,null,null,null,null,null,null,null,"MÔLE BEAM 1,2Kw","MÔLE BEAM 2.5Kw",2.5,0,13,0,40,18,13.5]
[0,null,"BALLON HELIUM 2.5KW HMI",null,null,null,null,null,null,null,null,"BALLON HELIUM 2.5KW HMI","HELIUM BALLOON 2.5KW HMI",2.5,0,null,0,40,18,13.5]
[0,null,"BALLON HELIUM 1.2KW HMI",null,null,null,null,null,null,null,null,"BALLON HELIUM 1.2KW HMI","HELIUM BALLOON 1.2KW HMI",1.2,0,null,0,17,5.0999999999999996,7]
[0,null,"SQUARRED BALLOON 12 x 12",null,null,null,null,null,null,null,null,"SQUARRED BALLOON 12 x 12","SQUARRED BALLOON 12 x 12",0.7,0,null,0,12,4.4000000000000004]
[{"$f":"IF(B412>0,\"x\",0)","v":0},null,"LIGHTING STRIKE 1 MEGA WATT",null,null,null,null,null,null,null,null,"LIGHTING STRIKE 1 MEGA WATT","LIGHTING STRIKE 1 MEGA WATT",null,0,null,0,null,null,null,null,null,null,null,null,"http://www.luminyscorp.com/pdf/lightningstrike/LightningStrikes-Brochure.pdf"]
[0,null,"LIGHTING STRIKE 500K",null,null,null,null,null,null,null,null,"LIGHTING STRIKE 500K","LIGHTING STRIKE 500K",500,0,29,0,null,80,null,null,null,null,null,null,"http://www.luminyscorp.com/pdf/lightningstrike/LightningStrikes-Brochure.pdf"]
[0,null,"LIGHTING STRIKE 250K",null,null,null,null,null,null,null,null,"LIGHTING STRIKE 250K","LIGHTING STRIKE 250K",250,0,25,0,null,45,null,null,null,null,null,null,"http://www.luminyscorp.com/pdf/lightningstrike/LightningStrikes-Brochure.pdf"]
[0,null,"LIGHTING STRIKE 70K",null,null,null,null,null,null,null,null,"LIGHTING STRIKE 70K","LIGHTING STRIKE 70K",70,0,15,0,null,25,null,null,null,null,null,null,"http://www.luminyscorp.com/pdf/lightningstrike/LightningStrikes-Brochure.pdf"]
[0,null,"LIGHTING STRIKE 40K",null,null,null,null,null,null,null,null,"LIGHTING STRIKE 40K","LIGHTING STRIKE 40K",40,0,14,0,null,20,null,null,null,null,null,null,"http://www.luminyscorp.com/pdf/lightningstrike/LightningStrikes-Brochure.pdf"]
[0,null,"LIGHTING STRIKE 25K",null,null,null,null,null,null,null,null,"LIGHTING STRIKE 25K","LIGHTING STRIKE 25K",25,0,11,0,null,20,null,null,null,null,null,null,"http://www.luminyscorp.com/pdf/lightningstrike/LightningStrikes-Brochure.pdf"]
[0,null,"LUMINYS LAB LIGHT 30K",null,null,null,null,null,null,null,null,"LUMINYS LAB LIGHT 30K","LUMINYS LAB LIGHT 30K",30,0,15,0,null,280]
[0,null,"GAFF AIR 800 HMI",null,null,null,null,null,null,null,null,"GAFF AIR 800 HMI","GAFF AIR 800 HMI",0.8,0,null,0,12,4.4000000000000004]
[0,null,"GAFF AIR1200 HMI",null,null,null,null,null,null,null,null,"GAFF AIR1200 HMI","GAFF AIR1200 HMI",1.2,0,null,{"$f":"IF(G420=\"x\",(R420+P420)*B420,(IF(H420=\"x\",(T420+P420)*B420,(S420+P420)*B420)))","v":0},17,5.0999999999999996,7]
[0,null,"BAG-O-LIGHT 6Kw",null,null,null,null,null,null,null,null,"BAG-O-LIGHT 6Kw","BAG-O-LIGHT 6Kw",6,0,null,{"$f":"IF(G421=\"x\",(R421+P421)*B421,(IF(H421=\"x\",(T421+P421)*B421,(S421+P421)*B421)))","v":0},85,21.7,30]
[0,null,"BAG-O-LIGHT 4Kw",null,null,null,null,null,null,null,null,"BAG-O-LIGHT 4Kw","BAG-O-LIGHT 4Kw",4,0,null,{"$f":"IF(G422=\"x\",(R422+P422)*B422,(IF(H422=\"x\",(T422+P422)*B422,(S422+P422)*B422)))","v":0},40,21,15.6]
[0,null,"DAYCAM 18 W",null,null,null,null,null,null,null,null,"DAYCAM 18 W","DAYCAM 18 W",1.8000000000000002E-2,0,0.5,{"$f":"IF(G423=\"x\",(S423+P423)*B423,(R423+P423)*B423)","v":0}]
[0,null,"CINE 24 W",null,null,null,null,null,null,null,null,"CINE 24 W","CINE 24 W",2.4E-2,0,0.9,{"$f":"IF(G424=\"x\",(S424+P424)*B424,(R424+P424)*B424)","v":0}]
[0,{"$f":"IF(SUM(B426:B429)>0,\"Qté\",0)","v":0},"PROJECTEUR HAUTE VITESSE",null,null,null,null,null,null,null,null,"PROJECTEUR HAUTE VITESSE","HIGH SPEED LUMINAIRES",null,0]
[0,null,"POWER GEM LU400P 4KW PAR",null,null,null,null,null,null,null,null,"POWER GEM LU400P 4KW PAR","POWER GEM LU400P 4KW PAR",8,0,19.5,{"$f":"IF(G426=\"x\",(R426+P426)*B426,(IF(H426=\"x\",(T426+P426)*B426,(S426+P426)*B426)))","v":0},null,30,30]
[0,null,"POWERGEMS SOFT LIGHT 4KW LU400FS",null,null,null,null,null,null,null,null,"POWERGEMS SOFT LIGHT 4KW LU400FS","POWERGEMS SOFT LIGHT 4KW LU400FS",8,0,21.5,{"$f":"IF(G427=\"x\",(R427+P427)*B427,(IF(H427=\"x\",(T427+P427)*B427,(S427+P427)*B427)))","v":0},null,30,30]
[0,null,"POWERGEMS SOFT LIGHT 4KW LU400FA",null,null,null,null,null,null,null,null,"POWERGEMS SOFT LIGHT 4KW LU400FA","POWERGEMS SOFT LIGHT 4KW LU400FA",8,0,21.5,{"$f":"IF(G428=\"x\",(R428+P428)*B428,(IF(H428=\"x\",(T428+P428)*B428,(S428+P428)*B428)))","v":0},null,30,30]
[0,null,"00:00:00"]
[0,{"$f":"IF(SUM(B431:B438)>0,\"Qté\",0)","v":0},"VAPEUR DE SODIUM",null,null,null,null,null,null,null,null,"VAPEUR DE SODIUM","SODIUM VAPOR"]
[0,null,"SODIUM 50W",null,null,null,null,null,null,null,null,"SODIUM 50W","SODIUM 50W",0.05,{"$f":"B431*N431","v":0},null,{"$f":"IF(G431=\"x\",(R431+P431)*B431,(IF(H431=\"x\",(T431+P431)*B431,(S431+P431)*B431)))","v":0}]
[0,null,"SODIUM 150W",null,null,null,null,null,null,null,null,"SODIUM 150W","SODIUM 150W",0.15,0,null,0]
[0,null,"SODIUM 1000W",null,null,null,null,null,null,null,null,"SODIUM 1000W","SODIUM 1000W",1,0,null,0]
[0,null,"BAC SODIUM 400W",null,null,null,null,null,null,null,null,"BAC SODIUM 400W","STREET SODIUM 400W",0.4,0,null,0]
[0,null,"BAC MERCURE 400W",null,null,null,null,null,null,null,null,"BAC MERCURE 400W","STREET MERCURY 400W",0.4,0,null,0]
[0,null,"BAC SODIUM 1000W",null,null,null,null,null,null,null,null,"BAC SODIUM 1000W","STREET SODIUM 1000W",1,0,null,0]
[0,null,null,null,null,null,null,null,null,null,null,null,null,null,null,null,0]
[0,null,null,null,null,null,null,null,null,null,null,null,null,null,null,null,0]
[0,{"$f":"IF(SUM(B440:B459)>0,\"Marq\",0)","v":0},{"$f":"IF($I$1=\"x\",M439,L439)","v":"BRIEZE LIGHT"},null,null,null,null,null,null,null,null,"BRIEZE LIGHT","BRIEZE LIGHT"]
[0,null,"BRIEZE LIGHT FOCUS 44",null,null,null,null,null,null,null,null,"BRIEZE LIGHT FOCUS 44","BRIEZE LIGHT FOCUS 44",1.2,{"$f":"B440*N440","v":0},5.2,{"$f":"IF(G440=\"x\",(R440+P440)*B440,(IF(H440=\"x\",(T440+P440)*B440,(S440+P440)*B440)))","v":0},null,13.5,null,null,null,null,null,null,"http://www.solalights.com/light"]
[0,null,"BRIEZE LIGHT FOCUS 77 1200w",null,null,null,null,null,null,null,null,"BRIEZE LIGHT FOCUS 77 1200w","BRIEZE LIGHT FOCUS 77 1200w",1.2,0,7.8,0,null,13.5,null,null,null,null,null,null,"http://www.solalights.com/light"]
[0,null,"BRIEZE LIGHT FOCUS 100 1200w",null,null,null,null,null,null,null,null,"BRIEZE LIGHT FOCUS 100 1200w","BRIEZE LIGHT FOCUS 100 1200w",1.2,0,7.8,0,null,13.5,null,null,null,null,null,null,"http://www.solalights.com/light"]
[0,null,"BRIEZE LIGHT FOCUS 100 2500W",null,null,null,null,null,null,null,null,"BRIEZE LIGHT FOCUS 100 2500W","BRIEZE LIGHT FOCUS 100 2500W",2.5,0,7.8,0,null,13.5,null,null,null,null,null,null,"http://www.solalights.com/light"]
[0,null,"BRIEZE LIGHT FOCUS 140 1200W",null,null,null,null,null,null,null,null,"BRIEZE LIGHT FOCUS 140 1200W","BRIEZE LIGHT FOCUS 140 1200W",1.2,0,8.1999999999999993,0,null,13.5,null,null,null,null,null,null,"http://www.solalights.com/light"]
[0,null,"BRIEZE LIGHT FOCUS 140 2500W",null,null,null,null,null,null,null,null,"BRIEZE LIGHT FOCUS 140 2500W","BRIEZE LIGHT FOCUS 140 2500W",2.5,0,8.1999999999999993,0,null,13.5,null,null,null,null,null,null,"http://www.solalights.com/light"]
[0,null,"BRIEZE LIGHT FOCUS 180 1200W",null,null,null,null,null,null,null,null,"BRIEZE LIGHT FOCUS 180 1200W","BRIEZE LIGHT FOCUS 180 1200W",1.2,0,9.4,0,null,13.5,null,null,null,null,null,null,"http://www.solalights.com/light"]
[0,null,"BRIEZE LIGHT FOCUS 180 2500W",null,null,null,null,null,null,null,null,"BRIEZE LIGHT FOCUS 180 2500W","BRIEZE LIGHT FOCUS 180 2500W",2.5,0,9.4,0,null,15.6,null,null,null,null,null,null,"http://www.solalights.com/light"]
[0,null,"BRIEZE LIGHT FOCUS 180 4000W",null,null,null,null,null,null,null,null,"BRIEZE LIGHT FOCUS 180 4000W","BRIEZE LIGHT FOCUS 180 4000W",4,0,9.4,0,null,15.6,null,null,null,null,null,null,"http://www.solalights.com/light"]
[0,null,"BRIEZE LIGHT FOCUS 220 1200W",null,null,null,null,null,null,null,null,"BRIEZE LIGHT FOCUS 220 1200W","BRIEZE LIGHT FOCUS 220 1200W",1.2,0,10.4,0,null,13.5,null,null,null,null,null,null,"http://www.solalights.com/light"]
[0,null,"BRIEZE LIGHT FOCUS 220 2500W",null,null,null,null,null,null,null,null,"BRIEZE LIGHT FOCUS 220 2500W","BRIEZE LIGHT FOCUS 220 2500W",2.5,0,10.4,0,null,15.6,null,null,null,null,null,null,"http://www.solalights.com/light"]
[0,null,"BRIEZE LIGHT FOCUS 220 4000W",null,null,null,null,null,null,null,null,"BRIEZE LIGHT FOCUS 220 4000W","BRIEZE LIGHT FOCUS 220 4000W",4,0,10.4,0,null,15.6,null,null,null,null,null,null,"http://www.solalights.com/light"]
[0,null,"BRIEZE LIGHT FOCUS 330 1200W",null,null,null,null,null,null,null,null,"BRIEZE LIGHT FOCUS 330 1200W","BRIEZE LIGHT FOCUS 330 1200W",1.2,0,16.399999999999999,0,null,13.5,null,null,null,null,null,null,"http://www.solalights.com/light"]
[0,null,"BRIEZE LIGHT FOCUS 330 2500W",null,null,null,null,null,null,null,null,"BRIEZE LIGHT FOCUS 330 2500W","BRIEZE LIGHT FOCUS 330 2500W",2.5,0,16.399999999999999,0,null,15.6,null,null,null,null,null,null,"http://www.solalights.com/light"]
[0,null,"BRIEZE LIGHT FOCUS 330 4000W",null,null,null,null,null,null,null,null,"BRIEZE LIGHT FOCUS 330 4000W","BRIEZE LIGHT FOCUS 330 4000W",4,0,16.399999999999999,0,null,15.6,null,null,null,null,null,null,"http://www.solalights.com/light"]
[{"$f":"IF(B455>0,\"x\",0)","v":0},null,"BRIEZE LIGHT DOWN-LIGHT 1200W",null,null,null,null,null,null,null,null,"BRIEZE LIGHT DOWN-LIGHT 1200W","BRIEZE LIGHT DOWN-LIGHT 1200W",1.2,0,6.1,0,null,13.5,null,null,null,null,null,null,"http://www.solalights.com/light"]
[0,null,"BRIEZE LIGHT DOWN-LIGHT 2500W",null,null,null,null,null,null,null,null,"BRIEZE LIGHT DOWN-LIGHT 2500W","BRIEZE LIGHT DOWN-LIGHT 2500W",2.5,0,6.1,0,null,15.6,null,null,null,null,null,null,"http://www.solalights.com/light"]
[0,null,"BRIEZE LIGHT SUN 1200W",null,null,null,null,null,null,null,null,"BRIEZE LIGHT SUN 1200W","BRIEZE LIGHT SUN 1200W",1.2,0,6.7,0,null,13.5,null,null,null,null,null,null,"http://www.solalights.com/light"]
[0,null,"BRIEZE LIGHT SUN 2500W",null,null,null,null,null,null,null,null,"BRIEZE LIGHT SUN 2500W","BRIEZE LIGHT SUN 2500W",2.5,0,6.7,0,null,13.5,null,null,null,null,null,null,"http://www.solalights.com/light"]
[0,null,"00:00:00",null,null,null,null,null,null,null,null,null,null,null,0,null,0]
[null,{"$f":"IF(SUM(B461:B615)>0,\"Type\",0)","v":0},"TUNGSTENE","Cone","Scrim","Chim",null,null,null,null,null,"TUNGSTENE","TUNGSTEN"]
[0,{"$f":"IF(SUM(B462:B463)>0,\"Qté\",0)","v":0},"CINEPAR TUNGSTEN",null,"Scrim","Chim",null,null,null,null,null,"CINEPAR TUNGSTEN"]
[0,null,"MOLE CINEPAR 5KW",null,null,null,null,null,null,null,null,"MOLE CINEPAR 5KW","MOLE CINEPAR 5KW",5,{"$f":"B462*N462","v":0},null,{"$f":"P462*B462","v":0}]
[0,null,"K5600 BUG 2KW",null,null,null,null,null,null,null,null,"K5600 BUG 2KW","K5600 BUG 2KW",2,{"$f":"B463*N463","v":0},null,{"$f":"P463*B463","v":0}]
[0,{"$f":"IF(SUM(B465:B502)>0,\"Qté\",0)","v":0},"PROJECTEUR FRESNEL","Cone","Scrim","Chim",null,null,null,null,null,"PROJECTEUR FRESNEL","FRESNEL LIGHTING",null,null,null,null,null,null,null,null,null,null,null,"Taille lentille"]
[0,null,"SUPER LEO 20-24KW",null,null,null,null,null,null,null,null,"SUPER LEO 20-24KW","SUPER LEO 20-24KW",24,{"$f":"B465*N465","v":0},56,{"$f":"P465*B465","v":0}]
[0,null,"ALTMAN",null,null,null,null,null,null,null,null,"ALTMAN","ALTMAN",null,0,null,0]
[0,null,"Altman 300L",null,null,null,null,null,null,null,null,"Altman 300L","Altman 300L",null,0,null,0]
[0,null,"Altman 650L",null,null,null,null,null,null,null,null,"Altman 650L","Altman 650L",null,0,null,0]
[0,null,"Altman 1000L",null,null,null,null,null,null,null,null,"Altman 1000L","Altman 1000L",null,0,null,0]
[0,null,"Altman Studio 1K",null,null,null,null,null,null,null,null,"Altman Studio 1K","Altman Studio 1K",null,0,null,0]
[0,null,{"$f":"IF($I$1=\"x\",M471,L471)","v":"Altman 2000L"},null,null,null,null,null,null,null,null,"Altman 2000L","Altman 2000L",null,0,null,0]
[0,null,"Altman Studio 2K",null,null,null,null,null,null,null,null,"Altman Studio 2K","Altman Studio 2K",null,0,null,0]
[0,null,"Altman 5000L",null,null,null,null,null,null,null,null,"Altman 5000L","Altman 5000L",null,0,null,0]
[0,null,"Altman Studio 5K",null,null,null,null,null,null,null,null,"Altman Studio 5K","Altman Studio 5K",null,0,null,0]
[0,null,"ARRI",null,null,null,null,null,null,null,null,"ARRI","ARRI",null,0,null,0]
[0,null,"Arri 300W",null,null,null,null,null,null,null,null,"Arri 300W","Arri 300W",null,0,null,0]
[0,null,"Arri 650w",null,null,null,null,null,null,null,null,"Arri 650w","Arri 650w",null,0,null,0]
[0,null,"Arri 1000w",null,null,null,null,null,null,null,null,"Arri 1000w","Arri 1000w",null,0,null,0]
[0,null,"Arri Studio 1K",null,null,null,null,null,null,null,null,"Arri Studio 1K","Arri Studio 1K",null,0,null,0]
[0,null,"Arri 2000w",null,null,null,null,null,null,null,null,"Arri 2000w","Arri 2000w",null,0,null,0]
[0,null,"Arri Studio 2K",null,null,null,null,null,null,null,null,"Arri Studio 2K","Arri Studio 2K",null,0,null,0]
[0,null,"Arri 5000w",null,null,null,null,null,null,null,null,"Arri 5000w","Arri 5000w",null,0,null,0]
[0,null,"Arri Studio 5K",null,null,null,null,null,null,null,null,"Arri Studio 5K","Arri Studio 5K",null,0,null,0]
[0,null,"Arri Studio 10/12k",null,null,null,null,null,null,null,null,"Arri Studio 10/12k","Arri Studio 10/12k",null,0,null,0]
[0,null,"00:00:00",null,null,null,null,null,null,null,null,null,null,null,0,null,0]
[0,null,"00:00:00",null,null,null,null,null,null,null,null,null,null,null,0,null,0]
[0,null,"LT 20 KW +Télécom+Grada",null,null,null,null,null,null,null,null,"LT 20 KW +Télécom+Grada","LT 20 KW +Remote cable+Dimmer",20,0,66,0]
[0,null,"SUPER LEO 10-12KW",null,null,null,null,null,null,null,null,"SUPER LEO 10-12KW","SUPER LEO 10-12KW",12,0,44.3,0]
[0,null,"PICOLO 10/12KW",null,null,null,null,null,null,null,null,"PICOLO 10/12KW","PICOLO 10/12KW",12,0,28.9,0]
[0,null,"VEGA 10 KW ",null,null,null,null,null,null,null,null,"VEGA 10 KW ","VEGA 10 KW ",10,0,22,0]
[0,null,"LEONARDO 5KW",null,null,null,null,null,null,null,null,"LEONARDO 5KW","LEONARDO 5KW",5,0,null,0]
[0,null,"FRESNEL 5 KW SF",null,null,null,null,null,null,null,null,"FRESNEL 5 KW SF","FRESNEL 5 KW SF",5,0,14,0]
[0,null,"POLLUX 2,5 /  5 KW ",null,null,null,null,null,null,null,null,"POLLUX 2,5 /  5 KW ","POLLUX 2,5 /  5 KW ",5,0,14,0]
[0,null,"FRESNEL 2 KW SF",null,null,null,null,null,null,null,null,"FRESNEL 2 KW SF","FRESNEL 2 KW SF",2,0,9,0]
[0,null,"CASTOR 1,2 /  2,5 KW",null,null,null,null,null,null,null,null,"CASTOR 1,2 /  2,5 KW","CASTOR 1,2 /  2,5 KW",2.5,0,12,0]
[0,null,"00:00:00",null,null,null,null,null,null,null,null,null,null,null,0,null,0]
[0,null,"FRESNEL 1000 W",null,null,null,null,null,null,null,null,"FRESNEL 1000 W","FRESNEL 1000 W",1,0,6,0]
[0,null,"FRESNEL 650 W",null,null,null,null,null,null,null,null,"FRESNEL 650 W","FRESNEL 650 W",0.65,0,5,0]
[0,null,"FRESNEL 500 W",null,null,null,null,null,null,null,null,"FRESNEL 500 W","FRESNEL 500 W",0.5,0,1.5,0]
[0,null,"MAGIS 500 W",null,null,null,null,null,null,null,null,"MAGIS 500 W","MAGIS 500 W",0.5,0,6,0]
[0,null,"FRESNEL 300 W",null,null,null,null,null,null,null,null,"FRESNEL 300 W","FRESNEL 300 W",0.3,0,1.5,0]
[0,null,"LT 150 W ",null,null,null,null,null,null,null,null,"LT 150 W ","LT 150 W ",0.15,0,1.2,0]
[0,{"$f":"IF(SUM(B504:B539)>0,\"Qté\",0)","v":0},{"$f":"IF($I$1=\"x\",M503,L503)","v":"PROJECTEUR D'AMBIANCE"},null,"Scrim","Chim",null,null,null,null,null,"PROJECTEUR D'AMBIANCE","AMBIANT LIGHTING"]
[0,null,"MANDARINE 800 W  ",null,"x","x",null,null,null,null,null,"MANDARINE 800 W  ","READHEAD 800 W  ",0.8,{"$f":"B504*N504","v":0},2,{"$f":"P504*B504","v":0}]
[0,null,"BLONDE 2 KW ",null,"x","x",null,null,null,null,null,"BLONDE 2 KW ","BLONDE 2 KW ",2,0,3.1,0]
[0,null,"QUARTZ 5KW LTM",null,null,null,null,null,null,null,null,"QUARTZ 5KW LTM","QUARTZ 5KW LTM",5,0,null,0]
[0,null,"QUARTZ 10KW LTM",null,null,null,null,null,null,null,null,"QUARTZ 10KW LTM","QUARTZ 10KW LTM",10,0,null,0]
[0,null,"PINCE BOL ",null,null,null,null,null,null,null,null,"PINCE BOL ","CLIP ON BASHER",0.5,0,1.5,0]
[0,null,"TOTALIGHT ",null,null,null,null,null,null,null,null,"TOTALIGHT ","TOTALIGHT ",1,0,null,0]
[0,null,"AMBIANCE 10 KW LTM",null,null,null,null,null,null,null,null,"AMBIANCE 10 KW LTM","AMBIANCE 10 KW LTM",10,0,13,0]
[0,null,"AMBIANCE 5 KW LTM",null,null,null,null,null,null,null,null,"AMBIANCE 5 KW LTM","AMBIANCE 5 KW LTM",5,0,12,0]
[0,null,"RENOIR 5 KW",null,null,null,null,null,null,null,null,"RENOIR 5 KW","RENOIR 5 KW",5,0,null,0]
[0,null,"AMBIANCE 2 KW LTM",null,null,null,null,null,null,null,null,"AMBIANCE 2 KW LTM","AMBIANCE 2 KW LTM",2,0,10,0]
[0,null,"SPACE LIGHT 6KW",null,null,null,null,null,null,null,null,"SPACE LIGHT 6KW","SPACE LIGHT 6KW",6,0,14,0]
[0,null,"SPACE LIGHT 4,8KW",null,null,null,null,null,null,null,null,"SPACE LIGHT 4,8KW","SPACE LIGHT 4,8KW",4.8,0,null,0]
[0,null,"SPACE LIGHT MINI 2KW",null,null,null,null,null,null,null,null,"SPACE LIGHT MINI 2KW","SPACE LIGHT MINI 2KW",2,0,6.8,0]
[0,null,"SPACE LIGHT MINI 800W",null,null,null,null,null,null,null,null,"SPACE LIGHT MINI 800W","SPACE LIGHT MINI 800W",0.8,0,null,0]
[0,null,"CYCLIODE 5 KW ",null,null,null,null,null,null,null,null,"CYCLIODE 5 KW ","CYCLIODE 5 KW ",5,0,14,0]
[{"$f":"IF(B519>0,\"x\",0)","v":0},null,"CYCLIODE 2 KW ",null,null,null,null,null,null,null,null,"CYCLIODE 2 KW ","CYCLIODE 2 KW ",2,0,8,0]
[0,null,"CYCLIODE 1250W",null,null,null,null,null,null,null,null,"CYCLIODE 1250W","CYCLIODE 1250W",1.25,0,7.3,0]
[0,null,"CYCLO MODULE 4x1250W",null,null,null,null,null,null,null,null,"CYCLO MODULE 4x1250W","CYCLO MODULE 4x1250W",5,0,null,0]
[0,null,"ARRI SOFT LIGHT 2x1250W",null,null,null,null,null,null,null,null,"ARRI SOFT LIGHT 2x1250W","ARRI SOFT LIGHT 2x1250W",2.5,0,20,0]
[0,null,"ARRI SOFT LIGHT 4x1250W",null,null,null,null,null,null,null,null,"ARRI SOFT LIGHT 4x1250W","ARRI SOFT LIGHT 4x1250W",5,0,29,0]
[0,null,"ZAPLITE 2 KW AVEC GRILLES",null,null,null,null,null,null,null,null,"ZAPLITE 2 KW AVEC GRILLES","ZAPLITE 2 KW WITH SCRIM",2,0,null,0]
[0,null,"PEPPER MOLE 1KW",null,null,null,null,null,null,null,null,"PEPPER MOLE 1KW","PEPPER",0.8,0,1.5,0]
[0,null,"SOFT 1/2 LUNE",null,null,null,null,null,null,null,null,"SOFT 1/2 LUNE","SOFT 1/2 MOON",0.8,0,17,0]
[0,null,"VALISE LOWEL 2 KW",null,null,null,null,null,null,null,null,"VALISE LOWEL 2 KW","CASE LOWEL 2 KW",2,0,null,0]
[0,null,"AURASOFT 4 KW ",null,null,null,null,null,null,null,null,"AURASOFT 4 KW ","AURASOFT 4 KW ",4,0,16,0]
[0,null,"BOTTICELLI  1,2 KW ",null,null,null,null,null,null,null,null,"BOTTICELLI  1,2 KW ","BOTTICELLI  1,2 KW ",1.2,0,9,0]
[0,null,"BOTTICELLI 1,2 / 2,5 KW ",null,null,null,null,null,null,null,null,"BOTTICELLI 1,2 / 2,5 KW ","BOTTICELLI 1,2 / 2,5 KW ",2.5,0,15,0]
[0,null,"BOTTICELLI 2,5 /  5 KW ",null,null,null,null,null,null,null,null,"BOTTICELLI 2,5 /  5 KW ","BOTTICELLI 2,5 /  5 KW ",5,0,17,0]
[0,null,"CORMORAN 500 W",null,null,null,null,null,null,null,null,"CORMORAN 500 W","CORMORAN 500 W",0.5,0,null,0]
[0,null,"GROVERLIGHT ",null,null,null,null,null,null,null,null,"GROVERLIGHT ","GROVERLIGHT ",2.5,0,null,0]
[0,null,"IRIS 1250 W ",null,null,null,null,null,null,null,null,"IRIS 1250 W ","IRIS 1250 W ",1.25,0,3.5,0]
[0,null,{"$f":"IF($I$1=\"x\",M535,L535)","v":"MINILITE"},null,null,null,null,null,null,null,null,"MINILITE","MINILITE",null,0,null,0]
[0,null,"ANTARES 2.5 KW ",null,null,null,null,null,null,null,null,"ANTARES 2.5 KW ","ANTARES 2.5 KW ",2.5,0,11,0]
[0,null,"NORTHLIGHT 2.5 KW ",null,null,null,null,null,null,null,null,"NORTHLIGHT 2.5 KW ","NORTHLIGHT 2.5 KW ",2.5,0,12,0]
[0,null,"NORTHLIGHT 5 KW ",null,null,null,null,null,null,null,null,"NORTHLIGHT 5 KW ","NORTHLIGHT 5 KW ",5,0,20,0]
[0,null,"PALLAS 1000 W ",null,null,null,null,null,null,null,null,"PALLAS 1000 W ","PALLAS 1000 W ",1,0,3,0]
[0,{"$f":"IF(SUM(B541:B577)>0,\"Qté\",0)","v":0},"PROJECTEUR SPOT","WF","WIDE","MED","NS","VNS",null,null,null,"PROJECTEUR SPOT","SPOT LIGHTING"]
[0,null,"PLAN CONVEXE 2KW",null,null,null,null,null,null,null,null,"PLAN CONVEXE 2KW","PLAN CONVEXE 2KW",2,{"$f":"B541*N541","v":0},null,{"$f":"P541*B541","v":0}]
[0,null,"RAMPE T8 110V EN SERIE",null,null,null,null,null,null,null,null,"RAMPE T8 110V EN SERIE","RAMPE T8 110V EN SERIE",5.2,0,null,{"$f":"P542*B542","v":0}]
[0,null,"DINO 24 LAMPES PAR 64",null,null,null,null,null,null,null,null,"DINO 24 LAMPES PAR 64","JUMBO 24 BULBS PAR 64",24,0,52]
[0,null,"DINO 18 LAMPES PAR 64",null,null,null,null,null,null,null,null,"DINO 18 LAMPES PAR 64","JUMBO 18 BULBS PAR 64",18,0,45]
[0,null,"DINO 16 LAMPES PAR 64 ",null,null,null,null,null,null,null,null,"DINO 16 LAMPES PAR 64 ","JUMBO 16 BULBS PAR 64 ",16,0,37,{"$f":"P545*B545","v":0}]
[0,null,"DINO 8 LAMPES PAR 64 JUM",null,null,null,null,null,null,null,null,"DINO 8 LAMPES PAR 64 JUM","JUMBO 8 BULBS PAR 64 ",8,0,15,0]
[0,null,"RUBY SEVEN",null,null,null,null,null,null,null,null,"RUBY SEVEN","RUBY SEVEN",7,0,26,0]
[0,null,"MINIBRUT 8 LAMPES ",null,null,null,null,null,null,null,null,"MINIBRUT 8 LAMPES ","MINIBRUT 8 BULBS ",5.2,0,11,0]
[0,null,"MINIBRUT 6 LAMPES ",null,null,null,null,null,null,null,null,"MINIBRUT 6 LAMPES ","MINIBRUT 6 BULBS ",3.9,0,9,0]
[0,null,"MINIBRUT 2 LAMPES ",null,null,null,null,null,null,null,null,"MINIBRUT 2 LAMPES ","MINIBRUT 2 BULBS",1.3,0,4,0]
[0,null,"MINIBRUT 6 LAMPES PAR 64",null,null,null,null,null,null,null,null,"MINIBRUT 6 LAMPES PAR 64","MINIBRUT 6 BULBS PAR 64",6,0,9,0]
[0,null,"PROJECTEUR  PAR 64 ",null,null,"X","X",null,null,null,null,"PROJECTEUR  PAR 64 ","LIGHTING  PAR 64 ",1,0,0.5,0]
[0,null,"PROJECTEUR PAR 56",null,null,null,null,null,null,null,null,"PROJECTEUR PAR 56","LIGHTING PAR 56",0.3,0,0.4,0]
[0,null,"PROJECTEUR  PAR 36 ",null,null,null,null,null,null,null,null,"PROJECTEUR  PAR 36 ","LIGHTING  PAR 36 ",0.3,0,0.4,0]
[0,null,"PROJECTEUR  PAR 30",null,null,null,null,null,null,null,null,"PROJECTEUR  PAR 30","LIGHTING  PAR 30",0.3,0,0.4,0]
[0,null,"PROJECTEUR  PAR 20",null,null,null,null,null,null,null,null,"PROJECTEUR  PAR 20","LIGHTING  PAR 20",0.3,0,0.15,0]
[0,null,"PROJECTEUR PAR 16",null,null,null,null,null,null,null,null,"PROJECTEUR PAR 16","LIGHTING PAR 16",0.3,0,0.15,0]
[0,null,"SVOBODA 18 LAMPES ",null,null,null,null,null,null,null,null,"SVOBODA 18 LAMPES ","SVOBODA 18 BULBS ",5,0,28,0]
[0,null,"SVOBODA 9 LAMPES ",null,null,null,null,null,null,null,null,"SVOBODA 9 LAMPES ","SVOBODA 9 BULBS ",2.25,0,22.8,0,null,null,null,null,null,null,null,null,"http://www.adblighting.com/files/F7041-F%20Svoboda%20folder.pdf"]
[0,null,"AIRCRAFT",null,null,null,null,null,null,null,null,"AIRCRAFT","AIRCRAFT",5,0,25,0]
[0,null,"JUPITER",null,null,null,null,null,null,null,null,"JUPITER","JUPITER",1.3,0,2,0]
[0,null,"TOPLIGHT ",null,null,null,null,null,null,null,null,"TOPLIGHT ","TOPLIGHT ",6,0,20,0]
[0,null,"MAXIBRUT 8 LAMPES PAR 64 ",null,null,null,null,null,null,null,null,"MAXIBRUT 8 LAMPES PAR 64 ","MAXIBRUT 8 BULBS PAR 64 ",8,0,15,0]
[0,null,"MAXIBRUT 9 LAMPES 1/4Z  DXX",null,null,null,null,null,null,null,null,"MAXIBRUT 9 LAMPES 1/4Z  DXX","MAXIBRUT 9 BULBS 1/4Z  DXX",9,0,19,0]
[0,null,"MICROBRUT 8 LAMPES 110V/250W ",null,null,null,null,null,null,null,null,"MICROBRUT 8 LAMPES 110V/250W ","MICROBRUT 8 BULBS 110V/250W ",2,0,null,0]
[0,null,"MICROBRUT 6 LAMPES 110V/250W ",null,null,null,null,null,null,null,null,"MICROBRUT 6 LAMPES 110V/250W ","MICROBRUT 6 BULBS 110V/250W ",1.5,0,null,0]
[0,null,{"$f":"IF($I$1=\"x\",M567,L567)","v":"MICROBRUT 4 LAMPES 110V/250W "},null,null,null,null,null,null,null,null,"MICROBRUT 4 LAMPES 110V/250W ","MICROBRUT 4 BULBS 110V/250W ",1,0,null,0]
[0,null,"MICROBRUT 2 LAMPES 110V/250W ",null,null,null,null,null,null,null,null,"MICROBRUT 2 LAMPES 110V/250W ","MICROBRUT 2 BULBS 110V/250W ",0.5,0,null,0]
[0,null,"1/8 WINDYLIGHT 48L",null,null,null,null,null,null,null,null,"1/8 WINDYLIGHT 48L","1/8 WINDYLIGHT 48L",31.5,0,36,0]
[0,null,"1/4 WINDYLIGHT 96L",null,null,null,null,null,null,null,null,"1/4 WINDYLIGHT 96L","1/4 WINDYLIGHT 96L",63,0,null,0]
[0,null,"1/2 WINDYLIGHT 192L",null,null,null,null,null,null,null,null,"1/2 WINDYLIGHT 192L","1/2 WINDYLIGHT 192L",126,0,null,0]
[0,null,"WINDYLIGHT 384L ",null,null,null,null,null,null,null,null,"WINDYLIGHT 384L ","WINDYLIGHT 384L ",256,0,null,0]
[0,null,"TRANSFO COLORTRAN ",null,null,null,null,null,null,null,null,"TRANSFO COLORTRAN ","TRANSFO COLORTRAN ",null,0,null,0]
[0,null,"MOLE BEAM 20KW",null,null,null,null,null,null,null,null,"MOLE BEAM 20KW","MOLE BEAM 20KW",20,0,null,0]
[0,null,"MOLE BEAM 10KW",null,null,null,null,null,null,null,null,"MOLE BEAM 10KW","MOLE BEAM 10KW",10,0,null,0]
[0,null,"MOLE BEAM 5KW",null,null,null,null,null,null,null,null,"MOLE BEAM 5KW","MOLE BEAM 5KW",5,0,35,0]
[0,null,"MOLE BEAM 2KW",null,null,null,null,null,null,null,null,"MOLE BEAM 2KW","MOLE BEAM 2KW",2,0,21,0]
[0,{"$f":"IF(SUM(B579:B586)>0,\"Qté\",0)","v":0},"PROJECTEUR SPOT SUITE",null,"3K2K","4K2K",null,null,null,null,null,"PROJECTEUR SPOT SUITE","SPOT LIGHTING CON'T"]
[0,null,"SLIMLIGHT MINI SLIM 9",null,null,null,null,null,null,null,null,"SLIMLIGHT MINI SLIM 9","SLIM LIGHT MS9",0.45,{"$f":"B579*N579","v":0},null,{"$f":"P579*B579","v":0}]
[0,null,"SLIMLIGHT MINI SLIM 18",null,null,null,null,null,null,null,null,"SLIMLIGHT MINI SLIM 18","SLIM LIGHT MS18",0.9,0,null,0]
[0,null,"SLIMLIGHT SL18",null,null,null,null,null,null,null,null,"SLIMLIGHT SL18","SLIM LIGHT SL18",0.9,0,null,0]
[0,null,"SLIMLIGHT SL36",null,null,null,null,null,null,null,null,"SLIMLIGHT SL36","SLIM LIGHT SL36",1.8,0,null,0]
[{"$f":"IF(B583>0,\"x\",0)","v":0},null,"SLIMLIGHT SSL36",null,null,null,null,null,null,null,null,"SLIMLIGHT SSL36","SLIM LIGHT SSL36",1.8,0,null,0]
[0,null,"SLIMRACK 7200W",null,null,null,null,null,null,null,null,"SLIMRACK 7200W","SLIMRACK 7200W",7.2,0,null,0]
[0,null,"CINEKING 1000 W ",null,null,null,null,null,null,null,null,"CINEKING 1000 W ","CINEKING 1000 W ",1,0,1.5,0]
[0,null,"PLAN CONVEXE 1KW",null,null,null,null,null,null,null,null,"PLAN CONVEXE 1KW",null,1,0,null,0]
[0,{"$f":"IF(SUM(B588:B597)>0,\"Qté\",0)","v":0},"BREZE LIGHT TUNSTEN",null,null,null,null,null,null,null,null,"BREZE LIGHT TUNSTEN","TUNGSTEN BRIEZE LIGHT"]
[0,null,"BRIEZE LIGHT FOCUS 44",null,null,null,null,null,null,null,null,"BRIEZE LIGHT FOCUS 44","BRIEZE LIGHT FOCUS 44",2,{"$f":"B588*N588","v":0},5.2,{"$f":"P588*B588","v":0},null,null,null,null,null,null,null,null,"http://www.solalights.com/light"]
[0,null,"BRIEZE LIGHT FOCUS 77",null,null,null,null,null,null,null,null,"BRIEZE LIGHT FOCUS 77","BRIEZE LIGHT FOCUS 77",2,{"$f":"B589*N589","v":0},7.8,{"$f":"P589*B589","v":0},null,null,null,null,null,null,null,null,"http://www.solalights.com/light"]
[0,null,"00:00:00",null,null,null,null,null,null,null,null,null,null,null,null,null,null,null,null,null,null,null,null,null,null,"http://www.solalights.com/light"]
[0,null,"BRIEZE LIGHT FOCUS 100 2000W",null,null,null,null,null,null,null,null,"BRIEZE LIGHT FOCUS 100 2000W","BRIEZE LIGHT FOCUS 100 2000W",2,{"$f":"B591*N591","v":0},7.8,{"$f":"P591*B591","v":0},null,null,null,null,null,null,null,null,"http://www.solalights.com/light"]
[0,null,"BRIEZE LIGHT FOCUS 140 2000W",null,null,null,null,null,null,null,null,"BRIEZE LIGHT FOCUS 140 2000W","BRIEZE LIGHT FOCUS 140 2000W",2,0,8.1999999999999993,0,null,null,null,null,null,null,null,null,"http://www.solalights.com/light"]
[0,null,"BRIEZE LIGHT FOCUS 180 2000W",null,null,null,null,null,null,null,null,"BRIEZE LIGHT FOCUS 180 2000W","BRIEZE LIGHT FOCUS 180 2000W",2,0,9.4,0,null,null,null,null,null,null,null,null,"http://www.solalights.com/light"]
[0,null,"BRIEZE LIGHT FOCUS 220 2000W",null,null,null,null,null,null,null,null,"BRIEZE LIGHT FOCUS 220 2000W","BRIEZE LIGHT FOCUS 220 2000W",2,0,10.4,0,null,null,null,null,null,null,null,null,"http://www.solalights.com/light"]
[0,null,"BRIEZE LIGHT DOWN-LIGHT 2000W",null,null,null,null,null,null,null,null,"BRIEZE LIGHT DOWN-LIGHT 2000W","BRIEZE LIGHT DOWN-LIGHT 2000W",2,0,6.1,0,null,null,null,null,null,null,null,null,"http://www.solalights.com/light"]
[0,null,"BRIEZE LIGHT SUN 2000W",null,null,null,null,null,null,null,null,"BRIEZE LIGHT SUN 2000W","BRIEZE LIGHT SUN 2000W",2,0,6.7,0,null,null,null,null,null,null,null,null,"http://www.solalights.com/light"]
[0,null,null,null,null,null,null,null,null,null,null,null,null,null,null,null,0]
[0,{"$f":"IF(SUM(B599:B615)>0,\"Qté\",0)","v":0},{"$f":"IF($I$1=\"x\",M598,L598)","v":"BOULE ET LUCIOLE"},null,null,null,null,null,null,null,null,"BOULE ET LUCIOLE","LANTERNS AND FIREFLY"]
[0,null,"PRESTO 2 KW",null,null,null,null,null,null,null,null,"PRESTO 2 KW","PRESTO 2 KW",2,{"$f":"B599*N599","v":0},2.9,{"$f":"P599*B599","v":0}]
[0,null,"PRESTO 6 KW",null,null,null,null,null,null,null,null,"PRESTO 6 KW","PRESTO 6 KW",6,0,10.199999999999999,0]
[0,null,"SPRING BALL 1K",null,null,null,null,null,null,null,null,"SPRING BALL 1K","SPRING BALL 1K",1,0,null,0]
[0,null,"SPRING BALL 2KW",null,null,null,null,null,null,null,null,"SPRING BALL 2KW","SPRING BALL 2KW",2,0,null,0]
[0,null,"KIKO 1KW",null,null,null,null,null,null,null,null,"KIKO 1KW","KIKO 1KW",1,0,null,0]
[0,null,"KIKO 2KW",null,null,null,null,null,null,null,null,"KIKO 2KW","KIKO 2KW",2,0,null,0]
[0,null,"KIKO 5KW",null,null,null,null,null,null,null,null,"KIKO 5KW","KIKO 5KW",5,0,null,0]
[0,null,"SPEEDPHERIE PM  500 W ",null,null,null,null,null,null,null,null,"SPEEDPHERIE PM  500 W ","SPEEDPHERIE PM  500 W ",0.5,0,null,0]
[0,null,"LUCIOLE PICO 100W",null,null,null,null,null,null,null,null,"LUCIOLE PICO 100W","LUCIOLE PICO 100W",0.1,0,0.7,0]
[0,null,"LUCIOLE NANO 250W",null,null,null,null,null,null,null,null,"LUCIOLE NANO 250W","LUCIOLE NANO 250W",0.25,0,0.9,0]
[0,null,"LUCIOLE CLASSIC 1KW",null,null,null,null,null,null,null,null,"LUCIOLE CLASSIC 1KW","LUCIOLE CLASSIC 1KW",1,0,2,0]
[0,null,"LUCIOLE COMPACT 1KW",null,null,null,null,null,null,null,null,"LUCIOLE COMPACT 1KW","LUCIOLE COMPACT 1KW",1,0,2,0]
[0,null,"LUCIOLE COMPACT 2KW",null,null,null,null,null,null,null,null,"LUCIOLE COMPACT 2KW","LUCIOLE COMPACT 2KW",2,0,7,0]
[0,null,"LUCIOLE MEGA 6KW",null,null,null,null,null,null,null,null,"LUCIOLE MEGA 6KW","LUCIOLE MEGA 6KW",6,0,17,0]
[0,null,"BALLON HELIUM 2KW",null,null,null,null,null,null,null,null,"BALLON HELIUM 2KW","HELIUM BALLON 2KW",2,0,null,0]
[0,null,"BALLON HELIUM 4KW",null,null,null,null,null,null,null,null,"BALLON HELIUM 4KW","HELIUM BALLON 4KW",4,0,null,0]
[0,null,"00:00:00",null,null,null,null,null,null,null,null,null,null,null,0,null,0]
[0,{"$f":"IF(SUM(B618:B693)>0,\"Qté\",0)","v":0},"FLUO",null,null,null,"J","A","B","V","2900°","FLUO","LIGHTING FLUO"]
[0,{"$f":"IF(SUM(B618:B675)>0,\"Marq\",0)","v":0},"KINOFLOW",null,null,null,null,null,null,null,null,"KINOFLOW","KINOFLOW"]
[0,null,"KINO BLANKET LIGHT",null,null,null,null,null,null,null,null,"KINO BLANKET LIGHT","KINO BLANKET LIGHT",1.6,{"$f":"B618*N618","v":0},32.6,{"$f":"U618*B618","v":0},null,11.6,null,132,37]
[0,null,"KINO IMARA S10",null,null,null,null,null,null,null,null,"KINO IMARA S10","KINO IMARA  S10",0.55000000000000004,{"$f":"B619*N619","v":0},14,{"$f":"U619*B619","v":0}]
[0,null,"KINO IMARA S6",null,null,null,null,null,null,null,null,"KINO IMARA S6","KINO IMARA S6",0.33,{"$f":"B620*N620","v":0},9.5,{"$f":"U620*B620","v":0}]
[0,null,"KINO IMAGE 80",null,null,null,null,null,null,null,null,"KINO IMAGE 80","KINO IMAGE 80",0.6,{"$f":"B621*N621","v":0},17.100000000000001,{"$f":"IF(F621=\"x\",(P621+V621)*B621,P621*B621)","v":0},null,null,null,null,13.1]
[0,null,"KINO IMAGE 40",null,null,null,null,null,null,null,null,"KINO IMAGE 40","KINO IMAGE 40",0.3,0,11.3,0,null,null,null,null,12.2]
[0,null,"KINO IMAGE 20",null,null,null,null,null,null,null,null,"KINO IMAGE 20","KINO IMAGE 20",0.15,0,null,0]
[0,null,"KINO WALL-O-LITE ",null,null,null,null,null,null,null,null,"KINO WALL-O-LITE ","KINO WALL-O-LITE ",0.75,0,15,0,null,null,null,null,18.899999999999999]
[0,null,"KINO FLATHEAD",null,null,null,null,null,null,null,null,"KINO FLATHEAD","KINO FLATHEAD",0.6,0,11.7,0,null,5.6,null,null,18.899999999999999]
[0,null,"KINO FLO 4 tubes 2.40"," "," "," ",null,null,null,null,null,"KINO FLO 4 tubes 2.40","KINO FLO 4 BANKS 8'",0.48,0,9.8000000000000007,0,null,2.9]
[0,null,"KINO FLO 2 tubes 2.40"," "," "," ",null,null,null,null,null,"KINO FLO 2 tubes 2.40","KINO FLO 2 BANKS 8'",0.24,0,4.5,0,null,1.9]
[0,null,"KINO FLO 1 tube 2.40"," "," "," ",null,null,null,null,null,"KINO FLO 1 tube 2.40","KINO FLO 1 BANK 8'",0.12,0,3.1,0,null,1.2]
[0,null,"KINO FLO 4 tubes  1.80"," "," ",null,null,null,null,null,null,"KINO FLO 4 tubes  1.80","KINO FLO 4 BANKS   6'",0.4,0,8.3000000000000007,0,null,2.9]
[0,null,"KINO FLO 2 tubes  1.80",null,null,null,null,null,null,null,null,"KINO FLO 2 tubes  1.80","KINO FLO 2 BANKS   6'",0.2,0,4.0999999999999996,0,null,1.9]
[0,null,"KINO FLO 1 tube   1.80",null,null,null,null,null,null,null,null,"KINO FLO 1 tube   1.80","KINO FLO 1 BANK    6'",0.1,0,2.8,0,null,1.2]
[0,null,"KINO FLO 4 tubes 1.20 "," "," "," ",null,null,null,null,null,"KINO FLO 4 tubes 1.20 ","KINO FLO 4 BANKS 4'",0.3,0,5.2,0,null,2.7]
[0,null,"KINO FLO 2 tubes 1.20 ",null,null,null,null,null,null,null,null,"KINO FLO 2 tubes 1.20 ","KINO FLO 2 BANKS 4' ",0.15,0,3.5,0,null,1.8]
[0,null,"KINO FLO 1 tube    1.20 ",null,null,null,null,null,null,null,null,"KINO FLO 1 tube    1.20 ","KINO FLO 1 BANKS 4' ",7.4999999999999997E-2,0,1.9,0,null,1.3]
[0,null,"KINO FLO 4 tubes 0.60"," "," "," ",null,null,null,null,null,"KINO FLO 4 tubes 0.60","KINO FLO 4 BANKS 2'",0.16,0,3.4,0,null,2.7]
[0,null,"KINO FLO 2 tubes 0.60"," "," "," ",null,null,null,null,null,"KINO FLO 2 tubes 0.60","KINO FLO 2 BANKS 2'",0.08,0,2.1,0,null,1.8]
[0,null,"KINO FLO 1 tube    0.60 ",null,null,null,null,null,null,null,null,"KINO FLO 1 tube    0.60 ","KINO FLO 1 BANKS 2' ",0.04,0,1.2,0,null,1.3]
[0,null,"KINO FLO 4 tubes 0.40",null,null,null,null,null,null,null,null,"KINO FLO 4 tubes 0.40","KINO FLO 4 BANKS 1 ½'  ",0.12,0,1.8,0,null,2.7]
[0,null,"KINO FLO 2 tubes 0.40",null,null,null,null,null,null,null,null,"KINO FLO 2 tubes 0.40","KINO FLO 2 BANKS 1 ½'",0.06,0,1.2,0,null,1.8]
[0,null,"KINO FLO 1 tube   0.40",null,null,null,null,null,null,null,null,"KINO FLO 1 tube   0.40","KINO FLO 1 BANKS 0.40",0.03,0,0.5,0,null,1,null,null,3.2]
[0,null,"KINO FLO MiniFlow",null,null,null,null,null,null,null,null,"KINO FLO MiniFlow","KINO FLO MiniFlow",8.0000000000000002E-3,0,0.2,0,null,0.4,null,null,2.9]
[0,null,"KINO FLO MicroFlow",null,null,null,null,null,null,null,null,"KINO FLO MicroFlow","KINO FLO MicroFlow",6.0000000000000001E-3,0,0.2,0,null,0.4,null,null,2.9]
[0,null,"PARABEAM 400",null,null,null,null,null,null,null,null,"PARABEAM 400","PARABEAM 400",0.22,0,11,0,null,null,null,null,14]
[0,null,"PARABEAM 200",null,null,null,null,null,null,null,null,"PARABEAM 200","PARABEAM 200",0.11,0,7.4,0,null,null,null,null,11.7]
[0,null,"VISTABEAM 600",null,null,null,"X",null,null,null,null,"VISTABEAM 600","VISTABEAM 600",0.56999999999999995,0,21,0,null,null,null,null,55]
[0,null,"VISTABEAM 300",null,null,null,null,null,null,null,null,"VISTABEAM 300","VISTABEAM 300",0.28000000000000003,0,13,0,null,null,null,null,24.8]
[{"$f":"IF(B647>0,\"x\",0)","v":0},null,"VISTABEAM 100",null,null,null,null,null,null,null,null,"VISTABEAM 100","VISTA SINGLE",9.6000000000000002E-2,0,2.8,0,null,1.3]
[0,null,"KINO FLO DIVA LITE 400",null,null,null,null,null,null,null,null,"KINO FLO DIVA LITE 400","KINO FLO DIVA LITE 400",0.22,0,5.9,0]
[0,null,"KINO FLO DIVA LITE 200",null,null,null,null,null,null,null,null,"KINO FLO DIVA LITE 200","KINO FLO DIVA LITE 200",0.11,0,4.0999999999999996,{"$f":"(P649+S649)*B649","v":0}]
[0,null,"BARFLY 400",null,null,null,null,null,null,null,null,"BARFLY 400","BARFLY 400",0.22,0,3.3,{"$f":"IF(F650=\"x\",(P650+V650+S650)*B650,(P650+S650)*B650)","v":0},null,2.7,null,null,10.5]
[0,null,"BARFLY 200",null,null,null,null,null,null,null,null,"BARFLY 200","BARFLY 200",0.11,0,2.2000000000000002,{"$f":"IF(F651=\"x\",(P651+V651+S651)*B651,(P651+S651)*B651)","v":0},null,1.8,null,null,9.1999999999999993]
[0,null,"BARFLY 100",null,null,null,null,null,null,null,null,"BARFLY 100","BARFLY 100",0.05,0,1.4,{"$f":"IF(F652=\"x\",(P652+V652+S652)*B652,(P652+S652)*B652)","v":0},null,1.3,null,null,8.6999999999999993]
[0,null,"PARA ZIP 400",null,null,null,null,null,null,null,null,"PARA ZIP 400","PARA ZIP 400",0.22,{"$f":"B653*N653","v":0},9,{"$f":"IF(F653=\"x\",(P653+V653)*B653,P653*B653)","v":0},null,null,null,null,11.3]
[0,null,"PARA ZIP 200",null,null,null,null,null,null,null,null,"PARA ZIP 200","PARA ZIP 200",0.11,0,6.6,{"$f":"IF(F654=\"x\",(P654+V654)*B654,P654*B654)","v":0},null,null,null,null,9.9]
[0,null,"DESK LITE",null,null,null,null,null,null,null,null,"DESK LITE","DESK LITE",8.0000000000000002E-3,0,0.7,{"$f":"IF(F655=\"x\",(P655+V655)*B655,P655*B655)","v":0}]
[0,null,"KINO FLO KAMIO Ring Flash big",null,null,null,null,null,null,null,null,"KINO FLO KAMIO Ring Flash big","KINO FLO KAMIO Ring Flash big",0.03,0,0.6,{"$f":"IF(F656=\"x\",(P656+V656+S656)*B656,(P656+S656)*B656)","v":0},null,0.4,null,null,5.4]
[0,null,"KINO FLO KAMIO Ring Flash",null,null,null,null,null,null,null,null,"KINO FLO KAMIO Ring Flash","KINO FLO KAMIO Ring Flash",0.02,0,0.5,0,null,0.4,null,null,2.9]
[0,null,"FLUO STAR 1.20m",null,null,null,null,null,null,null,null,"FLUO STAR 1.20m","4 feet FLUO STAR",3.6000000000000004E-2,0,null,0]
[0,null,"FLUOSTAR 0.60m",null,null,null,null,null,null,null,null,"FLUOSTAR 0.60m","2 feet FLUO STAR",1.8000000000000002E-2,0,null,0]
[0,null,"FLUO STICK 0.40m/6unités",null,null,null,null,null,null,null,null,"FLUO STICK 0.40m/6unités","1 ½ feet FLUO STICK 6 units",0.1,0,null,0]
[0,null,"FLUO STICK 0.90m/6unités",null,null,null,null,null,null,null,null,"FLUO STICK 0.90m/6unités","3 feet FLUO STICK 6 units",0.2,0,null,0]
[0,null,{"$f":"IF($I$1=\"x\",M662,L662)","v":"MONOSTICK DMX 1.20m/4 unités"},null,null,null,null,null,null,null,null,"MONOSTICK DMX 1.20m/4 unités","DMX MONO STICK 4feet",0.14400000000000002,0,null,0]
[0,null,"FLUX LIGHT BALCAR 4x36W",null,null,null,null,null,null,null,null,"FLUX LIGHT BALCAR 4x36W","BALCAR FLUX LIGHT 4x36W",0.14400000000000002,0,null,0]
[0,null,"BOITE BALCAR 6x36W",null,null,null,null,null,null,null,null,"BOITE BALCAR 6x36W"," BALCAR BOX 6x36W",0.14400000000000002,0,null,0]
[0,null,"KIT DULUX 1x18W 0.60m",null,null,null,null,null,null,null,null,"KIT DULUX 1x18W 0.60m","DULUX KIT 1x18W 2''",1.8000000000000002E-2,0,null,0]
[0,null,"KIT DULUX 1x36W GM",null,null,null,null,null,null,null,null,"KIT DULUX 1x36W GM","DULUX KIT 1x36W BIG",3.6000000000000004E-2,0,null,0]
[0,null,"KIT DULUX 2x18W 0.60m",null,null,null,null,null,null,null,null,"KIT DULUX 2x18W 0.60m","DULUX KIT2x18W 02''",3.6000000000000004E-2,0,null,0]
[0,null,"KIT DULUX 2x36W GM",null,null,null,null,null,null,null,null,"KIT DULUX 2x36W GM","DULUX KIT2x36W BIG",7.2000000000000008E-2,0,null,0]
[0,null,"KIT DULUX 4x18W 0.60m",null,null,null,null,null,null,null,null,"KIT DULUX 4x18W 0.60m","DULUX KIT4x18W  2''",7.2000000000000008E-2,0,null,0]
[0,null,"KIT DULUX 4x36W GM",null,null,null,null,null,null,null,null,"KIT DULUX 4x36W GM","DULUX KIT4x36W BIG",0.14400000000000002,0,null,0]
[0,null,"KIT DULUX 8x18W PM",null,null,null,null,null,null,null,null,"KIT DULUX 8x18W PM","DULUX KIT 8x18W SMALL",0.14400000000000002,0,null,0]
[0,null,"KIT DULUX 8x36W GM",null,null,null,null,null,null,null,null,"KIT DULUX 8x36W GM","DULUX KIT8x36W GBIG",0.28800000000000003,0,null,0]
[0,null,"BOITE KIT FLUO 8 x0.60m",null,null,null,null,null,null,null,null,"BOITE KIT FLUO 8 x0.60m","FLUO BOX 8x2''",0.14400000000000002,0,null,0]
[0,null,"BOITE KIT FLUO 8x1.20m",null,null,null,null,null,null,null,null,"BOITE KIT FLUO 8x1.20m","FLUO BOX 8x4''",0.28800000000000003,0,null,0]
[0,null,"BOITE KIT FLUO 12x1.20m",null,null,null,null,null,null,null,null,"BOITE KIT FLUO 12x1.20m","FLUO BOX 12x4''",0.432,0,null,0]
[0,{"$f":"IF(SUM(B677:B685)>0,\"Marq\",0)","v":0},"SOFTLIGHT",null,null,null,null,null,null,null,null,"SOFTLIGHT","SOFTLIGHT",null,0,null,0]
[0,null,"SOFTLIGHT T5 4tubes 0.55m SMALL",null,null,null,null,null,null,null,null,"SOFTLIGHT T5 4tubes 0.55m SMALL","T5 SOFTLIGHT SMALL",0.14000000000000001,0,1.9,0]
[0,null,"SOFTLIGHT T5 4tubes 0.85m MEDIUM",null,null,null,null,null,null,null,null,"SOFTLIGHT T5 4tubes 0.85m MEDIUM","T5 SOFTLIGHT MEDIUM",0.14000000000000001,0,2.2999999999999998,0]
[0,null,"SOFTLIGHT T5 4tubes 1.55m LONG",null,null,null,null,null,null,null,null,"SOFTLIGHT T5 4tubes 1.55m LONG","T5 SOFTLIGHT LONG",0.2,0,4.0999999999999996,0]
[0,null,"SOFTLIGHT T5 8tubes 0,85m CLASSIC",null,null,null,null,null,null,null,null,"SOFTLIGHT T5 8tubes 0,85m CLASSIC","T5 SOFTLIGHT CLASSIC",0.28000000000000003,0,4.9000000000000004,0]
[0,null,"IRIS 12/18 SOFTLIGHTS",null,null,null,null,null,null,null,null,"IRIS 12/18 SOFTLIGHTS","IRIS 12/18 SOFTLIGHTS",1.8000000000000002E-2,0,null,0]
[0,null,"DOIGHTS DE FEE 12V 55",null,null,null,null,null,null,null,null,"DOIGHTS DE FEE 12V 55","FINGER 12V 55",5.5E-2,0,0.02,0]
[0,null,"DOIGHTS DE FEE 12V 85",null,null,null,null,null,null,null,null,"DOIGHTS DE FEE 12V 85","FINGER 12V 85",8.5000000000000006E-2,0,0.03,0]
[0,null,"DOIGHTS DE FEE 220V 55",null,null,null,null,null,null,null,null,"DOIGHTS DE FEE 220V 55","FINGER 220V 55",0.55000000000000004,0,0.02,0]
[0,null,"DOIGHTS DE FEE 220V 85",null,null,null,null,null,null,null,null,"DOIGHTS DE FEE 220V 85","FINGER 220V 85",8.5000000000000006E-2,{"$f":"B685*N685","v":0},0.03,0]
[0,{"$f":"IF(SUM(B687:B694)>0,\"Marq\",0)","v":0},"DIVERS",null,null,null,null,null,null,null,null,"DIVERS","VARIOUS",null,0,null,0]
[0,null,"REGLETTE 1tubes 0.60m",null,null,null,null,null,null,null,null,"REGLETTE 1tubes 0.60m","INDUSTRIAL TUBE 1x2feet",1.8000000000000002E-2,0,null,0]
[0,null,"REGLETTE 1 tubes 1.20m",null,null,null,null,null,null,null,null,"REGLETTE 1 tubes 1.20m","INDUSTRIAL TUBE 1x4feet",3.6000000000000004E-2,0,null,0]
[0,null,"REGLETTE 2 tubes 1.20m",null,null,null,null,null,null,null,null,"REGLETTE 2 tubes 1.20m","INDUSTRIAL TUBE 2x4feet",7.2000000000000008E-2,0,null,0]
[0,null,"REGLETTE 1 tubes 1.50m",null,null,null,null,null,null,null,null,"REGLETTE 1 tubes 1.50m","INDUSTRIAL TUBE 1x5feet",3.6000000000000004E-2,0,null,0]
[0,null,"REGLETTE 0.60m LUMIERE NOIRE",null,null,null,null,null,null,null,null,"REGLETTE 0.60m LUMIERE NOIRE","INDUSTRIAL TUBE 1x2feet BLACK LIGHT",1.8000000000000002E-2,0,null,0]
[0,null,"REGLETTE 1.20m LUMIERE NOIRE",null,null,null,null,null,null,null,null,"REGLETTE 1.20m LUMIERE NOIRE","INDUSTRIAL TUBE 1x4feet BLACK LIGHT",3.6000000000000004E-2,0,null,0]
[0,null,"GUN 400W LUMIERE NOIRE",null,null,null,null,null,null,null,null,"GUN 400W LUMIERE NOIRE","400W BLACK LIGHT GUN",0.4,0,null,0]
[0,{"$f":"IF(SUM(B695:B707)>0,\"Qté\",0)","v":0},"PROJECTEURS ASSERVIS",null,null,null,null,null,null,null,null,"PROJECTEURS ASSERVIS","REMOTE LIGHTING"]
[0,null,"CITY COLOR",null,null,null,null,null,null,null,null,"CITY COLOR","CITY COLOR",null,{"$f":"B695*N695","v":0},null,{"$f":"(P695+R695)*B695","v":0}]
[0,null,"ROBE WASH 750 HALOGENE AT",null,null,null,null,null,null,null,null,"ROBE WASH 750 HALOGENE AT","ROBE WASH 750 HALOGENE AT",0.75,0,30.9,0]
[0,null,"MARTIN MAC TW1 LYRE 1200W",null,null,null,null,null,null,null,null,"MARTIN MAC TW1 LYRE 1200W","MARTIN MAC TW1 LYRE 1200W",1.2,0,null,0]
[0,null,"HMI COLORSPOT 575 EAT",null,null,null,null,null,null,null,null,"HMI COLORSPOT 575 EAT","HMI COLORSPOT 575 EAT",0.57499999999999996,0,32,0,null,32]
[0,null,"HMI ROBE  ROBIN 300E WASH",null,null,null,null,null,null,null,null,"HMI ROBE  ROBIN 300E WASH","HMI ROBE  ROBIN 300E WASH",0.3,0,22,0,null,22]
[0,null,"HMI ROBE ROBIN 300E SPOT",null,null,null,null,null,null,null,null,"HMI ROBE ROBIN 300E SPOT","HMI ROBE ROBIN 300E SPOT",0.3,0,22,0,null,22]
[0,null,"ROBE COLORWASH 2500W BE",null,null,null,null,null,null,null,null,"ROBE COLORWASH 2500W BE","ROBE COLORWASH 2500W BE",2.5,0,41,0,null,41]
[0,null,"ROBE COLORSPOT 1200W BE",null,null,null,null,null,null,null,null,"ROBE COLORSPOT 1200W BE","ROBE COLORSPOT 1200W BE",1.2,0,51.5,0,51.5,42]
[0,null,"00:00:00",null,null,null,null,null,null,null,null,null,null,null,0,null,0]
[0,null,"00:00:00",null,null,null,null,null,null,null,null,null,null,null,0,null,0]
[0,null,"00:00:00",null,null,null,null,null,null,null,null,null,null,null,0,null,0]
[0,null,"00:00:00",null,null,null,null,null,null,null,null,null,null,null,0,null,0]
[0,null,"00:00:00",null,null,null,null,null,null,null,null,null,null,null,0,null,0]
[0,{"$f":"IF(SUM(B709:B731)>0,\"Qté\",0)","v":0},"PROJECTEUR SCENIQUES","5°","10°","14°","19°","26°","36°","50°","70°","PROJECTEUR SCENIQUES","STAGE LIGHTING"]
[0,null,"SOURCE FOUR 375W",null,null,null,null,null,null,null,null,"SOURCE FOUR 375W","375W LEKO SOURCE FOUR",0.4,{"$f":"B709*N709","v":0},8.5,{"$f":"IF(D709=\"x\",(14)*B709,(IF(E709=\"x\",(10.5)*B709,(8.5)*B709)))","v":0}]
[0,null,"SOURCE FOUR 575W","WITH BUG A BEAM KIT",null,null,null,"ZOOM 25-50°",null,null,null,"SOURCE FOUR 575W","575W LEKO SOURCE FOUR",0.6,0,8.5,{"$f":"IF(D710=\"x\",(14)*B710,(IF(E710=\"x\",(10.5)*B710,(8.5)*B710)))","v":0}]
[{"$f":"IF(B711>0,\"x\",0)","v":0},null,"SOURCE FOUR 750W",null,null,null,null,"ZOOM 25-50°",null,null,null,"SOURCE FOUR 750W","750W LEKO SOURCE FOUR",0.65,0,8.5,{"$f":"IF(D711=\"x\",(14)*B711,(IF(E711=\"x\",(10.5)*B711,(8.5)*B711)))","v":0}]
[0,null,"DECOUPE JULIA 714 SX 2 kW",null,null,null,null,null,null,null,null,"DECOUPE JULIA 714 SX 2 kW","2 KW PROFILE SPOT",2,0,21,{"$f":"P712*B712","v":0}]
[0,null,"DECOUPE JULIA 713 SX2 2 kW",null,null,null,null,null,null,null,null,"DECOUPE JULIA 713 SX2 2 kW","2 KW PROFILE SPOT",2,0,null,0]
[0,null,"DECOUPE JULIA 714 SX2  2.5 kW",null,null,null,null,null,null,null,null,"DECOUPE JULIA 714 SX2  2.5 kW","2,5KW PROFILE SPOT",2.5,0,null,0]
[0,null,"DECOUPE JULIA 614 SX 1 kW",null,null,null,null,null,null,null,null,"DECOUPE JULIA 614 SX 1 kW","1KW PROFILE SPOT",1,0,16,0]
[0,null,"JUNIOR ZOOM 575W",null,null,null,null,null,null,null,null,"JUNIOR ZOOM 575W","JUNIOR ZOOM 575W",0.57499999999999996,0,null,0]
[0,null,"DECOUPE LEDS BICOLOR",null,null,null,null,null,null,null,null,"DECOUPE LEDS BICOLOR","DECOUPE LEDS BICOLOR",null,0,null,0]
[0,null,"DECOUPE JULIA HMI 614 SX 700W",null,null,null,null,null,null,null,null,"DECOUPE JULIA HMI 614 SX 700W","700W HMI PROFILE SPOT",1,0,16,0]
[0,null,"DECOUPE HMI 1200W",null,null,null,null,null,null,null,null,"DECOUPE HMI 1200W","1200W HMI PROFILE SPOT",1.2,0,null,0]
[0,null,"00:00:00",null,null,null,null,null,null,null,null,null,null,null,0,null,0]
[0,null,"IRIS DECOUPE 1000 ",null,null,null,null,null,null,null,null,"IRIS DECOUPE 1000 ","IRIS FOR SILHOUETTE 1000 ",1,0,null,0]
[0,null,"ALLUMETTE 1000 W ",null,null,null,null,null,null,null,null,"ALLUMETTE 1000 W ","1000 W MATCH ",1,0,null,0]
[0,null,"ALLUMETTE 500 W ",null,null,null,null,null,null,null,null,"ALLUMETTE 500 W ","500 W MATCH",0.5,0,null,0]
[0,null,"MINI DECOUPE 90 W ",null,null,null,null,null,null,null,null,"MINI DECOUPE 90 W ","90W MINI PROFILE SPOT",0.09,0,4,0]
[0,null,"00:00:00",null,null,null,null,null,null,null,null,null,null,null,0,null,0]
[0,null,{"$f":"IF($I$1=\"x\",M726,L726)","v":"POURSUITE 575W HMI"},null,null,null,null,null,null,null,null,"POURSUITE 575W HMI","575W HMI FOLLOW SPOT",0.57499999999999996,0,null,0]
[0,null,"POURSUITE 1200W HMI",null,null,null,null,null,null,null,null,"POURSUITE 1200W HMI","1200W  HMI FOLLOW SPOT",1.2,0,null,0]
[0,null,"POURSUITE 2500W HMI",null,null,null,null,null,null,null,null,"POURSUITE 2500W HMI","2500W  HMI FOLLOW SPOT",2.5,0,null,0]
[0,null,"POURSUITE XENON 2500W",null,null,null,null,null,null,null,null,"POURSUITE XENON 2500W","2500W XENON FOLLOW SPOT",2.5,0,null,0]
[0,null,"00:00:00",null,null,null,null,null,null,null,null,null,null,null,0,null,0]
[0,null,"00:00:00",null,null,null,null,null,null,null,null,null,null,null,0,null,0]
[0,{"$f":"IF(SUM(B733:B769)>0,\"Qté\",0)","v":0},"EFFET SPECIAUX ",null,null,null,null,null,null,null,null,"EFFET SPECIAUX ","SPECIAL EFFECTS"]
[0,null,"DEDOLIGHT 400W HMI+ nez optique +iris",null,null,null,null,null,null,null,null,"DEDOLIGHT 400W HMI+ nez optique +iris","DEDOLIGHT 400W HMI",0.4,{"$f":"B733*N733","v":0},13,{"$f":"P733*B733","v":0}]
[0,null,"VALISE DEDO 150 W ",null,null,null,null,null,null,null,null,"VALISE DEDO 150 W ","DEDOLIGHT CASE 150 W ",0.6,0,13,0]
[0,null,"VALISE DEDO 100 W ",null,null,null,null,null,null,null,null,"VALISE DEDO 100 W ","DEDOLIGHT CASE 100 W ",0.4,0,13,0]
[0,null,"NEZ OPTIQUE ",null,null,null,null,null,null,null,null,"NEZ OPTIQUE ","DEDOLIGHT PROJECTION ATTACHMENT",null,0,0.4,0]
[0,null,"IRIS DEDOLIGHT ",null,null,null,null,null,null,null,null,"IRIS DEDOLIGHT ","IRIS DEDOLIGHT ",null,0,null,0]
[0,null,"FIBRE OPTIQUE 250 W",null,null,null,null,null,null,null,null,"FIBRE OPTIQUE 250 W","OPTICAL FIBER 250 W",0.25,0,null,0]
[0,null,"PROJECTEUR ETANCHE 12 V 300W",null,null,null,null,null,null,null,null,"PROJECTEUR ETANCHE 12 V 300W","WATERPROOF LIGHTING 12 V 300W",0.3,0,null,0]
[0,null,"CINEPAR 1200 ETANCHE",null,null,null,null,null,null,null,null,"CINEPAR 1200 ETANCHE","CINEPAR 1200 W WATERPROOF",1.2,0,null,0]
[0,null,"TRANSFO 12V 300W ",null,null,null,null,null,null,null,null,"TRANSFO 12V 300W ","TRANSFORMER 12V 300W ",null,0,null,0]
[0,null,"GUIRLANDE",null,null,null,null,null,null,null,null,"GUIRLANDE","GUIRLANDE",null,0,null,0]
[0,null,"SHUTTER ELECTRONIQUE 1200W / 2500W",null,null,null,null,null,null,null,null,"SHUTTER ELECTRONIQUE 1200W / 2500W","ELECTRONIC SHUTTER 1200W / 2500W",null,0,null,0]
[0,null,"SHUTTER ELECTRONIQUE 4KW",null,null,null,null,null,null,null,null,"SHUTTER ELECTRONIQUE 4KW","ELECTRONIC SHUTTER 4KW",null,0,null,0]
[0,null,"SHUTTER ELECTRONIQUE 5KW",null,null,null,null,null,null,null,null,"SHUTTER ELECTRONIQUE 5KW","ELECTRONIC SHUTTER 5KW",null,0,null,0]
[0,null,"SHUTTER ELECTRONIQUE 6KW",null,null,null,null,null,null,null,null,"SHUTTER ELECTRONIQUE 6KW","ELECTRONIC SHUTTER 6KW",null,0,null,0]
[0,null,"SHUTTER ELECTRONIQUE 10KW",null,null,null,null,null,null,null,null,"SHUTTER ELECTRONIQUE 10KW","ELECTRONIC SHUTTER 10KW",null,0,null,0]
[0,null,"SHUTTER ELECTRONIQUE 10/12KW",null,null,null,null,null,null,null,null,"SHUTTER ELECTRONIQUE 10/12KW","ELECTRONIC SHUTTER 10/12KW",null,0,null,0]
[0,null,"SHUTTER ELECTRONIQUE 12KW",null,null,null,null,null,null,null,null,"SHUTTER ELECTRONIQUE 12KW","ELECTRONIC SHUTTER 12KW",null,0,null,0]
[0,null,"SHUTTER ELECTRONIQUE 18KW",null,null,null,null,null,null,null,null,"SHUTTER ELECTRONIQUE 18KW","ELECTRONIC SHUTTER 18KW",null,0,null,0]
[0,null,"GRADALUX LTM 4KW",null,null,null,null,null,null,null,null,"GRADALUX LTM 4KW","GRADALUX LTM 4KW",null,0,null,0]
[0,null,"SHUTTER 1200W / 2500W MANUEL ",null,null,null,null,null,null,null,null,"SHUTTER 1200W / 2500W MANUEL ","MANUEL SHUTTER 1200W / 2500W ",null,0,null,0]
[0,null,"SHUTTER 5KW MANUEL",null,null,null,null,null,null,null,null,"SHUTTER 5KW MANUEL","MANUEL SHUTTER 5KW",null,0,null,0]
[0,null,"SHUTTER 10KW MANUEL",null,null,null,null,null,null,null,null,"SHUTTER 10KW MANUEL","MANUEL SHUTTER 10KW",null,0,null,0]
[0,null,"SHUTTER 10/12KW MANUEL",null,null,null,null,null,null,null,null,"SHUTTER 10/12KW MANUEL","MANUEL SHUTTER 10/12KW",null,0,null,0]
[0,null,"SHUTTER 12KW  MANUEL",null,null,null,null,null,null,null,null,"SHUTTER 12KW  MANUEL","MANUEL SHUTTER  12KW",null,0,null,0]
[0,null,"SHUTTER 18KW MANUEL",null,null,null,null,null,null,null,null,"SHUTTER 18KW MANUEL","MANUEL SHUTTER 18KW",null,0,null,0]
[0,null,"PASSE COULEUR 1200W / 2500W",null,null,null,null,null,null,null,null,"PASSE COULEUR 1200W / 2500W","COLOR PASS GOBO 1200W / 2500W",null,0,null,0]
[0,null,"PASSE COULEUR 4KW",null,null,null,null,null,null,null,null,"PASSE COULEUR 4KW","COLOR PASS GOBO 4KW",null,0,null,0]
[0,null,"PASSE COULEUR 5KW",null,null,null,null,null,null,null,null,"PASSE COULEUR 5KW","COLOR PASS GOBO 5KW",null,0,null,0]
[0,null,"PASSE COULEUR 6KW",null,null,null,null,null,null,null,null,"PASSE COULEUR 6KW","COLOR PASS GOBO 6KW",null,0,null,0]
[0,null,"PASSE COULEUR 10KW",null,null,null,null,null,null,null,null,"PASSE COULEUR 10KW","COLOR PASS GOBO 10KW",null,0,null,0]
[0,null,"PASSE COULEUR 10/12KW",null,null,null,null,null,null,null,null,"PASSE COULEUR 10/12KW","COLOR PASS GOBO 10/12KW",null,0,null,0]
[0,null,"PASSE COULEUR 12KW",null,null,null,null,null,null,null,null,"PASSE COULEUR 12KW","COLOR PASS GOBO 12KW",null,0,null,0]
[0,null,"PASSE COULEUR 18KW",null,null,null,null,null,null,null,null,"PASSE COULEUR 18KW","COLOR PASS GOBO 18KW",null,0,null,0]
[0,null,"MACHINE CRACKOIL ",null,null,null,null,null,null,null,null,"MACHINE CRACKOIL ","MACHINE CRACKOIL ",null,0,null,0]
[0,null,"MACHINE A FUMEE",null,null,null,null,null,null,null,null,"MACHINE A FUMEE","SMOKE MACHINE",null,0,null,0]
[0,null,"VENTILATEUR ",null,null,null,null,null,null,null,null,"VENTILATEUR ","FAN",null,0,null,0]
[0,null,"STROBOSCOPE",null,null,null,null,null,null,null,null,"STROBOSCOPE","STROBE",null,0,null,0]
[0,{"$f":"IF(SUM(B771:B794)>0,\"Qté\",0)","v":0},"PROJECTEUR AQUATIQUE",null,null,null,null,null,null,null,null,"PROJECTEUR AQUATIQUE","SUBMARINE TYPE PROJECTORS"]
[0,null,"HMI",null,null,null,null,null,null,null,null,"HMI","HMI",null,null,null,{"$f":"P771*B771","v":0}]
[0,null,"HMI PAR 575W ALIM EXTERNE","240V",null,null,null,null,null,null,null,"HMI PAR 575W ALIM EXTERNE","HMI 575W PAR EXTERNAL ACV",0.6,{"$f":"B772*N772","v":0},null,0]
[0,null,"HMI PAR 1200W ALIM EXTERNE","240V",null,null,null,null,null,null,null,"HMI PAR 1200W ALIM EXTERNE","HMI 1200W PAR EXTERNAL ACV",1.2,0,null,0]
[0,null,"HMI PAR 2500W ALIM EXTERNE","240V",null,null,null,null,null,null,null,"HMI PAR 2500W ALIM EXTERNE","HMI 2500W PAR EXTERNAL ACV",2.5,0,null,0]
[{"$f":"IF(B775>0,\"x\",0)","v":0},null,"HMI BRUTE 2400W ALIM EXTERNE","240V",null,null,null,null,null,null,null,"HMI BRUTE 2400W ALIM EXTERNE","HMI 2400W SOFT EXTERNAL ACV",2.4,0,null,0]
[0,null,"HMI PAR AUTONOME 18W","12V",null,null,null,null,null,null,null,"HMI PAR AUTONOME 18W","AUTONOMOUS HMI PAR 18W",null,0,null,0]
[0,null,"HMI PAR AUTONOME 50W","12V",null,null,null,null,null,null,null,"HMI PAR AUTONOME 50W","AUTONOMOUS HMI PAR 50W",null,0,null,0]
[0,null,"HMI PAR AUTONOME 200W","42V",null,null,null,null,null,null,null,"HMI PAR AUTONOME 200W","AUTONOMOUS HMI PAR 200W",null,0,null,0]
[0,null,"HMI PAR AUTONOME 250W","42V",null,null,null,null,null,null,null,"HMI PAR AUTONOME 250W","AUTONOMOUS HMI PAR 250W",null,0,null,0]
[0,null,"HMI PAR AUTONOME 400W","42V",null,null,null,null,null,null,null,"HMI PAR AUTONOME 400W","AUTONOMOUS HMI PAR 400W",null,0,null,0]
[0,null,"00:00:00",null,null,null,null,null,null,null,null,null,null,null,0,null,0]
[0,null,"VOIR SITE POUR GRANDE PROFONDEUR",null,null,null,null,null,null,null,null,"VOIR SITE POUR GRANDE PROFONDEUR","SEE SITE FOR DEEP SEA LIGHTING",null,0,null,0,null,null,null,null,null,null,null,null,"http://www.cinemarine.com/cinemarine/rubrique.php?id=5"]
[0,null,"00:00:00",null,null,null,null,null,null,null,null,null,null,null,0,null,0]
[0,null,"00:00:00",null,null,null,null,null,null,null,null,null,null,null,0,null,0]
[0,null,"TUNGSTEN",null,null,null,null,null,null,null,null,"TUNGSTEN","TUNGSTEN",null,0,null,0]
[0,null,"4x650W ALIM EXTERNE","240V",null,null,null,null,null,null,null,"4x650W ALIM EXTERNE","EXTERNAL ACV 4x650W ",2.6,0,null,0]
[0,null,"400W AUTONOME","36V",null,null,null,null,null,null,null,"400W AUTONOME","AUTONOMOUS 400W ",null,0,null,0]
[0,null,"2x250W AUTONOME","24V",null,null,null,null,null,null,null,"2x250W AUTONOME","AUTONOMOUS 2x250W ",null,0,null,0]
[0,null,"PISCINE PAR 56","240V",null,null,null,null,null,null,null,"PISCINE PAR 56","PAR 56 POOL TYPE",null,0,null,0]
[0,null,{"$f":"IF($I$1=\"x\",M790,L790)","v":"00:00:00"},null,null,null,null,null,null,null,null,null,null,null,0,null,0]
[0,null,"LITE PANEL",null,null,null,null,null,null,null,null,"LITE PANEL","LITE PANEL",null,0,null,0]
[0,null,"LITE PANEL SEA SUN",null,null,null,null,null,null,null,null,"LITE PANEL SEA SUN","LITE PANEL SEA SUN",null,0,null,0]
[0,null,"LITE PANEL SEA SUN MICRO PRO",null,null,null,null,null,null,null,null,"LITE PANEL SEA SUN MICRO PRO","LITE PANEL SEA SUN MICRO PRO",null,0,null,0]
[0,null,"00:00:00"]
[0,{"$f":"IF(SUM(B796:B808)>0,\"Qté\",0)","v":0},"MATERIEL PORTABLE ",null,"Scrim","Chim",null,null,null,null,null,"MATERIEL PORTABLE ","HANDHELD LIGHTING"]
[0,null,"JOKER 200 W BE",null,null,null,null,null,null,null,null,"JOKER 200 W BE","JOKER 200 W BE",0.2,{"$f":"B796*N796","v":0},12,{"$f":"P796*B796","v":0}]
[0,null,"JOKER 400 W BE",null,null,null,null,null,null,null,null,"JOKER 400 W BE","JOKER 400 W BE",0.4,0,14,0]
[0,null,"CINEPAR 200 BE",null,null,null,null,null,null,null,null,"CINEPAR 200 BE","CINEPAR 200 BE",0.2,0,null,0]
[0,null,"TORCHE PRO 250 ",null,null,null,null,null,null,null,null,"TORCHE PRO 250 ","TORCHE PRO 250 ",0.25,0,null,0]
[0,null,"KOBOLT 250W",null,null,null,null,null,null,null,null,"KOBOLT 250W","KOBOLT 250W",0.25,0,null,0]
[0,null,"VALISE MINETTE 12 V",null,null,null,null,null,null,null,null,"VALISE MINETTE 12 V","VALISE MINETTE 12 V",null,0,null,0]
[0,null,"STICK-UP GAM",null,null,null,null,null,null,null,null,"STICK-UP GAM","STICK-UP GAM",null,0,null,0]
[0,null,"TORCHE HMI 200 ",null,null,null,null,null,null,null,null,"TORCHE HMI 200 ","TORCHE HMI 200 ",0.2,0,null,0]
[0,null,"HMI 18W",null,null,null,null,null,null,null,null,"HMI 18W","HMI 18W",1.8000000000000002E-2,0,null,0]
[0,null,"HMI 125/200w LTM SUNGUN ","30/220V",null,null,null,null,null,null,null,"HMI 125/200w LTM SUNGUN ","HMI 200W SUNGUN",0.2,0,1.1000000000000001,0]
[0,null,"HMI CINE 24W LTM",null,null,null,null,null,null,null,null,"HMI CINE 24W LTM","HMI 24W",2.4E-2,0,0.8,0]
[{"$f":"IF(B807>0,\"x\",0)","v":0},null,{"$f":"IF($I$1=\"x\",M807,L807)","v":"00:00:00"},null,null,null,null,null,null,null,null,null,null,null,0,null,0,null,1,"30W"]
[{"$f":"IF(B808>0,\"x\",0)","v":0},null,{"$f":"IF($I$1=\"x\",M808,L808)","v":"00:00:00"},null,null,null,null,null,null,null,null,null,null,null,0,null,0]
[null,null,{"$f":"IF($I$1=\"x\",M809,L809)","v":"PUISSANCE"},null,null,null,null,null,null,null,null,"PUISSANCE","POWER"]
[null,null,{"$f":"IF($I$1=\"x\",M810,L810)","v":"AUTONOME"},null,null,null,null,null,null,null,null,"AUTONOME","AUTONOME"]
[0,{"$f":"IF(SUM(B812:B825)>0,\"Qté\",0)","v":0},"BATTERIE",null,null,null,null,null,null,null,null,"BATTERIE","BATTERY"]
[0,null,"12V OPTIMA",null,null,null,null,null,null,null,null,"12V OPTIMA","12V OPTIMA",null,{"$f":"B812*N812","v":0},null,{"$f":"P812*B812","v":0}]
[0,null,"CHARGEUR BATTERIE OPTIMA",null,null,null,null,null,null,null,null,"CHARGEUR BATTERIE OPTIMA","BATTERY CHARGER",null,0,null,0]
[0,null,"BATTERIE 12V 210 AH",null,null,null,null,null,null,null,null,"BATTERIE 12V 210 AH","BATTERY 12V 210 AH",null,0,null,0]
[0,null,"24V LONGUE DUREE",null,null,null,null,null,null,null,null,"24V LONGUE DUREE","24V LONG LIFE",null,0,null,0]
[0,null,"30V PACK",null,null,null,null,null,null,null,null,"30V PACK","30V PACK",null,0,null,0]
[0,null,"CEINTURE 12V",null,null,null,null,null,null,null,null,"CEINTURE 12V","12V BELT PACK",null,0,null,0]
[0,null,"CEINTURE 30V",null,null,null,null,null,null,null,null,"CEINTURE 30V","30V BELT PACK",null,0,null,0]
[null,null,{"$f":"IF($I$1=\"x\",M819,L819)","v":"BATTERIES VLOCK POUR MIX"},null,null,null,null,null,null,null,null,"BATTERIES VLOCK POUR MIX","BATTERY VLOCK",null,0,null,0]
[null,null,{"$f":"IF($I$1=\"x\",M820,L820)","v":"BATTERIE NP-F750"},null,null,null,null,null,null,null,null,"BATTERIE NP-F750","BATTERY NP-F750",null,0,null,0]
[0,null,"BANDOUILLERE 30V",null,null,null,null,null,null,null,null,"BANDOUILLERE 30V","SHOULDER PACK 30V",null,0,null,0]
[0,null,"00:00:00",null,null,null,null,null,null,null,null,null,null,null,0,null,0]
[0,null,"POWER BANK 1u",null,null,null,null,null,null,null,null,"POWER BANK 1u","POWER BANK 1u",null,{"$f":"B823*N823","v":0},null,{"$f":"P823*B823","v":0}]
[0,null,"POWER BANK 2u",null,null,null,null,null,null,null,null,"POWER BANK 2u","POWER BANK 2u",null,{"$f":"B824*N824","v":0},null,{"$f":"P824*B824","v":0}]
[0,null,"VALISE D'ENERGIE 45 minutes ",null,null,null,null,null,null,null,null,"VALISE D'ENERGIE 45 minutes ","POWER CASE 45 minutes ",null,{"$f":"B825*N825","v":0},null,{"$f":"P825*B825","v":0}]
[0,{"$f":"IF(SUM(B827:B836)>0,\"Qté\",0)","v":0},"CONVERTISSEUR",null,null,null,null,null,null,null,null,"CONVERTISSEUR","AC DC INVERTOR"]
[0,null,"12V / 800W",null,null,null,null,null,null,null,null,"12V / 800W","12V / 800W",null,{"$f":"B827*N827","v":0},null,{"$f":"P827*B827","v":0}]
[0,null,"12V / 1800W",null,null,null,null,null,null,null,null,"12V / 1800W","12V / 1800W",null,0,null,0]
[0,null,"24V / 400W",null,null,null,null,null,null,null,null,"24V / 400W","24V / 400W",null,0,null,0]
[0,null,"30V / 200 – 400W",null,null,null,null,null,null,null,null,"30V / 200 – 400W","30V / 200 – 400W",null,0,null,0]
[0,null,"30V / 200W",null,null,null,null,null,null,null,null,"30V / 200W","30V / 200W",null,0,null,0]
[0,null,"CONVERTISSEUR 12V/220V  2 kW",null,null,null,null,null,null,null,null,"CONVERTISSEUR 12V/220V  2 kW","INVERTOR 12V/220V  2 kW",null,0,null,0]
[0,null,"CONVERTISSEUR 30V/220V  400W",null,null,null,null,null,null,null,null,"CONVERTISSEUR 30V/220V  400W","INVERTOR 30V/220V  400W",null,0,null,0]
[0,null,"CONVERTISSEUR 30V/220V  250W",null,null,null,null,null,null,null,null,"CONVERTISSEUR 30V/220V  250W","INVERTOR 30V/220V  250W",null,0,null,0]
[0,null,"00:00:00",null,null,null,null,null,null,null,null,null,null,null,0,null,0]
[0,null,"00:00:00",null,null,null,null,null,null,null,null,null,null,null,0,null,0]
[]
[0,{"$f":"IF(SUM(B839:B876)>0,\"Qté\",0)","v":0},"GROUPES ELECTROGENES",null,null,null,null,null,null,null,null,"GROUPES ELECTROGENES","AC GENERATORS"]
[0,null,"GROUPE TRI-PHASES JUMELABLES",null,null,null,null,null,null,null,null,"GROUPE TRI-PHASES JUMELABLES","TWIN 3 PHASES GENERATOR",null,null,null,{"$f":"P839*B839","v":0}]
[0,null,"GROUPE 500KW",null,null,null,null,null,null,null,null,"GROUPE 500KW","AC GENERATOR ",null,null,null,0]
[0,null,"GROUPE 240 KW",null,null,null,null,null,null,null,null,"GROUPE 240 KW","AC GENERATOR 240 KW",null,null,null,0]
[0,null,"GROUPE 2 x160kw",null,null,null,null,null,null,null,null,"GROUPE 2 x160kw","AC GENERATOR ",null,null,null,0]
[0,null,"GROUPE 200KW",null,null,null,null,null,null,null,null,"GROUPE 200KW","AC GENERATOR ",null,null,null,0]
[{"$f":"IF(B844>0,\"x\",0)","v":0},null,"GROUPE 180KW",null,null,null,null,null,null,null,null,"GROUPE 180KW","AC GENERATOR ",null,null,null,0]
[0,null,"GROUPE 160KW",null,null,null,null,null,null,null,null,"GROUPE 160KW","AC GENERATOR ",null,null,null,0]
[0,null,"GROUPE 150 KW",null,null,null,null,null,null,null,null,"GROUPE 150 KW","AC GENERATOR 150 KW",null,null,null,0]
[0,null,"GROUPE 140KW",null,null,null,null,null,null,null,null,"GROUPE 140KW","AC GENERATOR ",null,null,null,0]
[0,null,"GROUPE 120 KW ",null,null,null,null,null,null,null,null,"GROUPE 120 KW ","AC GENERATOR 120 KW ",null,null,null,0]
[0,null,"GROUPE 2 x 120KW ",null,null,null,null,null,null,null,null,"GROUPE 2 x 120KW ","AC GENERATOR ",null,null,null,0]
[0,null,"GROUPE 100 KW",null,null,null,null,null,null,null,null,"GROUPE 100 KW","AC GENERATOR 100 KW",null,null,null,0]
[0,null,"GROUPE 100KW SUR PORTEUR 4x4",null,null,null,null,null,null,null,null,"GROUPE 100KW SUR PORTEUR 4x4","AC GENERATOR ",null,null,null,0]
[0,null,"GROUPE 80 KW ",null,null,null,null,null,null,null,null,"GROUPE 80 KW ","AC GENERATOR 80 KW ",null,null,null,0]
[0,null,"GROUPE 75 KW ",null,null,null,null,null,null,null,null,"GROUPE 75 KW ","AC GENERATOR 75 KW ",null,null,null,0]
[0,null,"GROUPE 70 KW ",null,null,null,null,null,null,null,null,"GROUPE 70 KW ","AC GENERATOR 70 KW ",null,null,null,0]
[0,null,"GROUPE 60 KW",null,null,null,null,null,null,null,null,"GROUPE 60 KW","AC GENERATOR 60 KW",null,null,null,0]
[0,null,"GROUPE 50 KW",null,null,null,null,null,null,null,null,"GROUPE 50 KW","AC GENERATOR 50 KW",null,null,null,0]
[0,null,"GROUPE 45 KW ",null,null,null,null,null,null,null,null,"GROUPE 45 KW ","AC GENERATOR 45 KW ",null,null,null,0]
[0,null,"GROUPE 40 KW ","1 jour 04/10",null,null,null,null,null,null,null,"GROUPE 40 KW ","AC GENERATOR 40 KW ",null,null,null,0]
[0,null,{"$f":"IF($I$1=\"x\",M859,L859)","v":"GROUPE MONO-PHASES"},null,null,null,null,null,null,null,null,"GROUPE MONO-PHASES","SINGLE PHASE GENERATOR",null,null,null,0]
[0,null,"GROUPE 30 KW",null,null,null,null,null,null,null,null,"GROUPE 30 KW","AC GENERATOR 30 KW",null,null,null,0]
[0,null,"GROUPE 20 KW",null,null,null,null,null,null,null,null,"GROUPE 20 KW","AC GENERATOR 20 KW",null,null,null,0]
[0,null,"UNITE PORTABLE SANS TECHNICIEN",null,null,null,null,null,null,null,null,"UNITE PORTABLE SANS TECHNICIEN","STAND ALONE UNIT",null,null,null,0]
[0,null,"GROUPE 12KVA TRI",null,null,null,null,null,null,null,null,"GROUPE 12KVA TRI","AC GENERATOR 12KVA 3P",null,null,null,0]
[0,null,"GROUPE 10 KW ",null,null,null,null,null,null,null,null,"GROUPE 10 KW ","AC GENERATOR 10 KW ",null,null,420,0]
[0,null,"GROUPE 6,5 KVA ",null,null,null,null,null,null,null,null,"GROUPE 6,5 KVA ","AC GENERATOR 6,5 KVA ",null,null,120,0]
[0,null,"GROUPE 5,5 KVA ",null,null,null,null,null,null,null,null,"GROUPE 5,5 KVA ","AC GENERATOR 5,5 KVA ",null,null,110,0]
[0,null,"GROUPE 3 KVA",null,null,null,null,null,null,null,null,"GROUPE 3 KVA","AC GENERATOR 3KVA",null,null,61,0]
[0,null,"GROUPE 2,5 KVA",null,null,null,null,null,null,null,null,"GROUPE 2,5 KVA","AC GENERATOR 2,5 KVA",null,null,21,0]
[0,null,"GROUPE 1 KVA",null,null,null,null,null,null,null,null,"GROUPE 1 KVA","AC GENERATOR 1KVA",null,null,null,0]
[0,null,"INVERSEUR",null,null,null,null,null,null,null,null,"INVERSEUR","INVERSOR",null,null,null,0]
[0,null,"ARMOIRE DE COUPLAGE GROUPE A GROUPE",null,null,null,null,null,null,null,null,"ARMOIRE DE COUPLAGE GROUPE A GROUPE","GENY TO GENY COUPLING HUB",null,null,null,0]
[0,null,"PIQUET DE TERRE",null,null,null,null,null,null,null,null,"PIQUET DE TERRE","GROUNDING POLE",null,null,null,0]
[0,null,"POT D'ECHAP GPE PORTA",null,null,null,null,null,null,null,null,"POT D'ECHAP GPE PORTA","EXHAUST FOR PORTABLE GENERATOR",null,null,0.5,0]
[0,null,"JERRICAN",null,null,null,null,null,null,null,null,"JERRICAN","FUEL TANKS",null,null,12,0]
[0,null,"JEU DE RAMPES",null,null,null,null,null,null,null,null,"JEU DE RAMPES","RAMPS",null,null,25,0]
[0,null,"MALETTE AVEC 2 CALES - 2 ADAPT","POUR GROUPE 10 KW",null,null,null,null,null,null,null,"MALETTE AVEC 2 CALES - 2 ADAPT",null,null,null,null,0]
[0,{"$f":"IF(SUM(B878:B911)>0,\"Qté\",0)","v":0}," ACCESSOIRE DE BRANCHEMENT",null,null,null,null,null,null,null,null," ACCESSOIRE DE BRANCHEMENT","DISTRIBUTION EQUIPMENT"]
[0,null,"ARMOIRE DE DISTRIBUTION",null,null,null,null,null,null,null,null,"ARMOIRE DE DISTRIBUTION","DISTRIBUTION HUB",null,null,null,{"$f":"P878*B878","v":0}]
[0,null,"COFFRET EDF",null,null,null,null,null,null,null,null,"COFFRET EDF","INLAND POWER HUB – 3 PHASES 80A",null,null,30,0]
[0,null,"COFFRET EDF TARIF JAUNE",null,null,null,null,null,null,null,null,"COFFRET EDF TARIF JAUNE","INLAND POWER HUB – 3 PHASES 80A",null,null,30,0]
[0,null,"ARMOIRE 400A",null,null,null,null,null,null,null,null,"ARMOIRE 400A","600A THREE PHASE CAMLOCK HUB",null,null,30,0]
[0,null,"ARMOIRE 4 x 125A",null,null,null,null,null,null,null,null,"ARMOIRE 4 x 125A","4x200A THREE PHASE CAMLOCK HUB",null,null,30,0]
[0,null,"ARMOIRE 600A",null,null,null,null,null,null,null,null,"ARMOIRE 600A","800A THREE PHASE CAMLOCK HUB",null,null,30,0]
[0,null,"PROTECTION 30mA",null,null,null,null,null,null,null,null,"PROTECTION 30mA","BULLSWITCH",null,null,8,0]
[0,null,"COFFRET DE DISTRIBUTION",null,null,null,null,null,null,null,null,"COFFRET DE DISTRIBUTION","DISTRO BOX",null,null,20,0]
[0,null,"BOITE TRI PHASEE 63 / 90 T30",null,null,null,null,null,null,null,null,"BOITE TRI PHASEE 63 / 90 T30","1000A THREE PHASE LUG COMBO BOX",null,null,6,0]
[0,null,"BOITE MONO",null,null,null,null,null,null,null,null,"BOITE MONO","800A SINGLE PHASE LUG TO MOLELOCK DROP DOWN BOX",null,null,4,0]
[0,null,"BOITE TRI PHASEE 250A",null,null,null,null,null,null,null,null,"BOITE TRI PHASEE 250A","600A DISTROBOX",null,null,null,0]
[0,null,"BOITE M6",null,null,null,null,null,null,null,null,"BOITE M6","GANG BOX",null,null,1.2,0]
[0,null,"TRIPLETTE",null,null,null,null,null,null,null,null,"TRIPLETTE","FOUR-WAY",null,null,0.2,0]
[0,null,"DISTRIBUTION",null,null,null,null,null,null,null,null,"DISTRIBUTION","FEEDERS",null,null,null,0]
[0,null,"LIGNE UNIFILAIRE 95mm2 - 25m",null,null,null,null,null,null,null,null,"LIGNE UNIFILAIRE 95mm2 - 25m","#0000 FEEDER CABLE 100fts",null,null,60,0]
[0,null,"LIGNE UNIFILAIRE 50mm2 - 25m",null,null,null,null,null,null,null,null,"LIGNE UNIFILAIRE 50mm2 - 25m","#000 FEEDER CABLE 100fts",null,null,50,0]
[0,null,"LIGNE TRI",null,null,null,null,null,null,null,null,"LIGNE TRI","THREE PHASE SUB FEEDER CABLE – 5x #2 COPPER ",null,null,20,0]
[0,null,"LIGNE MONO 20 KW",null,null,null,null,null,null,null,null,"LIGNE MONO 20 KW","ONE PHASE SUB FEEDER CABLE – 3x #1 COPPER",null,null,24,0]
[0,null,"PROLONG 50A 10M",null,null,null,null,null,null,null,null,"PROLONG 50A 10M","ONE BATE FEEDER CABLE – 3x #4 COPPER",null,null,6,0]
[0,null,"PROLONG 50A 20M",null,null,null,null,null,null,null,null,"PROLONG 50A 20M","ONE PHASE BATE CABLE – 3x #4 COPPER 60fts",null,null,17,0]
[0,null,"PROLONG 16A 10M",null,null,null,null,null,null,null,null,"PROLONG 16A 10M","20A EXTENSION STINGER 30fts",null,null,1.5,0]
[0,null,"PROLONG 16A 20M",null,null,null,null,null,null,null,null,"PROLONG 16A 20M","20A EXTENSION STINGER 60fts",null,null,2,0]
[0,null,"TONNEAUX ",null,null,null,null,null,null,null,null,"TONNEAUX ","LUNCH BOX",null,null,10,0]
[0,null,"INTERUPTEUR 50A",null,null,null,null,null,null,null,null,"INTERUPTEUR 50A","40A SWITCH BOX",null,null,2,0]
[0,null,"EPANOUI 32 / 50A",null,null,null,null,null,null,null,null,"EPANOUI 32 / 50A","40A TIE IN",null,null,0.7,0]
[0,null,"EPANOUI 63 / 90A",null,null,null,null,null,null,null,null,"EPANOUI 63 / 90A","80A TIE IN",null,null,0.9,0]
[0,null,"PASSAGE DE CABLE le metre",null,null,null,null,null,null,null,null,"PASSAGE DE CABLE le metre","CABLE CROSSING",null,null,6,0]
[0,null,"VIPERE 63 / 90A",null,null,null,null,null,null,null,null,"VIPERE 63 / 90A","80A CAMLOCK SPLITTER",null,null,2.8,0]
[0,null,"VIPERE 32 / 50A",null,null,null,null,null,null,null,null,"VIPERE 32 / 50A","40A CAMLOCK SPLITTER",null,null,2,0]
[0,null,"FOUET 50 A ",null,null,null,null,null,null,null,null,"FOUET 50 A ","40A FEEDER TO 20A STINGERS ADAPTER",null,null,1.5,0]
[{"$f":"IF(B908>0,\"x\",0)","v":0},null,{"$f":"IF($I$1=\"x\",M908,L908)","v":"00:00:00"}]
[{"$f":"IF(B909>0,\"x\",0)","v":0},null,{"$f":"IF($I$1=\"x\",M909,L909)","v":"P17/32 TRI M vers MARECHAL 63A F"},null,null,null,null,null,null,null,null,"P17/32 TRI M vers MARECHAL 63A F","P17/32 TRI M vers MARECHAL 63A F"]
[{"$f":"IF(B910>0,\"x\",0)","v":0},null,"ADAPTATEUR P17-MARECHAL 32A",null,null,null,null,null,null,null,null,"ADAPTATEUR P17-MARECHAL 32A","FRENCH ADAPTER CONNECTORS",null,null,1.5,0]
[0,null,"ADAPTATEUR P17-MARECHAL 63A",null,null,null,null,null,null,null,null,"ADAPTATEUR P17-MARECHAL 63A","FRENCH ADAPTER CONNECTORS",null,null,1.5,0]
[0,{"$f":"IF(SUM(B913:B949)>0,\"Qté\",0)","v":0},"PIEDS POUR PROJECTEUR",null,null,null,null,null,null,null,null,"PIEDS POUR PROJECTEUR","STAND FOR LIGHTING"]
[0,null,"BABY MATTHEWS 1000 ",null,null,null,null,null,null,null,null,"BABY MATTHEWS 1000 ","MINI PREEME BABY",null,null,3,{"$f":"P913*B913","v":0}]
[0,null,"BABY 5 KW ",null,null,null,null,null,null,null,null,"BABY 5 KW ","BABY 5 KW ",null,null,4.5,0]
[0,null,"BABY MATTHEWS 10 KW ",null,null,null,null,null,null,null,null,"BABY MATTHEWS 10 KW ","BABY MATTHEWS 10 KW ",null,null,7.5,0]
[0,null,"U 070 MANFROTTO",null,null,null,null,null,null,null,null,"U 070 MANFROTTO","U 070 MANFROTTO",null,null,6.3,0]
[0,null,"LOW BOY",null,null,null,null,null,null,null,null,"LOW BOY","LOW BOY",null,null,41,0]
[0,null,"BABY CRANK",null,null,null,null,null,null,null,null,"BABY CRANK","STRATO SAFE STAND 18",null,null,27,0]
[0,null,"MATTHEWS - AVENGER 1000 ",null,null,null,null,null,null,null,null,"MATTHEWS - AVENGER 1000 ","HOLLYWOOD BEEFY BABY TRIPLE RISER",null,null,6.1,0]
[0,null,"PIEDS 1000 ACIER",null,null,null,null,null,null,null,null,"PIEDS 1000 ACIER","STAND 1000 STEEL",null,null,11,0]
[0,null,"PIED CREMER 1 KW",null,null,null,null,null,null,null,null,"PIED CREMER 1 KW","STAND CREMER 1 KW",null,null,12,0]
[0,null,"PIEDS CENTURY GM",null,null,null,null,null,null,null,null,"PIEDS CENTURY GM","CENTURY STAND 40'",null,null,7.2,0]
[0,null,"PIEDS CENTURTY MM",null,null,null,null,null,null,null,null,"PIEDS CENTURTY MM","CENTURY STAND 30'",null,null,5.9,0]
[0,null,"PIEDS CENTURY PM",null,null,null,null,null,null,null,null,"PIEDS CENTURY PM","CENTURY STAND 20'",null,null,4,0]
[0,null,{"$f":"IF($I$1=\"x\",M925,L925)","v":"PIED GIRAFE 1000"},null,null,null,null,null,null,null,null,"PIED GIRAFE 1000","STAND GIRAFE 1000",null,null,null,0]
[0,null,"MAGIC STAND",null,null,null,null,null,null,null,null,"MAGIC STAND","MAGIC STAND",null,null,17,0]
[0,null,"MANFROTTO  5 KW 111U ",null,null,null,null,null,null,null,null,"MANFROTTO  5 KW 111U ","MANFROTTO  5 KW 111U ",null,null,14,0]
[0,null,"U 126 MANFROTTO ",null,null,null,null,null,null,null,null,"U 126 MANFROTTO ","U 126 MANFROTTO ",null,null,7.3,0]
[0,null,"PIED CREMER 10 KW",null,null,null,null,null,null,null,null,"PIED CREMER 10 KW","STAND CREMER 10 KW",null,null,6,0]
[0,null,"AVENGER TELESCOPIQUE ",null,null,null,null,null,null,null,null,"AVENGER TELESCOPIQUE ","AVENGER TELESCOPIQUE ",null,null,6.8,0]
[0,null,"HIGH ROLLER",null,null,null,null,null,null,null,null,"HIGH ROLLER","HIGH ROLLER",null,null,18.3,0]
[0,null,"U 270 MANFROTTO",null,null,null,null,null,null,null,null,"U 270 MANFROTTO","U 270 MANFROTTO",null,null,13.5,0]
[0,null,"MANFROTTO WIND UP SANSON",null,null,null,null,null,null,null,null,"MANFROTTO WIND UP SANSON","MANFROTTO WIND UP 8''",null,null,19,0]
[0,null,"MANFROTTO WIND UP ",null,null,null,null,null,null,null,null,"MANFROTTO WIND UP ","MANFROTTO WIND UP 13''",null,null,25,0]
[0,null,"MANFROTTO SUPER WIND UP ",null,null,null,null,null,null,null,null,"MANFROTTO SUPER WIND UP ","MANFROTTO SUPER WIND UP",null,null,32,0]
[0,null,"MANFROTTO MEGA WIND UP",null,null,null,null,null,null,null,null,"MANFROTTO MEGA WIND UP","MANFROTTO MEGA WIND UP",null,null,38,0]
[0,null,"CRANK O VATOR MATTHEWS manivelle",null,null,null,null,null,null,null,null,"CRANK O VATOR MATTHEWS manivelle","CRANK O VATOR MATTHEWS",null,null,39,0]
[0,null,"MOLEVATOR ",null,null,null,null,null,null,null,null,"MOLEVATOR ","MOLEVATOR ",null,null,null,0]
[0,null,"SUPER CRANK O VATOR II",null,null,null,null,null,null,null,null,"SUPER CRANK O VATOR II","SUPER CRANK O VATOR II",null,null,55,0]
[0,null,"CINEVATOR MATTHEWS  ELECTRIQUE DOUBLE TIGE",null,null,null,null,null,null,null,null,"CINEVATOR MATTHEWS  ELECTRIQUE DOUBLE TIGE","CINEVATOR MATTHEWS DOUBLE RISER",null,null,40,0]
[0,null,"CINEVATOR MATTHEWS  ELECTRIQUE TRIPLE TIGE",null,null,null,null,null,null,null,null,"CINEVATOR MATTHEWS  ELECTRIQUE TRIPLE TIGE","CINEVATOR MATTHEWS TRIPLE RISER",null,null,52,0]
[0,null,"EASY LIFT 3 TIGES",null,null,null,null,null,null,null,null,"EASY LIFT 3 TIGES","EASY LIFT 3 RISER",null,null,70,0]
[0,null,"EASY LIFT 5 TIGES",null,null,null,null,null,null,null,null,"EASY LIFT 5 TIGES","EASY LIFT 5 RISER",null,null,85,0]
[0,null,"BABY LONG JOHN SILVER",null,null,null,null,null,null,null,null,"BABY LONG JOHN SILVER","BABY LONG JOHN SILVER",null,null,70,0]
[0,null,"LONG JOHN SILVER",null,null,null,null,null,null,null,null,"LONG JOHN SILVER","LONG JOHN SILVER",null,null,85,0]
[0,null,"RALLONGE MANFTROTTO 2 KW ",null,null,null,null,null,null,null,null,"RALLONGE MANFTROTTO 2 KW ","MANFTROTTO JUNIOR EXTENSION ",null,null,4.8,0]
[0,null,"SUSPENSION TELESCOPIQUE",null,null,null,null,null,null,null,null,"SUSPENSION TELESCOPIQUE","TELESCOPIC HANGER",null,null,5.0999999999999996,0]
[0,null,"TRANSFOMATEUR POUR MOLEVATOR",null,null,null,null,null,null,null,null,"TRANSFOMATEUR POUR MOLEVATOR","TRANSFOMER FOR MOLEVATOR",null,null,null,0]
[0,null,"GUEUZE",null,null,null,null,null,null,null,null,"GUEUZE","SAND BAG",null,null,8,0]
[0,{"$f":"IF(SUM(B951:B1021)>0,\"Qté\",0)","v":0},"PRESSE ET SUPPORT",null,null,null,null,null,null,null,null,"PRESSE ET SUPPORT","GRIP"]
[0,null,"MINI MAT BOOM",null,null,null,null,null,null,null,null,"MINI MAT BOOM","MINI MAT BOOM",null,null,3.4,{"$f":"P951*B951","v":0}]
[0,null,"BABY MAT BOOM",null,null,null,null,null,null,null,null,"BABY MAT BOOM","BABY MAT BOOM",null,null,4.9000000000000004,0]
[0,null,"MAT BOOM",null,null,null,null,null,null,null,null,"MAT BOOM","MAT BOOM",null,null,18.600000000000001,0]
[0,null,"DEPORT GONZALES",null,null,null,null,null,null,null,null,"DEPORT GONZALES","GONZALES BOOM",null,null,null,0]
[0,null,"Bielle mat boom",null,null,null,null,null,null,null,null,"Bielle mat boom","Junior drop down pin",null,null,2.1,0]
[0,null,"Mini bielle",null,null,null,null,null,null,null,null,"Mini bielle","Baby drop down pin",null,null,0.62,0]
[0,null,"Déport Z",null,null,null,null,null,null,null,null,"Déport Z","Grip helper",null,null,4.5,0]
[0,null,"Deport section carré 50 28mm",null,null,null,null,null,null,null,null,"Deport section carré 50 28mm","JUNIOR Offset arm",null,null,3.1,0]
[0,null,"DEPORT SECTION CARR2 50 16mm",null,null,null,null,null,null,null,null,"DEPORT SECTION CARR2 50 16mm","BABY OFFSET ARM",null,null,1.5,0]
[0,null,"Déport main de singe à ROTULE",null,null,null,null,null,null,null,null,"Déport main de singe à ROTULE","HEAVY DUTY FLAG CLAMP",null,null,1.8,0]
[0,null,"Déport main de singe 28 femelle",null,null,null,null,null,null,null,null,"Déport main de singe 28 femelle","JUNIOR SIDE ARM",null,null,1.2,0]
[0,null,"Déport main de singe 16 male",null,null,null,null,null,null,null,null,"Déport main de singe 16 male","BABY SIDE ARM",null,null,0.9,0]
[0,null,"BASE à roulette MATTHEWS",null,null,null,null,null,null,null,null,"BASE à roulette MATTHEWS","RUNAWAY BASE MATTHEWS",null,null,9,0]
[0,null,"Base à roulettes Manfrotto",null,null,null,null,null,null,null,null,"Base à roulettes Manfrotto","RUNAWAY  BASE MANFROTTO",null,null,null,0]
[0,null,"Base Century",null,null,null,null,null,null,null,null,"Base Century","Turtle base",null,null,2.2000000000000002,0]
[0,null,"BASE D'ARC ",null,null,null,null,null,null,null,null,"BASE D'ARC ","BRUTE BASE",null,null,4.5,0]
[0,null,"BASE BRAS MAGIQUE",null,null,null,null,null,null,null,null,"BASE BRAS MAGIQUE","MINI BACKLITE BASE",null,null,1.1000000000000001,0]
[0,null,"BRAS A ROTULES 0,5 M ",null,null,null,null,null,null,null,null,"BRAS A ROTULES 0,5 M ","20'' extension grip arm",null,null,0.7,0]
[0,null,"BRAS A ROTULES 1 M ",null,null,null,null,null,null,null,null,"BRAS A ROTULES 1 M ","40'' extension grip arm",null,null,0.9,0]
[0,null,"DEPORT 1M AVEC DOIGHT MAGIQUE",null,null,null,null,null,null,null,null,"DEPORT 1M AVEC DOIGHT MAGIQUE","MAGIC FINGER 5/8'' 40'",null,null,0.9,0]
[0,null,"BRAS MAGIQUE",null,null,null,null,null,null,null,null,"BRAS MAGIQUE","FRICTION ARM",null,null,0.52500000000000002,0]
[0,null,"CHAINE DE SECURITE",null,null,null,null,null,null,null,null,"CHAINE DE SECURITE","SECURITY CHAIN",null,null,0.2,0]
[0,null,"CROCHET JULIA",null,null,null,null,null,null,null,null,"CROCHET JULIA","HOOK ADAPTER",null,null,null,0]
[{"$f":"IF(B974>0,\"x\",0)","v":0},null,"CLAMP",null,null,null,null,null,null,null,null,"CLAMP","MAFFER CLAMP",null,null,0.4,0]
[0,null,"ROTULE GIRAFFE MA123",null,null,null,null,null,null,null,null,"ROTULE GIRAFFE MA123","BOOM CLAMP MA123",null,null,0.72,0]
[0,null,"ROTULE GIRAFFE D50mm cpk",null,null,null,null,null,null,null,null,"ROTULE GIRAFFE D50mm cpk","BOOM CLAMP DIAM 50mm",null,null,null,0]
[0,null,"COLLIER 50 SIMPLE",null,null,null,null,null,null,null,null,"COLLIER 50 SIMPLE","LP EYE COUPLER",null,null,0.36,0]
[0,null,"Collier double 50 fixe parallele",null,null,null,null,null,null,null,null,"Collier double 50 fixe parallele","PARALLEL LP EYE COUPLER",null,null,0.76,0]
[0,null,"Collier double 50 90°",null,null,null,null,null,null,null,null,"Collier double 50 90°","90° FIXED LP EYE COUPLER",null,null,0.76,0]
[0,null,"Collier double 50 articulé",null,null,null,null,null,null,null,null,"Collier double 50 articulé","SWIVEL LP EYE COUPLER",null,null,0.76,0]
[0,null,"COLLIER 50 SPIGOT 16",null,null,null,null,null,null,null,null,"COLLIER 50 SPIGOT 16","LP EYE COUPLER WITH 2'' ½ STUD",null,null,0.41,0]
[0,null,"COLLIER 50 A CROCHET",null,null,null,null,null,null,null,null,"COLLIER 50 A CROCHET","LP EYE COUPLER WITH LIFTING RING",null,null,0.55000000000000004,0]
[0,null,"Collier manfrotto 28/50",null,null,null,null,null,null,null,null,"Collier manfrotto 28/50","BARREL CLAMP",null,null,0.9,{"$f":"P983*B983","v":0}]
[0,null,"CROCHET C CLAMP ",null,null,null,null,null,null,null,null,"CROCHET C CLAMP ","HOOK C CLAMP ",null,null,0.67500000000000004,0]
[0,null,"CROCHET S 111 ",null,null,null,null,null,null,null,null,"CROCHET S 111 ","JUNIOR PIPE CLAMP 4'' ½ SOCKET",null,null,1.1299999999999999,0]
[0,null,"CYCLONE GM",null,null,null,null,null,null,null,null,"CYCLONE GM","CARDELLINI CLAMP 6''",null,null,0.65,0]
[0,null,"CYCLONE PM",null,null,null,null,null,null,null,null,"CYCLONE PM","CARDELLINI 3''",null,null,0.5,0]
[0,null,"TWISTER",null,null,null,null,null,null,null,null,"TWISTER","CARDELINI DOUBLE 90° 5/8'' PIN",null,null,0.7,0]
[0,null,{"$f":"IF($I$1=\"x\",M989,L989)","v":"PMR 2x16 10cm"},null,null,null,null,null,null,null,null,"PMR 2x16 10cm","C CLAMP 8'' WITH 2 5/8'' PINS",null,null,2.7,0]
[0,null,"PMR 2x16 15cM",null,null,null,null,null,null,null,null,"PMR 2x16 15cM","C CLAMP 6'' WITH 2 5/8'' PINS",null,null,1.7,0]
[0,null,"PMR 2x16 20cm",null,null,null,null,null,null,null,null,"PMR 2x16 20cm","C CLAMP 4'' WITH 2 5/8'' PINS",null,null,1,0]
[0,null,"BIG Ben",null,null,null,null,null,null,null,null,"BIG Ben","TRUSS CLAMP",null,null,0.56999999999999995,0]
[0,null,"MAIN DE SINGE",null,null,null,null,null,null,null,null,"MAIN DE SINGE","SWIVELLING ''C'' CLAMP",null,null,1.6,0]
[0,null,"PINCE PELICAN",null,null,null,null,null,null,null,null,"PINCE PELICAN","PELICAN Gaffer grip",null,null,1.4,0]
[0,null,"PINCE CROCODILLE / PIVOT",null,null,null,null,null,null,null,null,"PINCE CROCODILLE / PIVOT","SKY HOOK / GAFFER GRIP",null,null,0.8,0]
[0,null,"Presse 90cm",null,null,null,null,null,null,null,null,"Presse 90cm","Furniture clamp 36''",null,null,1.35,0]
[0,null,"Presse 60cm",null,null,null,null,null,null,null,null,"Presse 60cm","Furniture clamp 24''",null,null,0.9,0]
[0,null,"Presse 45cm",null,null,null,null,null,null,null,null,"Presse 45cm","Furniture clamp 18''",null,null,0.9,0]
[0,null,"Presse 30cm",null,null,null,null,null,null,null,null,"Presse 30cm","Furniture clamp 12''",null,null,0.8,0]
[0,null,"Presse 15cm",null,null,null,null,null,null,null,null,"Presse 15cm","Furniture clamp 6''",null,null,0.7,0]
[0,null,"ROTULE AVENGER ",null,null,null,null,null,null,null,null,"ROTULE AVENGER ","Avenger 2'' ½ grip head",null,null,0.55000000000000004,0]
[0,null,"Rotule Matthews",null,null,null,null,null,null,null,null,"Rotule Matthews","Matthews 2'' ½ grip head",null,null,0.6,0]
[0,null,"Double rotule",null,null,null,null,null,null,null,null,"Double rotule","Double grip head",null,null,0.87,0]
[0,null,"ROTULE PIVOT 28 GM ",null,null,null,null,null,null,null,null,"ROTULE PIVOT 28 GM ","4' '½ jumbo grip head",null,null,2.35,0]
[0,null,"Rotule parapluie",null,null,null,null,null,null,null,null,"Rotule parapluie","TILT-TOP HEAD",null,null,0.4,0]
[0,null,"ROTULE BRAS MAGIQUE",null,null,null,null,null,null,null,null,"ROTULE BRAS MAGIQUE","SWIVEL ADAPTER",null,null,0.45,0]
[0,null,"SUPPORT POLY ",null,null,null,null,null,null,null,null,"SUPPORT POLY ","POLITO BRACKET",null,null,2.5,0]
[0,null,"SUPPORT REFLECTEUR",null,null,null,null,null,null,null,null,"SUPPORT REFLECTEUR","COLLAPSIBLE REFLECTOR HOLDER",null,null,0.7,0]
[0,null,"TOURELLES 28",null,null,null,null,null,null,null,null,"TOURELLES 28","TOURELLES 28",null,null,0.6,0]
[0,null,"Spigot 16/28",null,null,null,null,null,null,null,null,"Spigot 16/28","JUNIOR TO BABY ADAPTER",null,null,0.7,0]
[0,null,"Spigot 16",null,null,null,null,null,null,null,null,"Spigot 16","5/8'' STUD",null,null,0.45,0]
[0,null,"DROP CEILING",null,null,null,null,null,null,null,null,"DROP CEILING","SCISSOR CLIP SPUD ADAPTER",null,null,0.1,0]
[0,null,"PLATINE SPIGO",null,null,null,null,null,null,null,null,"PLATINE SPIGO","PIGEON PLATE 3''",null,null,0.45,0]
[0,null,"AUTOPOLE GM 252 à 475cm",null,null,null,null,null,null,null,null,"AUTOPOLE GM 252 à 475cm","MAXI MATHPOLE 99'' to 187''",null,null,3.17,0]
[0,null,"AUTOPOLE MM 135 à 248cm",null,null,null,null,null,null,null,null,"AUTOPOLE MM 135 à 248cm","MATHPOLE 53'' to 97''",null,null,1.6,{"$f":"P1015*B1015","v":0}]
[0,null,"AUTOPOLE PM 76 à 135cm",null,null,null,null,null,null,null,null,"AUTOPOLE PM 76 à 135cm","MINI MATHPOLE 30'' to 53''",null,null,1.36,0]
[0,null,"BARRE DE COUPLAGE 3 PROJO 28 F",null,null,null,null,null,null,null,null,"BARRE DE COUPLAGE 3 PROJO 28 F","JUNIOR TRIPLE HEADER",null,null,5.4,0]
[0,null,"BARRE DE COUPLAGE 3 PROJO 16M",null,null,null,null,null,null,null,null,"BARRE DE COUPLAGE 3 PROJO 16M","BABY TRIPLE HEADER",null,null,1.5,0]
[0,null,"BRAS FLEXIBLE",null,null,null,null,null,null,null,null,"BRAS FLEXIBLE","HEAVY DUTY FLEX ARM",null,null,0.6,0]
[0,null,"VOLET GRAND MODEL",null,null,null,null,null,null,null,null,"VOLET GRAND MODEL","VOLET GRAND MODEL",null,null,0.34,0]
[0,null,"VOLET PETIT MODEL ",null,null,null,null,null,null,null,null,"VOLET PETIT MODEL ","VOLET PETIT MODEL ",null,null,0.2,0]
[0,{"$f":"IF(SUM(B1023:B1127)>0,\"Qté\",0)","v":0},"MAMA",null,null,null,null,null,null,null,null,"MAMA","NETS"]
[0,null,"NET SIMPLE NOIR 25x31cm",null,null,null,null,null,null,null,null,"NET SIMPLE NOIR 25x31cm","SINGLE BLACK 10''by12''",null,null,0.11,{"$f":"P1023*B1023","v":0}]
[0,null,"NET DOUBLE NOIR 25x31cm",null,null,null,null,null,null,null,null,"NET DOUBLE NOIR 25x31cm","DOUBLE BLACK 10''by12''",null,null,0.11,0]
[0,null,"SOIE BLANCHE 25x31cm",null,null,null,null,null,null,null,null,"SOIE BLANCHE 25x31cm","ARTIFICIAL SILK WHITE 10''by12''",null,null,0.11,0]
[0,null,"SOIE NOIR 25x31cm",null,null,null,null,null,null,null,null,"SOIE NOIR 25x31cm","ARTIFICIAL SILK BLACK 10''by12''",null,null,0.11,0]
[0,null,"¼ STOP SOIE BLANCHE 25x31cm",null,null,null,null,null,null,null,null,"¼ STOP SOIE BLANCHE 25x31cm","¼ STOP SILK WHITE 10''by12''",null,null,0.11,0]
[0,null,"¼ STOP SOIE NOIR 25x31cm",null,null,null,null,null,null,null,null,"¼ STOP SOIE NOIR 25x31cm","¼ STOP SILK BLACK 10''by12''",null,null,0.11,0]
[0,null,"SOIE CHINOISE BLANCHE 25x31cm",null,null,null,null,null,null,null,null,"SOIE CHINOISE BLANCHE 25x31cm","CHINA SILK WHITE 10''by12''",null,null,0.11,0]
[0,null,"SOIE CHINOISE NOIR 25x31cm",null,null,null,null,null,null,null,null,"SOIE CHINOISE NOIR 25x31cm","CHINA SILK BLACK 10''by12''",null,null,0.11,0]
[0,null,"LAVENDE 25x31cm",null,null,null,null,null,null,null,null,"LAVENDE 25x31cm","LAVENDER 10''by12''",null,null,0.11,0]
[0,null,"NET SIMPLE NOIR31x51cm",null,null,null,null,null,null,null,null,"NET SIMPLE NOIR31x51cm","SINGLE BLACK12''by20''",null,null,0.11,0]
[0,null,"NET DOUBLE NOIR31x51cm",null,null,null,null,null,null,null,null,"NET DOUBLE NOIR31x51cm","DOUBLE BLACK12''by20''",null,null,0.11,0]
[0,null,"SOIE BLANCHE31x51cm",null,null,null,null,null,null,null,null,"SOIE BLANCHE31x51cm","ARTIFICIAL SILK WHITE12''by20''",null,null,0.11,0]
[0,null,"SOIE NOIR 31x51cm",null,null,null,null,null,null,null,null,"SOIE NOIR 31x51cm","ARTIFICIAL SILK BLACK12''by20''",null,null,0.11,0]
[0,null,"LAVENDE 31x51cm",null,null,null,null,null,null,null,null,"LAVENDE 31x51cm","LAVENDER 12''by20''",null,null,0.11,0]
[0,null,"NET SIMPLE NOIR31x46cm",null,null,null,null,null,null,null,null,"NET SIMPLE NOIR31x46cm","SINGLE BLACK 12''by18''",null,null,0.22,0]
[{"$f":"IF(B1038>0,\"x\",0)","v":0},null,"NET SIMPLE BLANCHE 31x46cm",null,null,null,null,null,null,null,null,"NET SIMPLE BLANCHE 31x46cm","SINGLE WHITE 12''by18''",null,null,0.22,0]
[0,null,"NET DOUBLE NOIR31x46cm",null,null,null,null,null,null,null,null,"NET DOUBLE NOIR31x46cm","DOUBLE BLACK 12''by18''",null,null,0.22,0]
[0,null,"NET DOUBLE BLANC 31x46cm",null,null,null,null,null,null,null,null,"NET DOUBLE BLANC 31x46cm","DOUBLE WHITE 12''by18''",null,null,0.22,0]
[0,null,"NET TRIPLE NOIR 31x46cm",null,null,null,null,null,null,null,null,"NET TRIPLE NOIR 31x46cm","TRIBLE BLACK 12''by18''",null,null,0.45,0]
[0,null,"SOIE BLANCHE 31x46cm",null,null,null,null,null,null,null,null,"SOIE BLANCHE 31x46cm","ARTIFICIAL SILK WHITE 12''by18''",null,null,0.22,0]
[0,null,"SOIE NOIR 31x46cm",null,null,null,null,null,null,null,null,"SOIE NOIR 31x46cm","ARTIFICIAL SILK BLACK 12''by18''",null,null,0.22,0]
[0,null,"¼ STOP SOIE BLANCHE 31x46cm",null,null,null,null,null,null,null,null,"¼ STOP SOIE BLANCHE 31x46cm","¼ STOP SILK WHITE 12''by18''",null,null,0.22,0]
[0,null,"¼ STOP SOIE NOIR 31x46cm",null,null,null,null,null,null,null,null,"¼ STOP SOIE NOIR 31x46cm","¼ STOP SILK BLACK 12''by18''",null,null,0.22,0]
[0,null,"SOIE CHINOISE BLANCHE 31x46cm",null,null,null,null,null,null,null,null,"SOIE CHINOISE BLANCHE 31x46cm","CHINA SILK WHITE 12''by18''",null,null,0.22,0]
[0,null,"SOIE CHINOISE NOIR 31x46cm",null,null,null,null,null,null,null,null,"SOIE CHINOISE NOIR 31x46cm","CHINA SILK BLACK 12''by18''",null,null,0.22,0]
[0,null,"LAVENDE 31x46cm",null,null,null,null,null,null,null,null,"LAVENDE 31x46cm","LAVENDER 12''by18''",null,null,0.22,0]
[0,null,"NET SIMPLE NOIR 46x61cm",null,null,null,null,null,null,null,null,"NET SIMPLE NOIR 46x61cm","SINGLE BLACK 18''by24''",null,null,0.34,0]
[0,null,"NET SIMPLE BLANCHE 46x61cm",null,null,null,null,null,null,null,null,"NET SIMPLE BLANCHE 46x61cm","SINGLE WHITE 18''by24''",null,null,0.34,0]
[0,null,"NET DOUBLE NOIR 46x61cm",null,null,null,null,null,null,null,null,"NET DOUBLE NOIR 46x61cm","DOUBLE BLACK 18''by24''",null,null,0.34,0]
[0,null,"NET DOUBLE BLANC 46x61cm",null,null,null,null,null,null,null,null,"NET DOUBLE BLANC 46x61cm","DOUBLE WHITE 18''by24''",null,null,0.34,0]
[0,null,{"$f":"IF($I$1=\"x\",M1053,L1053)","v":"NET TRIPLE NOIR 46x61cm"},null,null,null,null,null,null,null,null,"NET TRIPLE NOIR 46x61cm","TRIBLE BLACK 18''by24''",null,null,0.34,0]
[0,null,"NET SIMPLE ARGENT 46x61cm",null,null,null,null,null,null,null,null,"NET SIMPLE ARGENT 46x61cm","SINGLE SILVER COLOR NET 18''by24''",null,null,0.34,0]
[0,null,"NET SIMPLE OR 46x61cm",null,null,null,null,null,null,null,null,"NET SIMPLE OR 46x61cm","SINGLE GOLD COLOR NET 18''by24''",null,null,0.34,{"$f":"P1055*B1055","v":0}]
[0,null,"SOIE BLANCHE 46x61cm",null,null,null,null,null,null,null,null,"SOIE BLANCHE 46x61cm","ARTIFICIAL SILK WHITE 18''by24''",null,null,0.34,0]
[0,null,"SOIE NOIR 46x61cm",null,null,null,null,null,null,null,null,"SOIE NOIR 46x61cm","ARTIFICIAL SILK BLACK 18''by24''",null,null,0.34,0]
[0,null,"¼ STOP SOIE BLANCHE 46x61cm",null,null,null,null,null,null,null,null,"¼ STOP SOIE BLANCHE 46x61cm","¼ STOP SILK WHITE 18''by24''",null,null,0.34,0]
[0,null,"¼ STOP SOIE NOIR 46x61cm",null,null,null,null,null,null,null,null,"¼ STOP SOIE NOIR 46x61cm","¼ STOP SILK BLACK 18''by24''",null,null,0.34,0]
[0,null,"SOIE CHINOISE BLANCHE 46x61cm",null,null,null,null,null,null,null,null,"SOIE CHINOISE BLANCHE 46x61cm","CHINA SILK WHITE 18''by24''",null,null,0.34,0]
[0,null,"SOIE CHINOISE NOIR 46x61cm",null,null,null,null,null,null,null,null,"SOIE CHINOISE NOIR 46x61cm","CHINA SILK BLACK 18''by24''",null,null,0.34,0]
[0,null,"LAVENDE 46x61cm",null,null,null,null,null,null,null,null,"LAVENDE 46x61cm","LAVENDER 18''by24''",null,null,0.34,0]
[0,null,"NET METAL SIMPLE 46x61cm",null,null,null,null,null,null,null,null,"NET METAL SIMPLE 46x61cm","METAL HT SINGLE 18''by24''",null,null,1.04,0]
[0,null,"NET METAL DOUBLE 46x61cm",null,null,null,null,null,null,null,null,"NET METAL DOUBLE 46x61cm","METAL HT DOUBLE 18''by24''",null,null,1.27,0]
[0,null,"NET SIMPLE NOIR 61x76cm",null,null,null,null,null,null,null,null,"NET SIMPLE NOIR 61x76cm","SINGLE BLACK 24''by30''",null,null,0.68,0]
[0,null,"NET SIMPLE BLANCHE 61x76cm",null,null,null,null,null,null,null,null,"NET SIMPLE BLANCHE 61x76cm","SINGLE WHITE 24''by30''",null,null,0.68,0]
[0,null,"NET DOUBLE NOIR 61x76cm",null,null,null,null,null,null,null,null,"NET DOUBLE NOIR 61x76cm","DOUBLE BLACK 24''by30''",null,null,0.68,0]
[0,null,"NET DOUBLE BLANC 61x76cm",null,null,null,null,null,null,null,null,"NET DOUBLE BLANC 61x76cm","DOUBLE WHITE 24''by30''",null,null,0.68,0]
[0,null,"NET TRIPLE NOIR 61x76cm",null,null,null,null,null,null,null,null,"NET TRIPLE NOIR 61x76cm","TRIBLE BLACK 24''by30''",null,null,0.68,0]
[0,null,"NET SIMPLE ARGENT 61x76cm",null,null,null,null,null,null,null,null,"NET SIMPLE ARGENT 61x76cm","SINGLE SILVER COLOR NET 24''by30''",null,null,0.68,0]
[0,null,"NET SIMPLE OR 61x76cm",null,null,null,null,null,null,null,null,"NET SIMPLE OR 61x76cm","SINGLE GOLD COLOR NET 24''by30''",null,null,0.68,0]
[0,null,"NET DOUBLE ARGENT 61x76cm",null,null,null,null,null,null,null,null,"NET DOUBLE ARGENT 61x76cm","DOUBLE SILVER COLORNET 24''by30''",null,null,0.68,0]
[0,null,"NET DOUBLE OR 61x76cm",null,null,null,null,null,null,null,null,"NET DOUBLE OR 61x76cm","DOUBLE GOLD COLORNET 24''by30''",null,null,0.68,0]
[0,null,"SOIE BLANCHE 61x76cm",null,null,null,null,null,null,null,null,"SOIE BLANCHE 61x76cm","ARTIFICIAL SILK WHITE 24''by30''",null,null,0.68,0]
[0,null,"¼ STOP SOIE BLANCHE 61x76cm",null,null,null,null,null,null,null,null,"¼ STOP SOIE BLANCHE 61x76cm","¼ STOP SILK WHITE 24''by30''",null,null,0.68,0]
[0,null,"LAVENDE 61x76cm",null,null,null,null,null,null,null,null,"LAVENDE 61x76cm","LAVENDER 24''by30''",null,null,0.68,0]
[0,null,"NET SIMPLE NOIR 61x92cm",null,null,null,null,null,null,null,null,"NET SIMPLE NOIR 61x92cm","SINGLE BLACK 24''by36''",null,null,0.68,0]
[0,null,"NET SIMPLE BLANCHE 61x92cm",null,null,null,null,null,null,null,null,"NET SIMPLE BLANCHE 61x92cm","SINGLE WHITE 24''by36''",null,null,0.68,0]
[0,null,"NET DOUBLE NOIR 61x92cm",null,null,null,null,null,null,null,null,"NET DOUBLE NOIR 61x92cm","DOUBLE BLACK 24''by36''",null,null,0.68,0]
[0,null,"NET DOUBLE BLANC 61x92cm",null,null,null,null,null,null,null,null,"NET DOUBLE BLANC 61x92cm","DOUBLE WHITE 24''by36''",null,null,0.68,0]
[0,null,"NET TRIPLE NOIR 61x92cm",null,null,null,null,null,null,null,null,"NET TRIPLE NOIR 61x92cm","TRIBLE BLACK 24''by36''",null,null,0.68,0]
[0,null,"NET SIMPLE ARGENT 61x92cm",null,null,null,null,null,null,null,null,"NET SIMPLE ARGENT 61x92cm","SINGLE SILVER COLOR NET 24''by36''",null,null,0.68,0]
[0,null,"NET SIMPLE OR 61x92cm",null,null,null,null,null,null,null,null,"NET SIMPLE OR 61x92cm","SINGLE GOLD COLOR NET 24''by36''",null,null,0.68,0]
[0,null,"NET DOUBLE ARGENT 61x92cm",null,null,null,null,null,null,null,null,"NET DOUBLE ARGENT 61x92cm","DOUBLE SILVER COLORNET 24''by36''",null,null,0.68,0]
[0,null,"NET DOUBLE OR 61x92cm",null,null,null,null,null,null,null,null,"NET DOUBLE OR 61x92cm","DOUBLE GOLD COLORNET 24''by36''",null,null,0.68,0]
[0,null,"SOIE BLANCHE 61x92cm",null,null,null,null,null,null,null,null,"SOIE BLANCHE 61x92cm","ARTIFICIAL SILK WHITE 24''by36''",null,null,0.68,0]
[0,null,"SOIE NOIR 61x92cm",null,null,null,null,null,null,null,null,"SOIE NOIR 61x92cm","ARTIFICIAL SILK BLACK 24''by36''",null,null,0.68,{"$f":"P1087*B1087","v":0}]
[0,null,"¼ STOP SOIE BLANCHE 61x92cm",null,null,null,null,null,null,null,null,"¼ STOP SOIE BLANCHE 61x92cm","¼ STOP SILK WHITE 24''by36''",null,null,0.68,0]
[0,null,"¼ STOP SOIE NOIR 61x92cm",null,null,null,null,null,null,null,null,"¼ STOP SOIE NOIR 61x92cm","¼ STOP SILK BLACK 24''by36''",null,null,0.68,0]
[0,null,"SOIE CHINOISE BLANCHE 61x92cm",null,null,null,null,null,null,null,null,"SOIE CHINOISE BLANCHE 61x92cm","CHINA SILK WHITE 24''by36''",null,null,0.68,0]
[0,null,"SOIE CHINOISE NOIR 61x92cm",null,null,null,null,null,null,null,null,"SOIE CHINOISE NOIR 61x92cm","CHINA SILK BLACK 24''by36''",null,null,0.68,0]
[0,null,"LAVENDE 61x92cm",null,null,null,null,null,null,null,null,"LAVENDE 61x92cm","LAVENDER 24''by36''",null,null,0.68,0]
[0,null,"NET METAL SIMPLE 61x92cm",null,null,null,null,null,null,null,null,"NET METAL SIMPLE 61x92cm","METAL HT SINGLE 24''by36''",null,null,1.49,0]
[0,null,"NET METAL DOUBLE 61x92cm",null,null,null,null,null,null,null,null,"NET METAL DOUBLE 61x92cm","METAL HT DOUBLE 24''by36''",null,null,1.72,0]
[0,null,"NET SIMPLE NOIR 61x122cm",null,null,null,null,null,null,null,null,"NET SIMPLE NOIR 61x122cm","SINGLE BLACK 24''by48''",null,null,1.5,0]
[0,null,"NET DOUBLE NOIR 61x122cm",null,null,null,null,null,null,null,null,"NET DOUBLE NOIR 61x122cm","DOUBLE BLACK 24''by48''",null,null,1.5,0]
[0,null,"SOIE BLANCHE 61x122cm",null,null,null,null,null,null,null,null,"SOIE BLANCHE 61x122cm","ARTIFICIAL SILK WHITE 24''by48''",null,null,1.5,0]
[0,null,"NET SIMPLE NOIR 76x92cm",null,null,null,null,null,null,null,null,"NET SIMPLE NOIR 76x92cm","SINGLE BLACK 30''by36''",null,null,0.79,0]
[0,null,"NET SIMPLE BLANCHE 76x92cm",null,null,null,null,null,null,null,null,"NET SIMPLE BLANCHE 76x92cm","SINGLE WHITE 30''by36''",null,null,0.79,0]
[0,null,"NET DOUBLE NOIR 76x92cm",null,null,null,null,null,null,null,null,"NET DOUBLE NOIR 76x92cm","DOUBLE BLACK 30''by36''",null,null,0.79,0]
[0,null,"NET DOUBLE BLANC 76x92cm",null,null,null,null,null,null,null,null,"NET DOUBLE BLANC 76x92cm","DOUBLE WHITE 30''by36''",null,null,0.79,0]
[{"$f":"IF(B1102>0,\"x\",0)","v":0},null,"NET TRIPLE NOIR 76x92cm",null,null,null,null,null,null,null,null,"NET TRIPLE NOIR 76x92cm","TRIBLE BLACK 30''by36''",null,null,0.79,0]
[0,null,"SOIE BLANCHE 76x92cm",null,null,null,null,null,null,null,null,"SOIE BLANCHE 76x92cm","ARTIFICIAL SILK WHITE 30''by36''",null,null,0.79,0]
[0,null,"SOIE NOIR 76x92cm",null,null,null,null,null,null,null,null,"SOIE NOIR 76x92cm","ARTIFICIAL SILK BLACK 30''by36''",null,null,0.79,0]
[0,null,"¼ STOP SOIE BLANCHE 76x92cm",null,null,null,null,null,null,null,null,"¼ STOP SOIE BLANCHE 76x92cm","¼ STOP SILK WHITE 30''by36''",null,null,0.79,0]
[0,null,"¼ STOP SOIE NOIR 76x92cm",null,null,null,null,null,null,null,null,"¼ STOP SOIE NOIR 76x92cm","¼ STOP SILK BLACK 30''by36''",null,null,0.79,0]
[0,null,"SOIE CHINOISE BLANCHE 76x92cm",null,null,null,null,null,null,null,null,"SOIE CHINOISE BLANCHE 76x92cm","CHINA SILK WHITE 30''by36''",null,null,0.79,0]
[0,null,"SOIE CHINOISE NOIR 76x92cm",null,null,null,null,null,null,null,null,"SOIE CHINOISE NOIR 76x92cm","CHINA SILK BLACK 30''by36''",null,null,0.79,0]
[0,null,"LAVENDE 76x92cm",null,null,null,null,null,null,null,null,"LAVENDE 76x92cm","LAVENDER 30''by36''",null,null,0.79,0]
[0,null,"NET METAL SIMPLE 76x92cm",null,null,null,null,null,null,null,null,"NET METAL SIMPLE 76x92cm","METAL HT SINGLE 30''by36''",null,null,1.95,0]
[0,null,"NET METAL DOUBLE 76x92cm",null,null,null,null,null,null,null,null,"NET METAL DOUBLE 76x92cm","METAL HT DOUBLE 30''by36''",null,null,2.17,0]
[0,null,"NET SIMPLE NOIR 122x122cm",null,null,null,null,null,null,null,null,"NET SIMPLE NOIR 122x122cm","SINGLE BLACK 48''by48''",null,null,1.81,0]
[0,null,"NET SIMPLE BLANCHE 122x122cm",null,null,null,null,null,null,null,null,"NET SIMPLE BLANCHE 122x122cm","SINGLE WHITE 48''by48''",null,null,1.81,0]
[0,null,"NET DOUBLE NOIR 122x122cm",null,null,null,null,null,null,null,null,"NET DOUBLE NOIR 122x122cm","DOUBLE BLACK 48''by48''",null,null,1.81,0]
[0,null,"NET DOUBLE BLANC 122x122cm",null,null,null,null,null,null,null,null,"NET DOUBLE BLANC 122x122cm","DOUBLE WHITE 48''by48''",null,null,1.81,0]
[0,null,"NET TRIPLE NOIR 122x122cm",null,null,null,null,null,null,null,null,"NET TRIPLE NOIR 122x122cm","TRIBLE BLACK 48''by48''",null,null,1.81,0]
[0,null,{"$f":"IF($I$1=\"x\",M1117,L1117)","v":"NET SIMPLE ARGENT 122x122cm"},null,null,null,null,null,null,null,null,"NET SIMPLE ARGENT 122x122cm","SINGLE SILVER COLOR NET 48''by48''",null,null,1.81,0]
[0,null,"NET SIMPLE OR 122x122cm",null,null,null,null,null,null,null,null,"NET SIMPLE OR 122x122cm","SINGLE GOLD COLOR NET 48''by48''",null,null,1.81,0]
[0,null,"NET DOUBLE ARGENT 122x122cm",null,null,null,null,null,null,null,null,"NET DOUBLE ARGENT 122x122cm","DOUBLE SILVER COLORNET 48''by48''",null,null,1.81,{"$f":"P1119*B1119","v":0}]
[0,null,"NET DOUBLE OR 122x122cm",null,null,null,null,null,null,null,null,"NET DOUBLE OR 122x122cm","DOUBLE GOLD COLORNET 48''by48''",null,null,1.81,0]
[0,null,"SOIE BLANCHE 122x122cm",null,null,null,null,null,null,null,null,"SOIE BLANCHE 122x122cm","ARTIFICIAL SILK WHITE 48''by48''",null,null,1.81,0]
[0,null,"SOIE NOIR 122x122cm",null,null,null,null,null,null,null,null,"SOIE NOIR 122x122cm","ARTIFICIAL SILK BLACK 48''by48''",null,null,1.81,0]
[0,null,"¼ STOP SOIE BLANCHE 122x122cm",null,null,null,null,null,null,null,null,"¼ STOP SOIE BLANCHE 122x122cm","¼ STOP SILK WHITE 48''by48''",null,null,1.81,0]
[0,null,"¼ STOP SOIE NOIR 122x122cm",null,null,null,null,null,null,null,null,"¼ STOP SOIE NOIR 122x122cm","¼ STOP SILK BLACK 10'' by 12''",null,null,1.81,0]
[0,null,"SOIE CHINOISE BLANCHE 122x122cm",null,null,null,null,null,null,null,null,"SOIE CHINOISE BLANCHE 122x122cm","CHINA SILK WHITE 48''by48''",null,null,1.81,0]
[0,null,"SOIE CHINOISE NOIR 122x122cm",null,null,null,null,null,null,null,null,"SOIE CHINOISE NOIR 122x122cm","CHINA SILK BLACK 48''by48''",null,null,1.81,0]
[0,null,"LAVENDE 122x122cm",null,null,null,null,null,null,null,null,"LAVENDE 122x122cm","LAVENDER 48''by48''",null,null,1.81,0]
[0,{"$f":"IF(SUM(B1129:B1147)>0,\"Qté\",0)","v":0},"DRAPEAUX",null,null,null,null,null,null,null,null,"DRAPEAUX","SOLID"]
[0,null,"STANDARD 25x31cm",null,null,null,null,null,null,null,null,"STANDARD 25x31cm"," 10''by12'' SOLID",null,null,0.22,{"$f":"P1129*B1129","v":0}]
[0,null,"STANDARD 31x51cm",null,null,null,null,null,null,null,null,"STANDARD 31x51cm","12''by20'' SOLID",null,null,0.22,0]
[0,null,"STANDARD 31x46cm",null,null,null,null,null,null,null,null,"STANDARD 31x46cm","12''by18'' SOLID",null,null,0.68,0]
[0,null,"STANDARD 46x61cm",null,null,null,null,null,null,null,null,"STANDARD 46x61cm","18''by24'' SOLID",null,null,0.9,0]
[0,null,"STANDARD METAL 46x61cm",null,null,null,null,null,null,null,null,"STANDARD METAL 46x61cm","18''by24'' METAL SOLID",null,null,1.36,0]
[0,null,"STANDARD 61x76cm",null,null,null,null,null,null,null,null,"STANDARD 61x76cm","24''by30''  SOLID",null,null,1.24,0]
[0,null,"STANDARD 61x92cm",null,null,null,null,null,null,null,null,"STANDARD 61x92cm"," 24''by36''  SOLID",null,null,1.36,0]
[0,null,"STANDARD METAL 61x92cm",null,null,null,null,null,null,null,null,"STANDARD METAL 61x92cm","24 X 36 METAL SOLID ",null,null,2.4900000000000002,0]
[0,null,"STANDARD 61x122cm",null,null,null,null,null,null,null,null,"STANDARD 61x122cm","24''by48'' SOLID",null,null,1.81,0]
[0,null,"CUTTER 25x105cm",null,null,null,null,null,null,null,null,"CUTTER 25x105cm","10''by42'' CUTTER",null,null,1,0]
[0,null,"CUTTER 45x122cm",null,null,null,null,null,null,null,null,"CUTTER 45x122cm","18''by48'' CUTTER",null,null,1.36,0]
[0,null,"CUTTTER 60x180cm",null,null,null,null,null,null,null,null,"CUTTTER 60x180cm","24''by72'' CUTTER",null,null,2.15,0]
[0,null,"CUTTTER FLOPPY 60x180cm",null,null,null,null,null,null,null,null,"CUTTTER FLOPPY 60x180cm","24''by72'' CUTTER FLOPPY",null,null,2.83,0]
[0,null,"STANDARD  76x92cm",null,null,null,null,null,null,null,null,"STANDARD  76x92cm","30''by36'' SOLID",null,null,1.47,0]
[0,null,"STANDARD 122x122cm",null,null,null,null,null,null,null,null,"STANDARD 122x122cm","48''by48'' SOLID",null,null,2.38,0]
[0,null,"FLOPPY 122x122cm",null,null,null,null,null,null,null,null,"FLOPPY 122x122cm"," 48''by48''FLOPPY",null,null,2.83,0]
[0,null,"STANDARD 122x122cm",null,null,null,null,null,null,null,null,"STANDARD 122x122cm","48''by48'' METAL SOLID",null,null,3.85,0]
[0,null,"CUTTER 100x100cm",null,null,null,null,null,null,null,null,"CUTTER 100x100cm","40''by40'' CUTTER",null,null,1.81,0]
[0,null,"CUTTTER METAL 60x180cm",null,null,null,null,null,null,null,null,"CUTTTER METAL 60x180cm","24''by72'' METAL CUTTER",null,null,4.76,0]
[0,{"$f":"IF(SUM(B1149:B1159)>0,\"Qté\",0)","v":0},"CUCOLORIS",null,null,null,null,null,null,null,null,"CUCOLORIS","CUCOLORIS"]
[0,null,"BOIS 46x61cm",null,null,null,null,null,null,null,null,"BOIS 46x61cm"," 18''by24'' WOOD",null,null,1,{"$f":"P1149*B1149","v":0}]
[0,null,"BOIS  61x36cm",null,null,null,null,null,null,null,null,"BOIS  61x36cm"," 24''by36'' WOOD",null,null,1.7,0]
[0,null,"BOIS 122x122cm",null,null,null,null,null,null,null,null,"BOIS 122x122cm"," 48''by48'' WOOD",null,null,4.4000000000000004,0]
[0,null," CELLO 46x61cm",null,null,null,null,null,null,null,null," CELLO 46x61cm"," 18''by24'' CELLO",null,null,0.34,0]
[0,null,"CELLO 61x92cm",null,null,null,null,null,null,null,null,"CELLO 61x92cm"," 24''by36'' CELLO",null,null,0.79,0]
[0,null,"CELLO 100x100cm",null,null,null,null,null,null,null,null,"CELLO 100x100cm","40''by40'' CELLO",null,null,2.15,0]
[0,null,"CELLO 122x122cm",null,null,null,null,null,null,null,null,"CELLO 122x122cm"," 48''by48'' CELLO",null,null,3.9,0]
[0,null,"COCOLORIS 1,50 x 1,22 M",null,null,null,null,null,null,null,null,"COCOLORIS 1,50 x 1,22 M","COCOLORIS 1,50 x 1,22 M",null,null,null,0]
[0,null,null,null,null,null,null,null,null,null,null,null,null,null,null,null,0]
[0,null,{"$f":"IF($I$1=\"x\",M1158,L1158)","v":"KIT DOT AND FINGER MATTHEWS"},null,null,null,null,null,null,null,null,"KIT DOT AND FINGER MATTHEWS","KIT DOT AND FINGER MATTHEWS",null,null,null,0]
[0,null,"VALISE MAMAS MATTHEWS",null,null,null,null,null,null,null,null,"VALISE MAMAS MATTHEWS","MAMAS MATTHEWS CASE",null,null,null,0]
[0,{"$f":"IF(SUM(B1161:B1171)>0,\"Qté\",0)","v":0},"CADRES",null,null,null,null,null,null,null,null,"CADRES","FRAMES AND OVERHEAD FRAMES"]
[0,null,"CADRES 2x2fts(0.6x0.6m)",null,null,null,null,null,null,null,null,"CADRES 2x2fts(0.6x0.6m)","FRAMES 2x2fts(0.6x0.6m)",null,null,0.5,{"$f":"P1161*B1161","v":0}]
[0,null,"CADRES 3x3fts(0.9x0.9m)",null,null,null,null,null,null,null,null,"CADRES 3x3fts(0.9x0.9m)","FRAMES 3x3fts(0.9x0.9m)",null,null,0.9,0]
[0,null,"CADRES 4x4fts(1,2x1,2m)","252,251,250,216,2 empty frames",null,null,null,null,null,null,null,"CADRES 4x4fts(1,2x1,2m)","FRAMES 4x4fts(1,2x1,2m)",null,null,1.3,0]
[0,null,"CADRES 5x5fts(1,5x1,5m)",null,null,null,null,null,null,null,null,"CADRES 5x5fts(1,5x1,5m)","FRAME 5ftsx5fts(1,5x1,5m)",null,null,1.6,0]
[0,null,"CADRES 6x4fts(2x1,2m)",null,null,null,null,null,null,null,null,"CADRES 6x4fts(2x1,2m)","FRAMES 6x4fts(2x1,2m)",null,null,1.95,0]
[{"$f":"IF(B1166>0,\"x\",0)","v":0},null,"CADRES 6x6fts (183x183cm)",null,null,null,null,null,null,null,null,"CADRES 6x6fts (183x183cm)","FRAMES 6x6fts (2x2m)",null,null,6.9,0]
[0,null,"CADRE MATHEWS (6x6fts)",null,null,null,null,null,null,null,null,"CADRE MATHEWS (6x6fts)","FRAME MATHEWS 6x6fts",null,null,5.4,0]
[0,null,"CADRES 8x8fts (2.4x2.4m)",null,null,null,null,null,null,null,null,"CADRES 8x8fts (2.4x2.4m)","FRAMES 8x8fts (2.4x2.4m)",null,null,13.6,0]
[0,null,"CADRES 12x12fts (3.6x3.6m)",null,null,null,null,null,null,null,null,"CADRES 12x12fts (3.6x3.6m)","FRAMES 12x12fts (3.6x3.6m)",null,null,19,0]
[0,null,"CADRES 12x20fts (4x6m)",null,null,null,null,null,null,null,null,"CADRES 12x20fts (4x6m)","FRAMES 12x20fts (4x6m)",null,null,20,0]
[0,null,"CADRES 20x20fts (6x6m)",null,null,null,null,null,null,null,null,"CADRES 20x20fts (6x6m)","FRAMES 20x20fts (6x6m)",null,null,32.6,0]
[0,{"$f":"IF(SUM(B1174:B1428)>0,\"Qté\",0)","v":0},"TOILE",null,null,null,null,null,null,null,null,"TOILE","OVERHEAD AND BUTTERFLY FABRICS"]
[0,{"$f":"IF(SUM(B1174:B1224)>0,\"Size\",0)","v":0},"6x6"]
[{"$f":"IF(B1174>0,\"x\",0)","v":0},null,{"$f":"IF($I$1=\"x\",M1174,L1174)","v":"SIMPLE TULLE NOIR"},"120x120cm",null," (4x4fts)",null,null,null,null,null,"SIMPLE TULLE NOIR","SINGLE SCRIM BLACK",null,null,0.1,{"$f":"P1174*B1174","v":0}]
[0,null,"DOUBLE TULLE NOIR","120x120cm",null," (4x4fts)",null,null,null,null,null,"DOUBLE TULLE NOIR","DOUBLE SCRIM BLACK",null,null,0.12,{"$f":"P1175*B1175","v":0}]
[0,null,"SIMPLE TULLE NOIR","183x183cm",null," (6x6fts)",null,null,null,null,null,"SIMPLE TULLE NOIR","SINGLE SCRIM BLACK",null,null,0.45,{"$f":"P1176*B1176","v":0}]
[0,null,"SIMPLE TULLE BLANC","183x183cm",null," (6x6fts)",null,null,null,null,null,"SIMPLE TULLE BLANC","SINGLE SCRIM WHITE",null,null,0.45,{"$f":"P1177*B1177","v":0}]
[0,null,"DOUBLE TULLE NOIR","183x183cm",null," (6x6fts)",null,null,null,null,null,"DOUBLE TULLE NOIR","DOUBLE SCRIM BLACK",null,null,0.56999999999999995,0]
[0,null,"DOUBLE TULLE BLANC","183x183cm",null," (6x6fts)",null,null,null,null,null,"DOUBLE TULLE BLANC","DOUBLE SCRIM WHITE",null,null,0.56999999999999995,0]
[0,null,"SIMPLE TULLE ARGENT","183x183cm",null," (6x6fts)",null,null,null,null,null,"SIMPLE TULLE ARGENT","SINGLE SILVER COLOR NET",null,null,0.45,0]
[0,null,"SIMPLE TULLE OR","183x183cm",null," (6x6fts)",null,null,null,null,null,"SIMPLE TULLE OR","SINGLE GOLD COLOR NET",null,null,0.45,0]
[0,null,"DOUBLE TULLE ARGENT","183x183cm",null," (6x6fts)",null,null,null,null,null,"DOUBLE TULLE ARGENT","DOUBLE SILVER COLOR NET",null,null,0.56999999999999995,0]
[0,null,"DOUBLE TULLE OR","183x183cm",null," (6x6fts)",null,null,null,null,null,"DOUBLE TULLE OR","DOUBLE GOLD COLOR NET",null,null,0.56999999999999995,0]
[0,null,"SOIE BLANCHE","183x183cm",null," (6x6fts)",null,null,null,null,null,"SOIE BLANCHE","ARTIFICIAL SILK WHITE",null,null,0.45,0]
[0,null,"½ SOIE BLANCHE","183x183cm",null," (6x6fts)",null,null,null,null,null,"½ SOIE BLANCHE","HALF WHITE SILK",null,null,0.45,0]
[0,null,"¼ SOIE BLANCHE","183x183cm",null," (6x6fts)",null,null,null,null,null,"¼ SOIE BLANCHE","QUARTER WHITE SILK",null,null,0.45,0]
[0,null,"SOIE NOIR","183x183cm",null," (6x6fts)",null,null,null,null,null,"SOIE NOIR","ARTIFICIAL SILK BLACK",null,null,0.45,{"$f":"P1187*B1187","v":0}]
[0,null,"BORGNOL","183x183cm",null," (6x6fts)",null,null,null,null,null,"BORGNOL","SOLID",null,null,1.59,0]
[0,null,"¼ STOP SOIE BLANCHE","183x183cm",null," (6x6fts)",null,null,null,null,null,"¼ STOP SOIE BLANCHE","¼ STOP SILK WHITE",null,null,0.45,0]
[0,null,"¼ STOP SOIE NOIR","183x183cm",null," (6x6fts)",null,null,null,null,null,"¼ STOP SOIE NOIR","¼ STOP SILK BLACK",null,null,0.45,0]
[0,null,"SOIE CHINOISE BLANCHE","183x183cm",null," (6x6fts)",null,null,null,null,null,"SOIE CHINOISE BLANCHE","CHINA SILK WHITE",null,null,0.34,0]
[0,null,"SOIE CHINOISE NOIR","183x183cm",null," (6x6fts)",null,null,null,null,null,"SOIE CHINOISE NOIR","CHINA SILK BLACK",null,null,0.34,0]
[0,null,"GRIDCLOTH","183x183cm",null," (6x6fts)",null,null,null,null,null,"GRIDCLOTH","GRIDCLOTH",null,null,0.34,0]
[0,null,"½ GRIDCLOTH","183x183cm",null," (6x6fts)",null,null,null,null,null,"½ GRIDCLOTH"," GRIDCLOTH LITE",null,null,0.23,0]
[0,null,"¼ GRIDCLOTH","183x183cm",null," (6x6fts)",null,null,null,null,null,"¼ GRIDCLOTH","¼ GRIDCLOTH",null,null,0.23,0]
[0,null,"SILENT GRIDCLOTH","183x183cm",null," (6x6fts)",null,null,null,null,null,"SILENT GRIDCLOTH","SILENT GRIDCLOTH",null,null,0.23,0]
[0,null,"½ SILENT GRIDCLOTH","183x183cm",null," (6x6fts)",null,null,null,null,null,"½ SILENT GRIDCLOTH","SILENT GRIDCLOTH LITE",null,null,0.23,0]
[0,null,"¼ SILENT GRIDCLOTH","183x183cm",null," (6x6fts)",null,null,null,null,null,"¼ SILENT GRIDCLOTH","¼ SILENT GRIDCLOTH",null,null,0.23,0]
[0,null,"LAME ARGENT","183x183cm",null," (6x6fts)",null,null,null,null,null,"LAME ARGENT","LAME SILVER",null,null,0.45,0]
[0,null,"LAME OR","183x183cm",null," (6x6fts)",null,null,null,null,null,"LAME OR","LAME GOLD",null,null,0.45,0]
[0,null,"GRIFFLECTOR ARGENT","183x183cm",null," (6x6fts)",null,null,null,null,null,"GRIFFLECTOR ARGENT","GRIFFLECTOR",null,null,2.15,0]
[0,null,"GRIFFLECTOR OR","183x183cm",null," (6x6fts)",null,null,null,null,null,"GRIFFLECTOR OR","GRIFFLECTOR GOLD",null,null,2.15,0]
[0,null,"GRIFFLECTOR LISA MARIE","183x183cm",null," (6x6fts)",null,null,null,null,null,"GRIFFLECTOR LISA MARIE","GRIFFLECTOR CHECKERBOARD",null,null,3.06,0]
[0,null,"MATHFLECTOR ARGENT","183x183cm",null," (6x6fts)",null,null,null,null,null,"MATHFLECTOR ARGENT","MATHFLECTOR SILVER",null,null,1.81,0]
[0,null,"MATHFLECTOR OR","183x183cm",null," (6x6fts)",null,null,null,null,null,"MATHFLECTOR OR","MATHFLECTOR GOLD",null,null,1.81,0]
[{"$f":"IF(B1206>0,\"x\",0)","v":0},null,{"$f":"IF($I$1=\"x\",M1206,L1206)","v":"GRIFFOLYNE NOIR/BLANC T55"},"183x183cm",null," (6x6fts)",null,null,null,null,null,"GRIFFOLYNE NOIR/BLANC T55","GRIFFOLYNE BLACK/WHITE T55",null,null,0.68,0]
[0,null,"GRIFFOLYNE BLANC/BLANC T55","183x183cm",null," (6x6fts)",null,null,null,null,null,"GRIFFOLYNE BLANC/BLANC T55","GRIFFOLYNE WHITE/WHITE T55",null,null,0.68,0]
[0,null,"GRIFFOLYNE NOIR/BLANC T85","183x183cm",null," (6x6fts)",null,null,null,null,null,"GRIFFOLYNE NOIR/BLANC T85","GRIFFOLYNE BLACK/WHITE T85",null,null,1.1299999999999999,0]
[0,null,"MOUSLINE AU BLEACH","183x183cm",null," (6x6fts)",null,null,null,null,null,"MOUSLINE AU BLEACH","BLEACHED MUSLIM",null,null,0.79,0]
[0,null,"MOUSLINE SANS BLEACH","183x183cm",null," (6x6fts)",null,null,null,null,null,"MOUSLINE SANS BLEACH","UNBLEASHED MUSLIM",null,null,0.91,0]
[0,null,"BLEU INCRUST","183x183cm",null," (6x6fts)",null,null,null,null,null,"BLEU INCRUST","BLUE SCREEN",null,null,1.02,0]
[0,null,"VERT INCRUST","183x183cm",null," (6x6fts)",null,null,null,null,null,"VERT INCRUST","GREEN SCREEN",null,null,1.02,0]
[0,null,"LISA MARIE","183x183cm",null," (6x6fts)",null,null,null,null,null,"LISA MARIE","CHECKERBOARD LAME",null,null,0.56999999999999995,0]
[0,null,"LIGHT BOX DIFFUSION","183x183cm",null," (6x6fts)",null,null,null,null,null,"LIGHT BOX DIFFUSION","LIGHT BOX DIFFUSION",null,null,0.45,0]
[0,null,"HI LIGHTS","183x183cm",null," (6x6fts)",null,null,null,null,null,"HI LIGHTS","HI LIGHTS",null,null,1.36,0]
[0,null,"ULTRABOUNCE","183x183cm",null," (6x6fts)",null,null,null,null,null,"ULTRABOUNCE","MATHBOUNCE / ULTRABOUNCE",null,null,0.45,0]
[0,null,"SILENT FROST","183x183cm",null," (6x6fts)",null,null,null,null,null,"SILENT FROST","SILENT FROST",null,null,0.45,0]
[0,null,"CUCOLORIS NOIR","183x183cm",null," (6x6fts)",null,null,null,null,null,"CUCOLORIS NOIR","SOFT CUCOLORIS BLACK",null,null,1.1299999999999999,0]
[0,null,"CUCOLORIS BLANC","183x183cm",null," (6x6fts)",null,null,null,null,null,"CUCOLORIS BLANC","SOFT CUCOLORIS WHITE",null,null,0.45,0]
[0,null,"COTON BLANC","183x183cm",null," (6x6fts)",null,null,null,null,null,"COTON BLANC","WHITE COTON",null,null,1.02,0]
[0,null,"COTON BEIGE","183x183cm",null," (6x6fts)",null,null,null,null,null,"COTON BEIGE","BEIGE COTON",null,null,1.02,0]
[0,null,"SHOWER","183x183cm",null," (6x6fts)",null,null,null,null,null,"SHOWER","SHOWER CURTAIN",null,null,1.36,0]
[0,null,"SPI","183x183cm",null," (6x6fts)",null,null,null,null,null,"SPI","SPI",null,null,0.45,0]
[0,null,"½ SPI","183x183cm",null," (6x6fts)",null,null,null,null,null,"½ SPI","½ SPI",null,null,0.45,0]
[0,{"$f":"IF(SUM(B1226:B1274)>0,\"Size\",0)","v":0},"8x8"]
[{"$f":"IF(B1226>0,\"x\",0)","v":0},null,{"$f":"IF($I$1=\"x\",M1226,L1226)","v":"SIMPLE TULLE NOIR"},"244x244cm",null," (8x8fts)",null,null,null,null,null,"SIMPLE TULLE NOIR","SINGLE SCRIM BLACK",null,null,0.56999999999999995,{"$f":"P1226*B1226","v":0}]
[0,null,"SIMPLE TULLE BLANC","244x244cm",null," (8x8fts)",null,null,null,null,null,"SIMPLE TULLE BLANC","SINGLE SCRIM WHITE",null,null,0.56999999999999995,0]
[0,null,"DOUBLE TULLE NOIR","244x244cm",null," (8x8fts)",null,null,null,null,null,"DOUBLE TULLE NOIR","DOUBLE SCRIM BLACK",null,null,0.79,0]
[0,null,"DOUBLE TULLE BLANC","244x244cm",null," (8x8fts)",null,null,null,null,null,"DOUBLE TULLE BLANC","DOUBLE SCRIM WHITE",null,null,0.79,0]
[0,null,"SIMPLE TULLE ARGENT","244x244cm",null," (8x8fts)",null,null,null,null,null,"SIMPLE TULLE ARGENT","SINGLE SILVER COLOR NET",null,null,0.56999999999999995,0]
[0,null,"SIMPLE TULLE OR","244x244cm",null," (8x8fts)",null,null,null,null,null,"SIMPLE TULLE OR","SINGLE GOLD COLOR NET",null,null,0.56999999999999995,0]
[0,null,"DOUBLE TULLE ARGENT","244x244cm",null," (8x8fts)",null,null,null,null,null,"DOUBLE TULLE ARGENT","DOUBLE SILVER COLOR NET",null,null,0.79,0]
[0,null,"DOUBLE TULLE OR","244x244cm",null," (8x8fts)",null,null,null,null,null,"DOUBLE TULLE OR","DOUBLE GOLD COLOR NET",null,null,0.79,0]
[0,null,"SOIE BLANCHE","244x244cm",null," (8x8fts)",null,null,null,null,null,"SOIE BLANCHE","ARTIFICIAL SILK WHITE",null,null,0.68,0]
[0,null,"½ SOIE BLANCHE","244x244cm",null," (8x8fts)",null,null,null,null,null,"½ SOIE BLANCHE","HALF WHITE SILK",null,null,0.68,0]
[0,null,"¼ SOIE BLANCHE","244x244cm",null," (8x8fts)",null,null,null,null,null,"¼ SOIE BLANCHE","QUARTER WHITE SILK",null,null,0.68,0]
[0,null,"SOIE NOIR","244x244cm",null," (8x8fts)",null,null,null,null,null,"SOIE NOIR","ARTIFICIAL SILK BLACK",null,null,0.68,{"$f":"P1237*B1237","v":0}]
[0,null,"BORGNOL","244x244cm",null," (8x8fts)",null,null,null,null,null,"BORGNOL","SOLID",null,null,2.72,0]
[0,null,"¼ STOP SOIE BLANCHE","244x244cm",null," (8x8fts)",null,null,null,null,null,"¼ STOP SOIE BLANCHE","¼ STOP SILK WHITE",null,null,0.56999999999999995,0]
[0,null,"¼ STOP SOIE NOIR","244x244cm",null," (8x8fts)",null,null,null,null,null,"¼ STOP SOIE NOIR","¼ STOP SILK BLACK",null,null,0.56999999999999995,0]
[0,null,"SOIE CHINOISE BLANCHE","244x244cm",null," (8x8fts)",null,null,null,null,null,"SOIE CHINOISE BLANCHE","CHINA SILK WHITE",null,null,0.56999999999999995,0]
[0,null,"SOIE CHINOISE NOIR","244x244cm",null," (8x8fts)",null,null,null,null,null,"SOIE CHINOISE NOIR","CHINA SILK BLACK",null,null,0.56999999999999995,0]
[0,null,"GRIDCLOTH","244x244cm",null," (8x8fts)",null,null,null,null,null,"GRIDCLOTH","GRIDCLOTH",null,null,0.56999999999999995,0]
[0,null,"½ GRIDCLOTH","244x244cm",null," (8x8fts)",null,null,null,null,null,"½ GRIDCLOTH"," GRIDCLOTH LITE",null,null,0.45,0]
[0,null,"¼ GRIDCLOTH","244x244cm",null," (8x8fts)",null,null,null,null,null,"¼ GRIDCLOTH","¼ GRIDCLOTH",null,null,0.56999999999999995,0]
[0,null,"SILENT GRIDCLOTH","244x244cm",null," (8x8fts)",null,null,null,null,null,"SILENT GRIDCLOTH","SILENT GRIDCLOTH",null,null,0.56999999999999995,0]
[0,null,"½ SILENT GRIDCLOTH","244x244cm",null," (8x8fts)",null,null,null,null,null,"½ SILENT GRIDCLOTH","SILENT GRIDCLOTH LITE",null,null,0.56999999999999995,0]
[0,null,"¼ SILENT GRIDCLOTH","244x244cm",null," (8x8fts)",null,null,null,null,null,"¼ SILENT GRIDCLOTH","¼ SILENT GRIDCLOTH",null,null,0.56999999999999995,0]
[0,null,"LAME ARGENT","244x244cm",null," (8x8fts)",null,null,null,null,null,"LAME ARGENT","LAME SILVER",null,null,0.68,0]
[0,null,"LAME OR","244x244cm",null," (8x8fts)",null,null,null,null,null,"LAME OR","LAME GOLD",null,null,0.68,0]
[0,null,"GRIFFLECTOR ARGENT","244x244cm",null," (8x8fts)",null,null,null,null,null,"GRIFFLECTOR ARGENT","GRIFFLECTOR SILVER",null,null,3.97,0]
[0,null,"GRIFFLECTOR OR","244x244cm",null," (8x8fts)",null,null,null,null,null,"GRIFFLECTOR OR","GRIFFLECTOR GOLD",null,null,3.97,0]
[0,null,"GRIFFLECTOR LISA MARIE","244x244cm",null," (8x8fts)",null,null,null,null,null,"GRIFFLECTOR LISA MARIE","GRIFFLECTOR CHECKERBOARD",null,null,4.99,0]
[0,null,"MATHFLECTOR ARGENT","244x244cm",null," (8x8fts)",null,null,null,null,null,"MATHFLECTOR ARGENT","MATHFLECTOR SILVER",null,null,4.99,0]
[0,null,"MATHFLECTOR OR","244x244cm",null," (8x8fts)",null,null,null,null,null,"MATHFLECTOR OR","MATHFLECTOR GOLD",null,null,4.99,0]
[0,null,"GRIFFOLYNE NOIR/BLANC T55","244x244cm",null," (8x8fts)",null,null,null,null,null,"GRIFFOLYNE NOIR/BLANC T55","GRIFFOLYNE BLACK/WHITE T55",null,null,1.1299999999999999,0]
[0,null,"GRIFFOLYNE BLANC/BLANC T55","244x244cm",null," (8x8fts)",null,null,null,null,null,"GRIFFOLYNE BLANC/BLANC T55","GRIFFOLYNE WHITE/WHITE T55",null,null,1.36,0]
[{"$f":"IF(B1258>0,\"x\",0)","v":0},null,{"$f":"IF($I$1=\"x\",M1258,L1258)","v":"GRIFFOLYNE NOIR/BLANC T85"},"244x244cm",null," (8x8fts)",null,null,null,null,null,"GRIFFOLYNE NOIR/BLANC T85","GRIFFOLYNE BLACK/WHITE T85",null,null,2.04,0]
[0,null,"MOUSLINE AU BLEACH","244x244cm",null," (8x8fts)",null,null,null,null,null,"MOUSLINE AU BLEACH","BLEACHED MUSLIM",null,null,1.36,0]
[0,null,"MOUSLINE SANS BLEACH","244x244cm",null," (8x8fts)",null,null,null,null,null,"MOUSLINE SANS BLEACH","UNBLEASHED MUSLIM",null,null,1.36,0]
[0,null,"BLEU INCRUST","244x244cm",null," (8x8fts)",null,null,null,null,null,"BLEU INCRUST","BLUE SCREEN",null,null,1.7,0]
[0,null,"VERT INCRUST","244x244cm",null," (8x8fts)",null,null,null,null,null,"VERT INCRUST","GREEN SCREEN",null,null,1.7,0]
[0,null,"LISA MARIE","244x244cm",null," (8x8fts)",null,null,null,null,null,"LISA MARIE","CHECKERBOARD LAME",null,null,0.79,0]
[0,null,"LIGHT BOX DIFFUSION","244x244cm",null," (8x8fts)",null,null,null,null,null,"LIGHT BOX DIFFUSION","LIGHT BOX DIFFUSION",null,null,0.68,0]
[0,null,"HI LIGHTS","244x244cm",null," (8x8fts)",null,null,null,null,null,"HI LIGHTS","HI LIGHTS",null,null,1.36,0]
[0,null,"ULTRABOUNCE","244x244cm",null," (8x8fts)",null,null,null,null,null,"ULTRABOUNCE","MATHBOUNCE / ULTRABOUNCE",null,null,0.68,0]
[0,null,"SILENT FROST","244x244cm",null," (8x8fts)",null,null,null,null,null,"SILENT FROST","SILENT FROST",null,null,0.7,0]
[0,null,"CUCOLORIS NOIR","244x244cm",null," (8x8fts)",null,null,null,null,null,"CUCOLORIS NOIR","SOFT CUCOLORIS BLACK",null,null,1.93,0]
[0,null,"CUCOLORIS BLANC","244x244cm",null," (8x8fts)",null,null,null,null,null,"CUCOLORIS BLANC","SOFT CUCOLORIS WHITE",null,null,0.68,0]
[0,null,"COTON BLANC","244x244cm",null," (8x8fts)",null,null,null,null,null,"COTON BLANC","WHITE COTON",null,null,1.7,0]
[0,null,"COTON BEIGE","244x244cm",null," (8x8fts)",null,null,null,null,null,"COTON BEIGE","BEIGE COTON",null,null,1.7,0]
[0,null,"SHOWER","244x244cm",null," (8x8fts)",null,null,null,null,null,"SHOWER","SHOWER CURTAIN",null,null,1.36,0]
[0,null,"SPI","244x244cm",null," (8x8fts)",null,null,null,null,null,"SPI","SPI",null,null,0.56999999999999995,0]
[0,null,"½ SPI","244x244cm",null," (8x8fts)",null,null,null,null,null,"½ SPI","½ SPI",null,null,0.56999999999999995,0]
[0,{"$f":"IF(SUM(B1276:B1324)>0,\"Size\",0)","v":0},"12 x 12"]
[{"$f":"IF(B1276>0,\"x\",0)","v":0},null,{"$f":"IF($I$1=\"x\",M1276,L1276)","v":"SIMPLE TULLE NOIR"},"366x366cm",null," (12x12fts)",null,null,null,null,null,"SIMPLE TULLE NOIR","SINGLE SCRIM BLACK",null,null,1.25,{"$f":"P1276*B1276","v":0}]
[0,null,"SIMPLE TULLE BLANC","366x366cm",null," (12x12fts)",null,null,null,null,null,"SIMPLE TULLE BLANC","SINGLE SCRIM WHITE",null,null,1.25,0]
[0,null,"DOUBLE TULLE NOIR","366x366cm",null," (12x12fts)",null,null,null,null,null,"DOUBLE TULLE NOIR","DOUBLE SCRIM BLACK",null,null,1.7,0]
[0,null,"DOUBLE TULLE BLANC","366x366cm",null," (12x12fts)",null,null,null,null,null,"DOUBLE TULLE BLANC","DOUBLE SCRIM WHITE",null,null,1.7,0]
[0,null,"SIMPLE TULLE ARGENT","366x366cm",null," (12x12fts)",null,null,null,null,null,"SIMPLE TULLE ARGENT","SINGLE SILVER COLOR NET",null,null,1.25,0]
[0,null,"SIMPLE TULLE OR","366x366cm",null," (12x12fts)",null,null,null,null,null,"SIMPLE TULLE OR","SINGLE GOLD COLOR NET",null,null,1.25,0]
[0,null,"DOUBLE TULLE ARGENT","366x366cm",null," (12x12fts)",null,null,null,null,null,"DOUBLE TULLE ARGENT","DOUBLE SILVER COLOR NET",null,null,1.7,0]
[0,null,"DOUBLE TULLE OR","366x366cm",null," (12x12fts)",null,null,null,null,null,"DOUBLE TULLE OR","DOUBLE GOLD COLOR NET",null,null,1.7,0]
[0,null,"SOIE BLANCHE","366x366cm",null," (12x12fts)",null,null,null,null,null,"SOIE BLANCHE","ARTIFICIAL SILK WHITE",null,null,1.59,0]
[0,null,"½ SOIE BLANCHE","366x366cm",null," (12x12fts)",null,null,null,null,null,"½ SOIE BLANCHE","HALF WHITE SILK",null,null,1.59,0]
[0,null,"¼ SOIE BLANCHE","366x366cm",null," (12x12fts)",null,null,null,null,null,"¼ SOIE BLANCHE","QUARTER WHITE SILK",null,null,1.59,0]
[0,null,"SOIE NOIR","366x366cm",null," (12x12fts)",null,null,null,null,null,"SOIE NOIR","ARTIFICIAL SILK BLACK",null,null,1.59,{"$f":"P1287*B1287","v":0}]
[0,null,"BORGNOL","366x366cm",null," (12x12fts)",null,null,null,null,null,"BORGNOL","SOLID",null,null,6.12,0]
[0,null,"¼ STOP SOIE BLANCHE","366x366cm",null," (12x12fts)",null,null,null,null,null,"¼ STOP SOIE BLANCHE","¼ STOP SILK WHITE",null,null,1.1299999999999999,0]
[0,null,"¼ STOP SOIE NOIR","366x366cm",null," (12x12fts)",null,null,null,null,null,"¼ STOP SOIE NOIR","¼ STOP SILK BLACK",null,null,1.1299999999999999,0]
[0,null,"SOIE CHINOISE BLANCHE","366x366cm",null," (12x12fts)",null,null,null,null,null,"SOIE CHINOISE BLANCHE","CHINA SILK WHITE",null,null,1.02,0]
[0,null,"SOIE CHINOISE NOIR","366x366cm",null," (12x12fts)",null,null,null,null,null,"SOIE CHINOISE NOIR","CHINA SILK BLACK",null,null,1.02,0]
[0,null,"GRIDCLOTH","366x366cm",null," (12x12fts)",null,null,null,null,null,"GRIDCLOTH","GRIDCLOTH",null,null,1.59,0]
[0,null,"½ GRIDCLOTH","366x366cm",null," (12x12fts)",null,null,null,null,null,"½ GRIDCLOTH"," GRIDCLOTH LITE",null,null,1.59,0]
[0,null,"¼ GRIDCLOTH","366x366cm",null," (12x12fts)",null,null,null,null,null,"¼ GRIDCLOTH","¼ GRIDCLOTH",null,null,1.59,0]
[0,null,"SILENT GRIDCLOTH","366x366cm",null," (12x12fts)",null,null,null,null,null,"SILENT GRIDCLOTH","SILENT GRIDCLOTH",null,null,1.59,0]
[0,null,"½ SILENT GRIDCLOTH","366x366cm",null," (12x12fts)",null,null,null,null,null,"½ SILENT GRIDCLOTH","SILENT GRIDCLOTH LITE",null,null,1.59,0]
[0,null,"¼ SILENT GRIDCLOTH","366x366cm",null," (12x12fts)",null,null,null,null,null,"¼ SILENT GRIDCLOTH","¼ SILENT GRIDCLOTH",null,null,1.59,0]
[0,null,"LAME ARGENT","366x366cm",null," (12x12fts)",null,null,null,null,null,"LAME ARGENT","LAME SILVER",null,null,1.59,0]
[0,null,"LAME OR","366x366cm",null," (12x12fts)",null,null,null,null,null,"LAME OR","LAME GOLD",null,null,1.02,0]
[0,null,"GRIFFLECTOR ARGENT","366x366cm",null," (12x12fts)",null,null,null,null,null,"GRIFFLECTOR ARGENT","GRIFFLECTOR SILVER",null,null,4.99,0]
[0,null,"GRIFFLECTOR OR","366x366cm",null," (12x12fts)",null,null,null,null,null,"GRIFFLECTOR OR","GRIFFLECTOR GOLD",null,null,4.99,0]
[0,null,"GRIFFLECTOR LISA MARIE","366x366cm",null," (12x12fts)",null,null,null,null,null,"GRIFFLECTOR LISA MARIE","GRIFFLECTOR CHECKERBOARD",null,null,4.99,0]
[0,null,"MATHFLECTOR ARGENT","366x366cm",null," (12x12fts)",null,null,null,null,null,"MATHFLECTOR ARGENT","MATHFLECTOR SILVER",null,null,6.12,0]
[0,null,"MATHFLECTOR OR","366x366cm",null," (12x12fts)",null,null,null,null,null,"MATHFLECTOR OR","MATHFLECTOR GOLD",null,null,6.12,0]
[0,null,"GRIFFOLYNE NOIR/BLANC T55","366x366cm",null," (12x12fts)",null,null,null,null,null,"GRIFFOLYNE NOIR/BLANC T55","GRIFFOLYNE BLACK/WHITE T55",null,null,2.4900000000000002,0]
[0,null,"GRIFFOLYNE BLANC/BLANC T55","366x366cm",null," (12x12fts)",null,null,null,null,null,"GRIFFOLYNE BLANC/BLANC T55","GRIFFOLYNE WHITE/WHITE T55",null,null,4.76,0]
[{"$f":"IF(B1308>0,\"x\",0)","v":0},null,{"$f":"IF($I$1=\"x\",M1308,L1308)","v":"GRIFFOLYNE NOIR/BLANC T85"},"366x366cm",null," (12x12fts)",null,null,null,null,null,"GRIFFOLYNE NOIR/BLANC T85","GRIFFOLYNE BLACK/WHITE T85",null,null,2.4900000000000002,0]
[0,null,"MOUSLINE AU BLEACH","366x366cm",null," (12x12fts)",null,null,null,null,null,"MOUSLINE AU BLEACH","BLEACHED MUSLIM",null,null,2.83,0]
[0,null,"MOUSLINE SANS BLEACH","366x366cm",null," (12x12fts)",null,null,null,null,null,"MOUSLINE SANS BLEACH","UNBLEASHED MUSLIM",null,null,2.83,0]
[0,null,"BLEU INCRUST","366x366cm",null," (12x12fts)",null,null,null,null,null,"BLEU INCRUST","BLUE SCREEN",null,null,3.74,0]
[0,null,"VERT INCRUST","366x366cm",null," (12x12fts)",null,null,null,null,null,"VERT INCRUST","GREEN SCREEN",null,null,3.74,0]
[0,null,"LISA MARIE","366x366cm",null," (12x12fts)",null,null,null,null,null,"LISA MARIE","CHECKERBOARD LAME",null,null,1.59,0]
[0,null,"LIGHT BOX DIFFUSION","366x366cm",null," (12x12fts)",null,null,null,null,null,"LIGHT BOX DIFFUSION","LIGHT BOX DIFFUSION",null,null,1.59,0]
[0,null,"HI LIGHTS","366x366cm",null," (12x12fts)",null,null,null,null,null,"HI LIGHTS","HI LIGHTS",null,null,5.2,0]
[0,null,"ULTRABOUNCE","366x366cm",null," (12x12fts)",null,null,null,null,null,"ULTRABOUNCE","MATHBOUNCE / ULTRABOUNCE",null,null,1.59,0]
[0,null,"SILENT FROST","366x366cm",null," (12x12fts)",null,null,null,null,null,"SILENT FROST","SILENT FROST",null,null,1.7,0]
[0,null,"CUCOLORIS NOIR","366x366cm",null," (12x12fts)",null,null,null,null,null,"CUCOLORIS NOIR","SOFT CUCOLORIS BLACK",null,null,4.08,0]
[0,null,"CUCOLORIS BLANC","366x366cm",null," (12x12fts)",null,null,null,null,null,"CUCOLORIS BLANC","SOFT CUCOLORIS WHITE",null,null,1.47,0]
[0,null,"COTON BLANC","366x366cm",null," (12x12fts)",null,null,null,null,null,"COTON BLANC","WHITE COTON",null,null,3.74,0]
[0,null,"COTON BEIGE","366x366cm",null," (12x12fts)",null,null,null,null,null,"COTON BEIGE","BEIGE COTON",null,null,3.74,0]
[0,null,"SHOWER","366x366cm",null," (12x12fts)",null,null,null,null,null,"SHOWER","SHOWER CURTAIN",null,null,5.22,0]
[0,null,"½ SPI","366x366cm",null," (12x12fts)",null,null,null,null,null,"½ SPI","½ SPI",null,null,1.1299999999999999,0]
[0,null,"SPI","366x366cm",null," (12x12fts)",null,null,null,null,null,"SPI","SPI",null,null,1.1299999999999999,0]
[0,{"$f":"IF(SUM(B1326:B1351)>0,\"Size\",0)","v":0},"12 x 20"]
[{"$f":"IF(B1326>0,\"x\",0)","v":0},null,{"$f":"IF($I$1=\"x\",M1326,L1326)","v":"SIMPLE TULLE NOIR"},"366x610cm",null," (12x20fts)",null,null,null,null,null,"SIMPLE TULLE NOIR","SINGLE SCRIM BLACK",null,null,1.59,{"$f":"P1326*B1326","v":0}]
[0,null,"SIMPLE TULLE BLANC","366x610cm",null," (12x20fts)",null,null,null,null,null,"SIMPLE TULLE BLANC","SINGLE SCRIM WHITE",null,null,1.59,0]
[0,null,"DOUBLE TULLE NOIR","366x610cm",null," (12x20fts)",null,null,null,null,null,"DOUBLE TULLE NOIR","DOUBLE SCRIM BLACK",null,null,2.95,0]
[0,null,"SOIE BLANCHE","366x610cm",null," (12x20fts)",null,null,null,null,null,"SOIE BLANCHE","SCRIM ARTIFICIAL SILK WHITE",null,null,2.27,0]
[0,null,"½ SOIE BLANCHE","366x610cm",null," (12x20fts)",null,null,null,null,null,"½ SOIE BLANCHE","HALF WHITE SILK",null,null,2.27,0]
[0,null,"¼ SOIE BLANCHE","366x610cm",null," (12x20fts)",null,null,null,null,null,"¼ SOIE BLANCHE","QUARTER WHITE SILK",null,null,2.27,0]
[0,null,"SOIE NOIR","366x610cm",null," (12x20fts)",null,null,null,null,null,"SOIE NOIR","SCRIM ARTIFICIAL SILK BLACK",null,null,2.27,{"$f":"P1332*B1332","v":0}]
[0,null,"BORGNOL","366x610cm",null," (12x20fts)",null,null,null,null,null,"BORGNOL","SOLID",null,null,6.8,0]
[0,null,"GRIDCLOTH","366x610cm",null," (12x20fts)",null,null,null,null,null,"GRIDCLOTH","GRIDCLOTH",null,null,3,0]
[0,null,"½ GRIDCLOTH","366x610cm",null," (12x20fts)",null,null,null,null,null,"½ GRIDCLOTH"," GRIDCLOTH LITE",null,null,1.5,0]
[0,null,"¼ GRIDCLOTH","366x610cm",null," (12x20fts)",null,null,null,null,null,"¼ GRIDCLOTH","¼ GRIDCLOTH",null,null,1.3,0]
[0,null,"ULTRA BOUNCE","366x610cm",null," (12x20fts)",null,null,null,null,null,"ULTRA BOUNCE","ULTRA BOUNCE",null,null,0.81,0]
[0,null,"¼ STOP SOIE BLANCHE","366x610cm",null," (12x20fts)",null,null,null,null,null,"¼ STOP SOIE BLANCHE","SCRIM ¼ STOP SILK WHITE",null,null,1.81,0]
[0,null,"¼ STOP SOIE NOIR","366x610cm",null," (12x20fts)",null,null,null,null,null,"¼ STOP SOIE NOIR","SCRIM ¼ STOP SILK BLACK",null,null,1.81,0]
[0,null,"SOIE CHINOISE BLANCHE","366x610cm",null," (12x20fts)",null,null,null,null,null,"SOIE CHINOISE BLANCHE","CHINA SILK WHITE",null,null,2.04,0]
[0,null,"SOIE CHINOISE NOIR","366x610cm",null," (12x20fts)",null,null,null,null,null,"SOIE CHINOISE NOIR","CHINA SILK BLACK",null,null,2.04,0]
[0,null,"BLEU INCRUST","366x610cm",null," (12x20fts)",null,null,null,null,null,"BLEU INCRUST","BLUE SCREEN",null,null,6.8,0]
[0,null,"VERT INCRUST","366x610cm",null," (12x20fts)",null,null,null,null,null,"VERT INCRUST","GREEN SCREEN",null,null,6.8,0]
[0,null,"GRIDCLOTH","366x610cm",null," (12x20fts)",null,null,null,null,null,"GRIDCLOTH","GRIFFOLYNE",null,null,7.48,0]
[0,null,"LAME ARGENT","366x610cm",null," (12x20fts)",null,null,null,null,null,"LAME ARGENT","LAME SILVER",null,null,5,0]
[0,null,"LAME OR","366x610cm",null," (12x20fts)",null,null,null,null,null,"LAME OR","LAME GOLD",null,null,5,0]
[0,null,"COTON BLANC","366x610cm",null," (12x20fts)",null,null,null,null,null,"COTON BLANC","WHITE COTON",null,null,6,0]
[0,null,"COTON BEIGE","366x610cm",null," (12x20fts)",null,null,null,null,null,"COTON BEIGE","BEIGE COTON",null,null,6,0]
[0,null,"SHOWER","366x610cm",null," (12x20fts)",null,null,null,null,null,"SHOWER","SHOWER CURTAIN",null,null,10,0]
[0,null,"½ SPI","366x610cm",null," (12x20fts)",null,null,null,null,null,"½ SPI","½ SPI",null,null,2.27,0]
[0,null,"SPI","366x610cm",null," (12x20fts)",null,null,null,null,null,"SPI","SPI",null,null,2.27,0]
[0,{"$f":"IF(SUM(B1353:B1399)>0,\"Size\",0)","v":0},"20 x 20"]
[{"$f":"IF(B1353>0,\"x\",0)","v":0},null,{"$f":"IF($I$1=\"x\",M1353,L1353)","v":"SIMPLE TULLE NOIR"},"610x610cm",null," (20x20fts)",null,null,null,null,null,"SIMPLE TULLE NOIR","SINGLE SCRIM BLACK",null,null,2.61,{"$f":"P1353*B1353","v":0}]
[0,null,"SIMPLE TULLE BLANC","610x610cm",null," (20x20fts)",null,null,null,null,null,"SIMPLE TULLE BLANC","SINGLE SCRIM WHITE",null,null,2.61,0]
[0,null,"DOUBLE TULLE NOIR","610x610cm",null," (20x20fts)",null,null,null,null,null,"DOUBLE TULLE NOIR","DOUBLE SCRIM BLACK",null,null,3.97,0]
[0,null,"DOUBLE TULLE BLANC","610x610cm",null," (20x20fts)",null,null,null,null,null,"DOUBLE TULLE BLANC","DOUBLE SCRIM WHITE",null,null,3.97,0]
[0,null,"SIMPLE TULLE ARGENT","610x610cm",null," (20x20fts)",null,null,null,null,null,"SIMPLE TULLE ARGENT","SINGLE SILVER COLOR NET",null,null,2.61,0]
[0,null,"SIMPLE TULLE OR","610x610cm",null," (20x20fts)",null,null,null,null,null,"SIMPLE TULLE OR","SINGLE GOLD COLOR NET",null,null,2.61,0]
[0,null,"DOUBLE TULLE ARGENT","610x610cm",null," (20x20fts)",null,null,null,null,null,"DOUBLE TULLE ARGENT","DOUBLE SILVER COLOR NET",null,null,3.97,0]
[0,null,"DOUBLE TULLE OR","610x610cm",null," (20x20fts)",null,null,null,null,null,"DOUBLE TULLE OR","DOUBLE GOLD COLOR NET",null,null,3.97,0]
[0,null,"SOIE BLANCHE","610x610cm",null," (20x20fts)",null,null,null,null,null,"SOIE BLANCHE","ARTIFICIAL SILK WHITE",null,null,3.18,0]
[0,null,"SOIE NOIR","610x610cm",null," (20x20fts)",null,null,null,null,null,"SOIE NOIR","ARTIFICIAL SILK BLACK",null,null,3.18,0]
[0,null,"BORGNOL","610x610cm",null," (20x20fts)",null,null,null,null,null,"BORGNOL","SOLID",null,null,10.43,0]
[0,null,"¼ STOP SOIE BLANCHE","610x610cm",null," (20x20fts)",null,null,null,null,null,"¼ STOP SOIE BLANCHE","¼ STOP SILK WHITE",null,null,2.72,0]
[0,null,"¼ STOP SOIE NOIR","610x610cm",null," (20x20fts)",null,null,null,null,null,"¼ STOP SOIE NOIR","¼ STOP SILK BLACK",null,null,2.72,0]
[0,null,"SOIE CHINOISE BLANCHE","610x610cm",null," (20x20fts)",null,null,null,null,null,"SOIE CHINOISE BLANCHE","CHINA SILK WHITE",null,null,2.72,0]
[0,null,"SOIE CHINOISE NOIR","610x610cm",null," (20x20fts)",null,null,null,null,null,"SOIE CHINOISE NOIR","CHINA SILK BLACK",null,null,2.95,0]
[0,null,"GRIDCLOTH","610x610cm",null," (20x20fts)",null,null,null,null,null,"GRIDCLOTH","GRIDCLOTH",null,null,2.95,0]
[0,null,"½ GRIDCLOTH","610x610cm",null," (20x20fts)",null,null,null,null,null,"½ GRIDCLOTH"," GRIDCLOTH LITE",null,null,2.72,0]
[0,null,"¼ GRIDCLOTH","610x610cm",null," (20x20fts)",null,null,null,null,null,"¼ GRIDCLOTH","¼ GRIDCLOTH",null,null,2.95,0]
[0,null,"SILENT GRIDCLOTH","610x610cm",null," (20x20fts)",null,null,null,null,null,"SILENT GRIDCLOTH","SILENT GRIDCLOTH",null,null,2.95,0]
[0,null,"½ SILENT GRIDCLOTH","610x610cm",null," (20x20fts)",null,null,null,null,null,"½ SILENT GRIDCLOTH","SILENT GRIDCLOTH LITE",null,null,2.95,0]
[0,null,"¼ SILENT GRIDCLOTH","610x610cm",null," (20x20fts)",null,null,null,null,null,"¼ SILENT GRIDCLOTH","¼ SILENT GRIDCLOTH",null,null,2.95,0]
[0,null,"LAME ARGENT","610x610cm",null," (20x20fts)",null,null,null,null,null,"LAME ARGENT","LAME SILVER",null,null,3.29,0]
[0,null,"LAME OR","610x610cm",null," (20x20fts)",null,null,null,null,null,"LAME OR","LAME GOLD",null,null,3.29,0]
[0,null,"GRIFFLECTOR ARGENT","610x610cm",null," (20x20fts)",null,null,null,null,null,"GRIFFLECTOR ARGENT","GRIFFLECTOR SILVER",null,null,27.9,0]
[0,null,"GRIFFLECTOR OR","610x610cm",null," (20x20fts)",null,null,null,null,null,"GRIFFLECTOR OR","GRIFFLECTOR GOLD",null,null,27.9,0]
[0,null,"GRIFFLECTOR LISA MARIE","610x610cm",null," (20x20fts)",null,null,null,null,null,"GRIFFLECTOR LISA MARIE","GRIFFLECTOR CHECKERBOARD",null,null,38.56,0]
[0,null,"MATHFLECTOR ARGENT","610x610cm",null," (20x20fts)",null,null,null,null,null,"MATHFLECTOR ARGENT","MATHFLECTOR SILVER",null,null,38.58,0]
[0,null,"MATHFLECTOR OR","610x610cm",null," (20x20fts)",null,null,null,null,null,"MATHFLECTOR OR","MATHFLECTOR GOLD",null,null,28.58,0]
[0,null,"GRIFFOLYNE NOIR/BLANC T55","610x610cm",null," (20x20fts)",null,null,null,null,null,"GRIFFOLYNE NOIR/BLANC T55","GRIFFOLYNE BLACK/WHITE T55",null,null,6.35,0]
[0,null,"GRIFFOLYNE BLANC/BLANC T55","610x610cm",null," (20x20fts)",null,null,null,null,null,"GRIFFOLYNE BLANC/BLANC T55","GRIFFOLYNE WHITE/WHITE T55",null,null,9.5299999999999994,0]
[0,null,"GRIFFOLYNE NOIR/BLANC T85","610x610cm",null," (20x20fts)",null,null,null,null,null,"GRIFFOLYNE NOIR/BLANC T85","GRIFFOLYNE BLACK/WHITE T85",null,null,6.35,0]
[0,null,"MOUSLINE AU BLEACH","610x610cm",null," (20x20fts)",null,null,null,null,null,"MOUSLINE AU BLEACH","BLEACHED MUSLIM",null,null,7.71,0]
[0,null,"MOUSLINE SANS BLEACH","610x610cm",null," (20x20fts)",null,null,null,null,null,"MOUSLINE SANS BLEACH","UNBLEASHED MUSLIM",null,null,2.83,0]
[0,null,"BLEU INCRUST","610x610cm",null," (20x20fts)",null,null,null,null,null,"BLEU INCRUST","BLUE SCREEN",null,null,9.5299999999999994,0]
[0,null,"VERT INCRUST","610x610cm",null," (20x20fts)",null,null,null,null,null,"VERT INCRUST","GREEN SCREEN",null,null,9.5299999999999994,0]
[0,null,"LISA MARIE","610x610cm",null," (20x20fts)",null,null,null,null,null,"LISA MARIE","CHECKERBOARD LAME",null,null,3.63,0]
[0,null,"LIGHT BOX DIFFUSION","610x610cm",null," (20x20fts)",null,null,null,null,null,"LIGHT BOX DIFFUSION","LIGHT BOX DIFFUSION",null,null,5.44,0]
[0,null,"HI LIGHTS","610x610cm",null," (20x20fts)",null,null,null,null,null,"HI LIGHTS","HI LIGHTS",null,null,14.51,0]
[0,null,"ULTRABOUNCE","610x610cm",null," (20x20fts)",null,null,null,null,null,"ULTRABOUNCE","MATHBOUNCE / ULTRABOUNCE",null,null,3.29,0]
[0,null,"SILENT FROST","610x610cm",null," (20x20fts)",null,null,null,null,null,"SILENT FROST","SILENT FROST",null,null,4.54,0]
[0,null,"CUCOLORIS NOIR","610x610cm",null," (20x20fts)",null,null,null,null,null,"CUCOLORIS NOIR","SOFT CUCOLORIS BLACK",null,null,9.98,0]
[0,null,"CUCOLORIS BLANC","610x610cm",null," (20x20fts)",null,null,null,null,null,"CUCOLORIS BLANC","SOFT CUCOLORIS WHITE",null,null,3.4,0]
[0,null,"COTON BLANC","610x610cm",null," (20x20fts)",null,null,null,null,null,"COTON BLANC","WHITE COTON",null,null,9.5299999999999994,0]
[0,null,"COTON BEIGE","610x610cm",null," (20x20fts)",null,null,null,null,null,"COTON BEIGE","BEIGE COTON",null,null,9.5299999999999994,0]
[0,null,"SHOWER","610x610cm",null," (20x20fts)",null,null,null,null,null,"SHOWER","SHOWER CURTAIN",null,null,14.51,0]
[0,null,"½ SPI","610x610cm",null," (20x20fts)",null,null,null,null,null,"½ SPI","½ SPI",null,null,2.72,0]
[0,null,"SPI","610x610cm",null," (20x20fts)",null,null,null,null,null,"SPI","SPI",null,null,2.72,0]
[0,{"$f":"IF(SUM(B1401:B1416)>0,\"Size\",0)","v":0},"20 x 30"]
[{"$f":"IF(B1401>0,\"x\",0)","v":0},null,{"$f":"IF($I$1=\"x\",M1401,L1401)","v":"SIMPLE TULLE NOIR"},"610x915cm",null," (20x30fts)",null,null,null,null,null,"SIMPLE TULLE NOIR","SINGLE SCRIM BLACK",null,null,3.81,{"$f":"P1401*B1401","v":0}]
[0,null,"SOIE BLANCHE","610x915cm",null," (20x30fts)",null,null,null,null,null,"SOIE BLANCHE","ARTIFICIAL SILK WHITE",null,null,3.81,0]
[0,null,"BORGNOL","610x915cm",null," (20x30fts)",null,null,null,null,null,"BORGNOL","SOLID",null,null,15.42,0]
[0,null,"GRIDCLOTH","610x915cm",null," (20x30fts)",null,null,null,null,null,"GRIDCLOTH","GRIDCLOTH",null,null,5.9,0]
[0,null,"½ GRIDCLOTH","610x915cm",null," (20x30fts)",null,null,null,null,null,"½ GRIDCLOTH"," GRIDCLOTH LITE",null,null,4.08,0]
[0,null,"LAME ARGENT","610x915cm",null," (20x30fts)",null,null,null,null,null,"LAME ARGENT","LAME SILVER",null,null,3.29,0]
[0,null,"GRIFFOLYNE NOIR/BLANC T55","610x915cm",null," (20x30fts)",null,null,null,null,null,"GRIFFOLYNE NOIR/BLANC T55","GRIFFOLYNE BLACK/WHITE T55",null,null,9.07,0]
[0,null,"MOUSLINE AU BLEACH","610x915cm",null," (20x30fts)",null,null,null,null,null,"MOUSLINE AU BLEACH","BLEACHED MUSLIM",null,null,11.34,0]
[0,null,"MOUSLINE SANS BLEACH","610x915cm",null," (20x30fts)",null,null,null,null,null,"MOUSLINE SANS BLEACH","UNBLEASHED MUSLIM",null,null,1.34,0]
[0,null,"BLEU INCRUST","610x915cm",null," (20x30fts)",null,null,null,null,null,"BLEU INCRUST","BLUE SCREEN",null,null,14.06,0]
[0,null,"VERT INCRUST","610x915cm",null," (20x30fts)",null,null,null,null,null,"VERT INCRUST","GREEN SCREEN",null,null,14.06,0]
[0,null,"COTON BLANC","610x915cm",null," (20x30fts)",null,null,null,null,null,"COTON BLANC","WHITE COTON",null,null,14.06,0]
[0,null,"COTON BEIGE","610x915cm",null," (20x30fts)",null,null,null,null,null,"COTON BEIGE","BEIGE COTON",null,null,14.06,0]
[0,null,"SHOWER","610x915cm",null," (20x30fts)",null,null,null,null,null,"SHOWER","SHOWER CURTAIN",null,null,17,0]
[0,null,"½ SPI","610x915cm",null," (20x30fts)",null,null,null,null,null,"½ SPI","½ SPI",null,null,3.81,0]
[0,null,"SPI","610x915cm",null," (20x30fts)",null,null,null,null,null,"SPI","SPI",null,null,3.81,0]
[0,{"$f":"IF(SUM(B1418:B1428)>0,\"Size\",0)","v":0},"30 x 30"]
[{"$f":"IF(B1418>0,\"x\",0)","v":0},null,{"$f":"IF($I$1=\"x\",M1418,L1418)","v":"SOIE BLANCHE"},"915x915cm",null," (30x30fts)",null,null,null,null,null,"SOIE BLANCHE","ARTIFICIAL SILK WHITE",null,null,11.79,{"$f":"P1418*B1418","v":0}]
[0,null,"BORGNOL","915x915cm",null," (30x30fts)",null,null,null,null,null,"BORGNOL","SOLID",null,null,23.13,0]
[0,null,"GRIDCLOTH","915x915cm",null," (30x30fts)",null,null,null,null,null,"GRIDCLOTH","GRIDCLOTH",null,null,9.07,0]
[0,null,"½ GRIDCLOTH","915x915cm",null," (30x30fts)",null,null,null,null,null,"½ GRIDCLOTH","GRIDCLOTH LITE",null,null,6.12,0]
[0,null,"MOUSLINE AU BLEACH","915x915cm",null," (30x30fts)",null,null,null,null,null,"MOUSLINE AU BLEACH","BLEACHED MUSLIM",null,null,17.239999999999998,0]
[0,null,"MOUSLINE SANS BLEACH","915x915cm",null," (30x30fts)",null,null,null,null,null,"MOUSLINE SANS BLEACH","UNBLEASHED MUSLIM",null,null,17.239999999999998,0]
[0,null,"COTON BLANC","915x915cm",null," (30x30fts)",null,null,null,null,null,"COTON BLANC","WHITE COTON",null,null,23.13,0]
[0,null,"COTON BEIGE","915x915cm",null," (30x30fts)",null,null,null,null,null,"COTON BEIGE","BEIGE COTON",null,null,23.13,0]
[0,null,"SHOWER","915x915cm",null," (30x30fts)",null,null,null,null,null,"SHOWER","SHOWER CURTAIN",null,null,23.13,0]
[0,null,"½ SPI","915x915cm",null," (30x30fts)",null,null,null,null,null,"½ SPI","½ SPI",null,null,11.79,0]
[0,null,"SPI","915x915cm",null," (30x30fts)",null,null,null,null,null,"SPI","SPI",null,null,11.79,0]
[0,{"$f":"IF(SUM(B1430:B1442)>0,\"Qté\",0)","v":0},"NID D'ABEILLE LIGHT TOOLS","20°","30°","40°","50°","60°","30/50",null,null,"NID D'ABEILLE LIGHT TOOLS","LIGHT TOOLS"]
[0,null,"NID D'ABEILLE LIGHT TOOL 120x120cm",null,null,null,null,null,null,null,null,"NID D'ABEILLE LIGHT TOOL 120x120cm","LIGHT TOOLS EGGCRATE 4by4 fts",null,null,null,{"$f":"P1430*B1430","v":0}]
[0,null,"NID D'ABEILLE LIGHT TOOL 183x183cm",null,null,null,null,null,null,null,null,"NID D'ABEILLE LIGHT TOOL 183x183cm","LIGHT TOOLS EGGCRATE 6by6 fts",null,null,null,{"$f":"P1431*B1431","v":0}]
[0,null,"NID D'ABEILLE LIGHT TOOL 244x244cm",null,null,null,null,null,null,null,null,"NID D'ABEILLE LIGHT TOOL 244x244cm","LIGHT TOOLS EGGCRATE 8by8 fts",null,null,null,{"$f":"P1432*B1432","v":0}]
[0,null,"NID D'ABEILLE LIGHT TOOL 366x366cm",null,null,null,null,null,null,null,null,"NID D'ABEILLE LIGHT TOOL 366x366cm","LIGHT TOOLS EGGCRATE 12by12 fts",null,null,null,{"$f":"P1433*B1433","v":0}]
[0,null,"NID D'ABEILLE LIGHT TOOL 610x610cm",null,null,null,null,null,null,null,null,"NID D'ABEILLE LIGHT TOOL 610x610cm","LIGHT TOOLS EGGCRATE 20by20 fts",null,null,null,{"$f":"P1434*B1434","v":0}]
[0,null,"NID D'ABEILLE LIGHT TOOL 120x244cm",null,null,null,null,null,null,null,null,"NID D'ABEILLE LIGHT TOOL 120x244cm","LIGHT TOOLS EGGCRATE 4by8 fts",null,null,null,{"$f":"P1435*B1435","v":0}]
[0,null,"NID D'ABEILLE LIGHT TOOL 183x244cm",null,null,null,null,null,null,null,null,"NID D'ABEILLE LIGHT TOOL 183x244cm","LIGHT TOOLS EGGCRATE 6by8 fts",null,null,null,0]
[0,null,"NID D'ABEILLE LIGHT TOOL 183x366cm",null,null,null,null,null,null,null,null,"NID D'ABEILLE LIGHT TOOL 183x366cm","LIGHT TOOLS EGGCRATE 6by12 fts",null,null,null,0]
[0,null,"NID D'ABEILLE LIGHT TOOL 244x366cm",null,null,null,null,null,null,null,null,"NID D'ABEILLE LIGHT TOOL 244x366cm","LIGHT TOOLS EGGCRATE 8by12 fts",null,null,null,0]
[0,null,"NID D'ABEILLE LIGHT TOOL 366x610cm",null,null,null,null,null,null,null,null,"NID D'ABEILLE LIGHT TOOL 366x610cm","LIGHT TOOLS EGGCRATE 12by20 fts",null,null,null,0]
[0,null,0,null,null,null,null,null,null,null,null,null,null,null,null,null,0]
[0,null,null,null,null,null,null,null,null,null,null,null,null,null,null,null,0]
[0,null,{"$f":"IF($I$1=\"x\",M1442,L1442)","v":0},null,null,null,null,null,null,null,null,null,null,null,null,null,{"$f":"P1442*B1442","v":0}]
[0,{"$f":"IF(SUM(B1444:B1495)>0,\"Qté\",0)","v":0},"BOULES & CHIMERA",null,null,null,null,null,null,null,null,"BOULES & CHIMERA","CHINESE LANTERNE & CHIMERA"]
[0,null,"VIDEO PRO XXS",null,null,null,null,null,null,null,null,"VIDEO PRO XXS","VIDEO PRO XXS",null,null,null,{"$f":"P1444*B1444","v":0}]
[0,null,"VIDEO PRO XS",null,null,null,null,null,null,null,null,"VIDEO PRO XS","VIDEO PRO XS",null,null,null,{"$f":"P1445*B1445","v":0}]
[0,null,"SHALLOW S",null,null,null,null,null,null,null,null,"SHALLOW S","SHALLOW S",null,null,null,{"$f":"P1446*B1446","v":0}]
[0,null,"SHALLOW M",null,null,null,null,null,null,null,null,"SHALLOW M","SHALLOW M",null,null,null,{"$f":"P1447*B1447","v":0}]
[0,null,"SHALLOW L",null,null,null,null,null,null,null,null,"SHALLOW L","SHALLOW L",null,null,null,{"$f":"P1448*B1448","v":0}]
[0,null,"QUARTZ S",null,null,null,null,null,null,null,null,"QUARTZ S","QUARTZ S",null,null,null,{"$f":"P1449*B1449","v":0}]
[0,null,"QUARTZ M",null,null,null,null,null,null,null,null,"QUARTZ M","QUARTZ M",null,null,null,0]
[0,null,"QUARTZ L",null,null,null,null,null,null,null,null,"QUARTZ L","QUARTZ L",null,null,null,0]
[0,null,"DAYLIGHT M",null,null,null,null,null,null,null,null,"DAYLIGHT M","DAYLIGHT M",null,null,null,0]
[0,null,"DAYLIGHT LS",null,null,null,null,null,null,null,null,"DAYLIGHT LS","DAYLIGHT LS",null,null,null,0]
[0,null,"STRIP S",null,null,null,null,null,null,null,null,"STRIP S","STRIP S",null,null,null,0]
[0,null,"STRIP M",null,null,null,null,null,null,null,null,"STRIP M","STRIP M",null,null,null,0]
[0,null,"PANCAKE S",null,null,null,null,null,null,null,null,"PANCAKE S","PANCAKE S",null,null,null,0]
[0,null,"PANCAKE M",null,null,null,null,null,null,null,null,"PANCAKE M","PANCAKE M",null,null,null,0]
[0,null,"PANCAKE L",null,null,null,null,null,null,null,null,"PANCAKE L","PANCAKE L",null,null,null,0]
[0,null,"OCTAPLUS 5",null,null,null,null,null,null,null,null,"OCTAPLUS 5","OCTAPLUS 5",null,null,null,0]
[0,null,"OCTAPLUS 7",null,null,null,null,null,null,null,null,"OCTAPLUS 7","OCTAPLUS 7",null,null,null,0]
[0,null,"SPEED RING BUG 200/400",null,null,null,null,null,null,null,null,"SPEED RING BUG 200/400","SPEED RING BUG 200/400",null,null,null,0]
[0,null,"SPEEDRING BUG 800W",null,null,null,null,null,null,null,null,"SPEEDRING BUG 800W","SPEEDRING BUG 800W",null,null,null,0]
[0,null,"SPEED RING BUG OCTAPLUS",null,null,null,null,null,null,null,null,"SPEED RING BUG OCTAPLUS","SPEED RING BUG OCTAPLUS",null,null,null,0]
[0,null,"DOUILLE E40",null,null,null,null,null,null,null,null,"DOUILLE E40","SOCKET E40",null,null,null,0]
[0,null,"DOUILLE E40 OCTAPLUS",null,null,null,null,null,null,null,null,"DOUILLE E40 OCTAPLUS","SOCKET E40 OCTAPLUS",null,null,null,0]
[0,null,"SOFTUBE 800",null,null,null,null,null,null,null,null,"SOFTUBE 800","SOFTUBE 800",null,null,1.6,0]
[0,null,"SOFTUBE 400 ",null,null,null,null,null,null,null,null,"SOFTUBE 400 ","SOFTUBE 400 ",null,null,0.8,0]
[0,null,"SOFTUBE 200 ",null,null,null,null,null,null,null,null,"SOFTUBE 200 ","SOFTUBE 200 ",null,null,null,0]
[0,null,"CAPUCHON CORRECTEUR CTO  200 W",null,null,null,null,null,null,null,null,"CAPUCHON CORRECTEUR CTO  200 W",null,null,null,null,0]
[0,null,"CAPUCHON CORRECTEUR CTO 400 W",null,null,null,null,null,null,null,null,"CAPUCHON CORRECTEUR CTO 400 W",null,null,null,null,0]
[0,null,"BOULE CHINOISE BUGLITE",null,null,null,null,null,null,null,null,"BOULE CHINOISE BUGLITE","CHINESE LANTERN BUGLITE 200 W",null,null,null,0]
[0,null,"BOULE CHINOISE 50 CMS",null,null,null,null,null,null,null,null,"BOULE CHINOISE 50 CMS","CHINESE LANTERN 20''",null,null,null,0]
[0,null,"BOULE CHINOISE 75 CMS",null,null,null,null,null,null,null,null,"BOULE CHINOISE 75 CMS","CHINESE LANTERN 30''",null,null,null,0]
[0,null,"LOUVER",null,null,null,null,null,null,null,null,"LOUVER","EGG CRATE",null,null,null,0]
[0,null,"LOUVER VIDEO PRO XXS",null,null,null,null,null,null,null,null,"LOUVER VIDEO PRO XXS","EGG CRATE VIDEO PRO XXS",null,null,null,0]
[0,null,"LOUVER VIDEO PRO XS",null,null,null,null,null,null,null,null,"LOUVER VIDEO PRO XS","EGG CRATE VIDEO PRO XS",null,null,null,0]
[0,null,"LOUVER VIDEO PRO S",null,null,null,null,null,null,null,null,"LOUVER VIDEO PRO S","EGG CRATE VIDEO PRO S",null,null,null,0]
[0,null,"LOUVER QUARTZ S",null,null,null,null,null,null,null,null,"LOUVER QUARTZ S","EGG CRATE QUARTZ S",null,null,null,0]
[0,null,"LOUVER QUARTZ M",null,null,null,null,null,null,null,null,"LOUVER QUARTZ M","EGG CRATE QUARTZ M",null,null,null,0]
[0,null,"LOUVER QUARTZ L",null,null,null,null,null,null,null,null,"LOUVER QUARTZ L","EGG CRATE QUARTZ L",null,null,null,0]
[{"$f":"IF(B1481>0,\"x\",0)","v":0},null,"LOUVER DAYLIGHT M",null,null,null,null,null,null,null,null,"LOUVER DAYLIGHT M","EGG CRATE  DAYLIGHT M",null,null,null,0]
[0,null,"LOUVER DAYLIGHT LS",null,null,null,null,null,null,null,null,"LOUVER DAYLIGHT LS","EGG CRATE  DAYLIGHT LS",null,null,null,0]
[0,null,"LOUVER STRIP S",null,null,null,null,null,null,null,null,"LOUVER STRIP S","EGG CRATE STRIP S",null,null,null,0]
[0,null,"LOUVER STRIP M",null,null,null,null,null,null,null,null,"LOUVER STRIP M","EGG CRATE STRIP M",null,null,null,0]
[0,null,"LOUVER PANCAKE S",null,null,null,null,null,null,null,null,"LOUVER PANCAKE S","EGG CRATE PANCAKE S",null,null,null,0]
[0,null,"LOUVER PANCAKE M",null,null,null,null,null,null,null,null,"LOUVER PANCAKE M","EGG CRATE PANCAKE M",null,null,null,0]
[0,null,"LOUVER PANCAKE L",null,null,null,null,null,null,null,null,"LOUVER PANCAKE L","EGG CRATE  PANCAKE L",null,null,null,0]
[0,null,"LOUVER OCTAPLUS 5",null,null,null,null,null,null,null,null,"LOUVER OCTAPLUS 5","EGG CRATE OCTAPLUS 5",null,null,null,0]
[0,null,"LOUVER OCTAPLUS 7",null,null,null,null,null,null,null,null,"LOUVER OCTAPLUS 7","EGG CRATE OCTAPLUS 7",null,null,null,0]
[0,null,"FABRIC GRID POUR CHIMERA GM",null,null,null,null,null,null,null,null,"FABRIC GRID POUR CHIMERA GM","FABRIC GRID FOR CHIMERA GM",null,null,null,0]
[0,null,"FABRIC GRID POUR CHIMERA MM",null,null,null,null,null,null,null,null,"FABRIC GRID POUR CHIMERA MM","FABRIC GRID FOR CHIMERA MM",null,null,null,0]
[0,null,"FABRIC GRID POUR CHIMERA PM",null,null,null,null,null,null,null,null,"FABRIC GRID POUR CHIMERA PM","FABRIC GRID FOR CHIMERA PM",null,null,null,0]
[0,null,"JEU DE SCRIMM PP",null,null,null,null,null,null,null,null,"JEU DE SCRIMM PP","JEU DE SCRIMM PP",null,null,null,0]
[0,null,"JEU DE SCRIMM MM",null,null,null,null,null,null,null,null,"JEU DE SCRIMM MM","JEU DE SCRIMM MM",null,null,null,0]
[0,null,"JEU DE SCRIMM GM",null,null,null,null,null,null,null,null,"JEU DE SCRIMM GM","JEU DE SCRIMM GM",null,null,null,0]
[0,{"$f":"IF(SUM(B1497:B1502)>0,\"Qté\",0)","v":0},"MIROIRS",null,null,null,null,null,null,null,null,"MIROIRS","MIRRORS"]
[0,null,"PARAPLUIE LOWEL diam 75",null,null,null,null,null,null,null,null,"PARAPLUIE LOWEL diam 75","PARAPLUIE LOWEL diam 75",null,null,null,{"$f":"P1497*B1497","v":0}]
[0,null,"ECRAN LASTOLITE ",null,null,null,null,null,null,null,null,"ECRAN LASTOLITE ","ECRAN LASTOLITE ",null,null,0.2,0]
[0,null,"MIROIR 1X1 M",null,null,null,null,null,null,null,null,"MIROIR 1X1 M","MIRROR 1X1 M",null,null,17,0]
[0,null,"MIROIR MATTHEWS SPECIAL XENON",null,null,null,null,null,null,null,null,"MIROIR MATTHEWS SPECIAL XENON","MIRROR MATTHEWS SPECIAL XENON",null,null,21.7,0]
[0,null,"VARIFLECTOR",null,null,null,null,null,null,null,null,"VARIFLECTOR","VARIFLECTOR",null,null,10.6,0]
[0,null,"ECRAN REFLECTEUR 1X1 M",null,null,null,null,null,null,null,null,"ECRAN REFLECTEUR 1X1 M","REFLECTOR 1X1 M",null,null,2.5,0]
[0,{"$f":"IF(SUM(B1504:B1546)>0,\"Qté\",0)","v":0},{"$f":"IF($I$1=\"x\",M1503,L1503)","v":"JEUX D' ORGUES"},null,null,null,null,null,null,null,null,"JEUX D' ORGUES","LIGHTING CONTROL"]
[0,null,"EMETTEUR CRMX Lumenradio",null,null,null,null,null,null,null,null,"EMETTEUR CRMX Lumenradio","TRANSMITTER CRMX",null,null,null,{"$f":"P1504*B1504","v":0}]
[{"$f":"IF(B1505>0,\"x\",0)","v":0},null,{"$f":"IF($I$1=\"x\",M1505,L1505)","v":"RECEPTEUR CRMX"},null,null,null,null,null,null,null,null,"RECEPTEUR CRMX","RECEIVER CRMX",null,null,null,0]
[{"$f":"IF(B1506>0,\"x\",0)","v":0},null,{"$f":"IF($I$1=\"x\",M1506,L1506)","v":"TX/RX CRMX"},null,null,null,null,null,null,null,null,"TX/RX CRMX","TX/RX CRMX",null,null,null,0]
[{"$f":"IF(B1507>0,\"x\",0)","v":0},null,{"$f":"IF($I$1=\"x\",M1507,L1507)","v":"TABLETTE Control"},null,null,null,null,null,null,null,null,"TABLETTE Control","TABLET Control",null,null,null,0]
[{"$f":"IF(B1508>0,\"x\",0)","v":0},null,{"$f":"IF($I$1=\"x\",M1508,L1508)","v":"GAFFER CONTROL"},null,null,null,null,null,null,null,null,"GAFFER CONTROL","GAFFER CONTROL",null,null,null,0]
[{"$f":"IF(B1509>0,\"x\",0)","v":0},null,{"$f":"IF($I$1=\"x\",M1509,L1509)","v":0},null,null,null,null,null,null,null,null,null,null,null,null,null,0]
[0,null,"CONSOLE 6 CIRCUITS DMX",null,null,null,null,null,null,null,null,"CONSOLE 6 CIRCUITS DMX","DMX CONTROLLER",null,null,2,0]
[0,null,"CONSOLE 6 CIRCUITS 0/10v",null,null,null,null,null,null,null,null,"CONSOLE 6 CIRCUITS 0/10v","ANALOG 6 WAY CONTROLLER",null,null,2,0]
[0,null,"CONSOLE 12 CIRCUITS 0-10V",null,null,null,null,null,null,null,null,"CONSOLE 12 CIRCUITS 0-10V","12 CHANNEL ANALOG CONTROLLER",null,null,2.2000000000000002,0]
[0,null,"CONSOLE 12 CIRCUITS DMX",null,null,null,null,null,null,null,null,"CONSOLE 12 CIRCUITS DMX","12 CHANNEL DMX CONTROLLER",null,null,2.2000000000000002,0]
[0,null,"CONSOLE 12/24 CIRCUITS DMX",null,null,null,null,null,null,null,null,"CONSOLE 12/24 CIRCUITS DMX","12/24 CHANEL DMX CONTROLLER",null,null,16,0]
[0,null,"CONSOLE 24 CIRCUITS DMX",null,null,null,null,null,null,null,null,"CONSOLE 24 CIRCUITS DMX","24 CHANNEL DMX CONTROLLER",null,null,16,0]
[0,null,"CONSOLE 48 CIRCUITS DMX",null,null,null,null,null,null,null,null,"CONSOLE 48 CIRCUITS DMX","48 CHANNEL DMX CONTROLLER",null,null,24,0]
[0,null,"CONSOLE 96 CIRCUITS IMPACT DMX",null,null,null,null,null,null,null,null,"CONSOLE 96 CIRCUITS IMPACT DMX","96 CHANELS DMX CONTROLLER",null,null,null,0]
[0,null,"CONSOLE 72/144 CIRCUITS ETC DMX",null,null,null,null,null,null,null,null,"CONSOLE 72/144 CIRCUITS ETC DMX","72/144 CHANELS DMX CONTROLLER",null,null,null,0]
[0,null,"CONSOLE AVOLITE PEARL 240 CIRCUITS DMX",null,null,null,null,null,null,null,null,"CONSOLE AVOLITE PEARL 240 CIRCUITS DMX","240 CHANELS DMX CONTROLLER AVOLITE PEARL",null,null,null,0]
[0,null,"CONSOLE 350 CIRCUITS IMPACT DMX",null,null,null,null,null,null,null,null,"CONSOLE 350 CIRCUITS IMPACT DMX","350 CHANELS DMX IMPACT CONTROLLER",null,null,null,0]
[0,null,"LANDBOX LCX 512 CH",null,null,null,null,null,null,null,null,"LANDBOX LCX 512 CH","LANDBOX LCX 512 CH",null,null,0.4,0]
[0,null,"DEMUX DMX-0-10v",null,null,null,null,null,null,null,null,"DEMUX DMX-0-10v","DEMUX DMX to ANALOG 0-10v",null,null,0.5,0]
[0,null,"SPLITTER BOOSTER DMX",null,null,null,null,null,null,null,null,"SPLITTER BOOSTER DMX","SPLITTER BOOSTER DMX",null,null,0.8,0]
[0,null,"RACK 3x5KW",null,null,null,null,null,null,null,null,"RACK 3x5KW","3x5KW REMOTE SWITCH BOARD",null,null,25,0]
[0,null,"RACK 3X10KW",null,null,null,null,null,null,null,null,"RACK 3X10KW","3X10KW REMOTE SWITCH BOARD",null,null,25,0]
[0,null,"RACK 6X2KW",null,null,null,null,null,null,null,null,"RACK 6X2KW","6X2KW REMOTE SWITCH BOARD",null,null,8,0,null,null,null,null,null,null,null,null,"http://www.rvetec.com/index.php?langue=fr&page=produits&id=STAGER"]
[0,null,"RACK 6x5KW",null,null,null,null,null,null,null,null,"RACK 6x5KW"," 6x5KW REMOTE SWITCH BOARD",null,null,35,0]
[0,null,"RACK 6x10KW",null,null,null,null,null,null,null,null,"RACK 6x10KW","6x10KW  REMOTE SWITCH BOARD",null,null,35,0]
[0,null,"RACK 12X2KW",null,null,null,null,null,null,null,null,"RACK 12X2KW","12x2KW REMOTE SWITCH BOARD",null,null,25,0]
[0,null,"RACK 12X3KW",null,null,null,null,null,null,null,null,"RACK 12X3KW","12x3KW REMOTE SWITCH BOARD",null,null,25,0]
[0,null,"RACK 12x5KW",null,null,null,null,null,null,null,null,"RACK 12x5KW","12x5KW REMOTE SWITCH BOARD",null,null,45,0]
[0,null,"RACK 12x6KW",null,null,null,null,null,null,null,null,"RACK 12x6KW","12x6KW REMOTE SWITCH BOARD",null,null,null,0]
[0,null,"RACK 12x10KW",null,null,null,null,null,null,null,null,"RACK 12x10KW","12x10KW REMOTE SWITCH BOARD",null,null,null,0]
[0,null,"RACK 18x2KW",null,null,null,null,null,null,null,null,"RACK 18x2KW","18x2KW REMOTE SWITCH BOARD",null,null,null,0]
[0,null,"RACK 24x2KW",null,null,null,null,null,null,null,null,"RACK 24x2KW","24x2KW REMOTE SWITCH BOARD",null,null,null,0]
[0,null,"FLICKER BOX 2KW",null,null,null,null,null,null,null,null,"FLICKER BOX 2KW","FLICKER BOX 2KW",null,null,1.5,0]
[0,null,"FLICKER BOX 5KW",null,null,null,null,null,null,null,null,"FLICKER BOX 5KW","FLICKER BOX 5KW",null,null,8,0]
[0,null,"STRAP DMX",null,null,null,null,null,null,null,null,"STRAP DMX","STRAP DMX",null,null,0.2,0]
[0,null,"TOURET DMX",null,null,null,null,null,null,null,null,"TOURET DMX","TOURET DMX",null,null,2,0]
[{"$f":"IF(B1540>0,\"x\",0)","v":0},null,{"$f":"IF($I$1=\"x\",M1540,L1540)","v":"RALLONGE DMX (XLR 5 Broches) 2M"},null,null,null,null,null,null,null,null,"RALLONGE DMX (XLR 5 Broches) 2M","EXTENSION CABLE DMX (XLR 5 Pins) 2M",null,null,3,0]
[0,null,"RALLONGE DMX (XLR 5 Broches) 5M",null,null,null,null,null,null,null,null,"RALLONGE DMX (XLR 5 Broches) 5M","EXTENSION CABLE DMX (XLR 5 Pins) 5M",null,null,0.3,0]
[0,null,"RALLONGE DMX (XLR 5 Broches) 10M",null,null,null,null,null,null,null,null,"RALLONGE DMX (XLR 5 Broches) 10M","EXTENSION CABLE DMX (XLR 5 Pins) 10M",null,null,0.5,0]
[0,null,"RALLONGE DMX (XLR 5 Broches) 25M",null,null,null,null,null,null,null,null,"RALLONGE DMX (XLR 5 Broches) 25M","EXTENSION CABLE DMX (XLR 5 Pins) 25M",null,null,1,0]
[{"$f":"IF(B1544>0,\"x\",0)","v":0},null,"RALLONGE 0-10V (XLR 3 Broches)",null,null,null,null,null,null,null,null,"RALLONGE 0-10V (XLR 3 Broches)","EXTENSION CABLE 0-10V (XLR 3 Pins)",null,null,0.2,0]
[0,null,"MULTIPAIRE",null,null,null,null,null,null,null,null,"MULTIPAIRE","SOCAPEX 20fts",null,null,null,0]
[0,null,"MULTIPAIRE LONG",null,null,null,null,null,null,null,null,"MULTIPAIRE LONG","SOCAPEX 30fts",null,null,null,0]
[0,null,0]
[{"$f":"IF(B1548>0,\"x\",0)","v":0},{"$f":"IF(SUM(B1549:B1554)>0,\"Qté\",0)","v":0},{"$f":"IF($I$1=\"x\",M1548,L1548)","v":"VARIATEURS"},null,null,null,null,null,null,null,null,"VARIATEURS","DIMMERS"]
[0,null,"VARIATEUR 10 KW ",null,null,null,null,null,null,null,null,"VARIATEUR 10 KW ","DIMMER 10 KW ",null,null,8,{"$f":"P1549*B1549","v":0}]
[0,null,"VARIATEUR 5 KW  ",null,null,null,null,null,null,null,null,"VARIATEUR 5 KW  ","DIMMER 5 KW  ",null,null,8,0]
[0,null,"VARIATEUR 2.5 KW  ",null,null,null,null,null,null,null,null,"VARIATEUR 2.5 KW  ","DIMMER 2.5 KW  ",null,null,1.5,0]
[0,null,"VARIATEUR 2KW",null,null,null,null,null,null,null,null,"VARIATEUR 2KW","DIMMER 2KW",null,null,0.8,0]
[0,null,"VARIATEUR 1 KW ",null,null,null,null,null,null,null,null,"VARIATEUR 1 KW ","DIMMER 1KW",null,null,0.8,0]
[0,null,"VARIATEUR 500W ",null,null,null,null,null,null,null,null,"VARIATEUR 500W ","DIMMER 500W",null,null,0.4,0]
[0,{"$f":"IF(SUM(B1556:B1842)>0,\"Qté\",0)","v":0},"GELATINES, CONSOS & LAMPES",null,null,null,null,null,null,null,null,"GELATINES, CONSOS & LAMPES","GELS, CONSUMMABLES & BULBS"]
[0,{"$f":"IF(SUM(B1557:B1576)>0,\"Marq\",0)","v":0},"CONSOMMABLES",null,null,null,null,null,null,null,null,"CONSOMMABLES","CONSUMMABLES"]
[0,null,"POLYSTYRENE NOIR BLANC",null,null,null,null,null,null,null,null,"POLYSTYRENE NOIR BLANC","POLY SHEET 2Mx1M WHITE BLACK",null,null,1,{"$f":"P1557*B1557","v":0}]
[0,null,"BLACK AND WHITE CARD",null,null,null,null,null,null,null,null,"BLACK AND WHITE CARD","BLACK AND WHITE CARD",null,null,2,0]
[0,null,"DEPRON 6mm ",null,null,null,null,null,null,null,null,"DEPRON 6mm ","DEPRON 6mm ",null,null,null,0]
[0,null,"DEPRON 3mm",null,null,null,null,null,null,null,null,"DEPRON 3mm","DEPRON 3mm",null,null,null,0]
[0,null,"FEUILLE ARGENT",null,null,null,null,null,null,null,null,"FEUILLE ARGENT","SILVER SHEET",null,null,null,0]
[0,null,"FEUILLE OR",null,null,null,null,null,null,null,null,"FEUILLE OR","GOLD SHEET",null,null,null,0]
[0,null,"MIROLEGE GRAND MODELE",null,null,null,null,null,null,null,null,"MIROLEGE GRAND MODELE","MIROLEGE GRAND MODELE",null,null,null,0]
[0,null,"MIROLEGE PETIT MODELE",null,null,null,null,null,null,null,null,"MIROLEGE PETIT MODELE","MIROLEGE PETIT MODELE",null,null,null,0]
[0,null,"CANSON NOIR 1,52 X 10M",null,null,null,null,null,null,null,null,"CANSON NOIR 1,52 X 10M","CANSON BLACK 1,52 X 10M",null,null,null,0]
[0,null,"CANSON BLANC 1,52 X 10M",null,null,null,null,null,null,null,null,"CANSON BLANC 1,52 X 10M","CANSON WHITE 1,52 X 10M",null,null,null,0]
[0,null,"CALQUE 70 G 1,50 X 20M",null,null,null,null,null,null,null,null,"CALQUE 70 G 1,50 X 20M","TRACING PAPER 70 G 1,50 X 20M",null,null,null,0]
[0,null,"CALQUE 90 G ",null,null,null,null,null,null,null,null,"CALQUE 90 G ","TRACING PAPER 90 G ",null,null,null,0]
[0,null,"BLACK OUT",null,null,null,null,null,null,null,null,"BLACK OUT","BLACK OUT GEL",null,null,null,0]
[{"$f":"IF(B1570>0,\"x\",0)","v":0},null,{"$f":"IF($I$1=\"x\",M1570,L1570)","v":"PERMACEL"},null,null,null,null,null,null,null,null,"PERMACEL","PERMACEL",null,null,null,0]
[0,null,"CINEFOIL NOIR 0,60 M",null,null,null,null,null,null,null,null,"CINEFOIL NOIR 0,60 M","CINEFOIL BLACK 0,60 M",null,null,0.75,0]
[0,null,"CINEFOIL BLANC 0,60 M",null,null,null,null,null,null,null,null,"CINEFOIL BLANC 0,60 M","CINEFOIL WHITE 0,60 M",null,null,0.75,0]
[0,null,"CINEFOIL NOIR 0,30 M",null,null,null,null,null,null,null,null,"CINEFOIL NOIR 0,30 M","CINEFOIL BLACK 0,30 M",null,null,null,0]
[0,null,"GAFFEUR NOIR ",null,null,null,null,null,null,null,null,"GAFFEUR NOIR ","GAFFER TAPE BLACK ",null,null,null,0]
[0,null,{"$f":"IF($I$1=\"x\",M1575,L1575)","v":"GAFFEUR BLANC "},null,null,null,null,null,null,null,null,"GAFFEUR BLANC ","GAFFER TAPE WHITE ",null,null,null,0]
[0,{"$f":"IF(SUM(B1577:B1617)>0,\"Marq\",0)","v":0},"CORRECTEUR",null,{"$f":"IF(I1=\"x\",\"Sheet 1/4fts\",\"Feuille 0,35/1,22\")","v":"Feuille 0,35/1,22"},null,null,{"$f":"IF(I1=\"x\",\"5 feet\",\"1m50\")","v":"1m50"},null,null,null,"CORRECTEUR","CORRECTION"]
[0,null,"DOUBLE CTB",200,null,null,null,null,null,null,null,"DOUBLE CTB","DOUBLE CTB",null,null,1.5,{"$f":"P1577*B1577","v":0}]
[0,null,"CTB FULL",201,null,null,null,null,null,null,null,"CTB FULL","CTB FULL",null,null,1.5,0]
[0,null,"CTB 3/4",281,null,null,null,null,null,null,null,"CTB 3/4","CTB 3/4",null,null,1.5,0]
[0,null,"CTB 1/2",202,null,null,null,null,null,null,null,"CTB 1/2","CTB 1/2",null,null,1.5,0]
[0,null,"CTB 1/4",203,null,null,null,null,null,null,null,"CTB 1/4","CTB 1/4",null,null,1.5,0]
[0,null,"CTB 1/8",218,null,null,null,null,null,null,null,"CTB 1/8","CTB 1/8",null,null,1.5,0]
[0,null,"CTO FULL",204,null,null,null,null,null,null,null,"CTO FULL","CTO FULL",null,null,1.5,0]
[0,null,"CTO 3/4",285,null,null,null,null,null,null,null,"CTO 3/4","CTO 3/4",null,null,1.5,0]
[0,null,"CTO 1/2",205,null,null,null,null,null,null,null,"CTO 1/2","CTO 1/2",null,null,1.5,0]
[0,null,"CTO 1/4",206,null,null,null,null,null,null,null,"CTO 1/4","CTO 1/4",null,null,1.5,0]
[0,null,"CTO 1/8",223,null,null,null,null,null,null,null,"CTO 1/8","CTO 1/8",null,null,1.5,0]
[0,null,"CT STRAW FULL",441,null,null,null,null,null,null,null,"CT STRAW FULL","CT STRAW FULL",null,null,1.5,0]
[0,null,"CT STRAW 1/2",442,null,null,null,null,null,null,null,"CT STRAW 1/2","CT STRAW 1/2",null,null,1.5,0]
[0,null,"CT STRAW 1/4",443,null,null,null,null,null,null,null,"CT STRAW 1/4","CT STRAW 1/4",null,null,1.5,0]
[0,null,"CT STRAW 1/8",444,null,null,null,null,null,null,null,"CT STRAW 1/8","CT STRAW 1/8",null,null,1.5,0]
[0,null,"FULL CTO + ND 03",207,null,null,null,null,null,null,null,"FULL CTO + ND 03","FULL CTO + ND 03",null,null,1.5,0]
[0,null,"FULL CTO + ND 06",208,null,null,null,null,null,null,null,"FULL CTO + ND 06","FULL CTO + ND 06",null,null,1.5,0]
[0,null,"LCT YELLOW - Y0",212,null,null,null,null,null,null,null,"LCT YELLOW - Y0","LCT YELLOW - Y0",null,null,1.5,0]
[0,null,"WHY FLAME GREEN",213,null,null,null,null,null,null,null,"WHY FLAME GREEN","WHY FLAME GREEN",null,null,1.5,0]
[0,null,"HMI - TUSGTENE",236,null,null,null,null,null,null,null,"HMI - TUSGTENE","HMI - TUSGTENE",null,null,1.5,0]
[0,null,"CID TUSGTENE",237,null,null,null,null,null,null,null,"CID TUSGTENE","CID TUSGTENE",null,null,1.5,0]
[0,null,"CIS TUSGTENE",238,null,null,null,null,null,null,null,"CIS TUSGTENE","CIS TUSGTENE",null,null,1.5,0]
[0,null,"ND 03",209,null,null,null,null,null,null,null,"ND 03","ND 03",null,null,1.5,0]
[0,null,"ND 06",210,null,null,null,null,null,null,null,"ND 06","ND 06",null,null,1.5,0]
[0,null,"ND 09",211,null,null,null,null,null,null,null,"ND 09","ND 09",null,null,1.5,0]
[0,null,"ND 1,2",299,null,null,null,null,null,null,null,"ND 1,2","ND 1,2",null,null,1.5,0]
[0,null,"ND 1,5",298,null,null,null,null,null,null,null,"ND 1,5","ND 1,5",null,null,1.5,0]
[0,null,"LEE FLUO 5700 K°",241,null,null,null,null,null,null,null,"LEE FLUO 5700 K°","LEE FLUO 5700 K°",null,null,1.5,0]
[0,null,"LEE FLUO 4300 K°",242,null,null,null,null,null,null,null,"LEE FLUO 4300 K°","LEE FLUO 4300 K°",null,null,1.5,0]
[0,null,"LEE FLUO 3600 K°",243,null,null,null,null,null,null,null,"LEE FLUO 3600 K°","LEE FLUO 3600 K°",null,null,1.5,0]
[0,null,"LEE FLUO GREEN",219,null,null,null,null,null,null,null,"LEE FLUO GREEN","LEE FLUO GREEN",null,null,1.5,0]
[0,null,"MINUS GREEN FULL","247/508",null,null,null,null,null,null,null,"MINUS GREEN FULL","MINUS GREEN FULL",null,null,1.5,0]
[0,null,"MINUS GREEN 1/2","248/513",null,null,null,null,null,null,null,"MINUS GREEN 1/2","MINUS GREEN 1/2",null,null,1.5,0]
[0,null,"MINUS GREEN 1/4","249/514",null,null,null,null,null,null,null,"MINUS GREEN 1/4","MINUS GREEN 1/4",null,null,1.5,0]
[0,null,"MINUS GREEN 1/8","279/518",null,null,null,null,null,null,null,"MINUS GREEN 1/8","MINUS GREEN 1/8",null,null,1.5,0]
[0,null,"PLUS GREEN FULL","244/504",null,null,null,null,null,null,null,"PLUS GREEN FULL","PLUS GREEN FULL",null,null,1.5,0]
[0,null,"PLUS GREEN 1/2","245/515",null,null,null,null,null,null,null,"PLUS GREEN 1/2","PLUS GREEN 1/2",null,null,1.5,0]
[0,null,"PLUS GREEN 1/4","246/516",null,null,null,null,null,null,null,"PLUS GREEN 1/4","PLUS GREEN 1/4",null,null,1.5,0]
[{"$f":"IF(B1615>0,\"x\",0)","v":0},null,"PLUS GREEN 1/8","278/517",null,null,null,null,null,null,null,"PLUS GREEN 1/8","PLUS GREEN 1/8",null,null,1.5,0]
[0,null,0,null,null,null,null,null,null,null,null,null,null,null,null,1.5,0]
[0,null,0,null,null,null,null,null,null,null,null,null,null,null,null,null,0]
[0,{"$f":"IF(SUM(B1619:B1648)>0,\"Marq\",0)","v":0},"DIFFUSEURS",null,{"$f":"IF(I1=\"x\",\"Sheet 1/4fts\",\"Feuille 0,35/1,22\")","v":"Feuille 0,35/1,22"},{"$f":"IF(I313=\"x\",\"Sheet\",\"Feuille\")","v":"Feuille"},null,{"$f":"IF(I1=\"x\",\"5 feet\",\"1m50\")","v":"1m50"},null,null,null,"DIFFUSEURS","DIFFUSION"]
[0,null,"WHITE DIFFUSION GRANDE LARGEUR","216GL",null,null,null,null,null,null,null,"WHITE DIFFUSION GRANDE LARGEUR","WHITE DIFFUSION HIGH WIDTH",null,null,1.5,{"$f":"P1619*B1619","v":0}]
[0,null,"WHITE DIFFUSION",216,null,null,null,null,null,null,null,"WHITE DIFFUSION","WHITE DIFFUSION",null,null,1.5,0]
[0,null,"WHITE DIFFUSION 1/2",250,null,null,null,null,null,null,null,"WHITE DIFFUSION 1/2","WHITE DIFFUSION 1/2",null,null,1.5,0]
[0,null,"WHITE DIFFUSION 1/4",251,null,null,null,null,null,null,null,"WHITE DIFFUSION 1/4","WHITE DIFFUSION 1/4",null,null,1.5,0]
[0,null,"WHITE DIFFUSION 1/8",252,null,null,null,null,null,null,null,"WHITE DIFFUSION 1/8","WHITE DIFFUSION 1/8",null,null,1.5,0]
[0,null,"HIGHLIGHT",3014,null,null,null,null,null,null,null,"HIGHLIGHT","HIGHLIGHT",null,null,1.5,0]
[0,null,"1/2 HIGHLIGHT",3015,null,null,null,null,null,null,null,"1/2 HIGHLIGHT","1/2 HIGHLIGHT",null,null,1.5,0]
[0,null,"HAMPSHIRE FROST",253,null,null,null,null,null,null,null,"HAMPSHIRE FROST","HAMPSHIRE FROST",null,null,1.5,0]
[0,null,"HOLLYWOOD FROST",255,null,null,null,null,null,null,null,"HOLLYWOOD FROST","HOLLYWOOD FROST",null,null,1.5,0]
[0,null,"HAMPSHIRE FROST 1/2",256,null,null,null,null,null,null,null,"HAMPSHIRE FROST 1/2","HAMPSHIRE FROST 1/2",null,null,1.5,0]
[0,null,"HAMPSHIRE FROST 1/4",257,null,null,null,null,null,null,null,"HAMPSHIRE FROST 1/4","HAMPSHIRE FROST 1/4",null,null,1.5,0]
[0,null,"HAMPSHIRE FROST 1/8",258,null,null,null,null,null,null,null,"HAMPSHIRE FROST 1/8","HAMPSHIRE FROST 1/8",null,null,1.5,0]
[0,null,"BRUSHED SILK",228,null,null,null,null,null,null,null,"BRUSHED SILK","BRUSHED SILK",null,null,1.5,0]
[0,null,"OPAL TOUGH FROST","410/310",null,null,null,null,null,null,null,"OPAL TOUGH FROST","OPAL TOUGH FROST",null,null,1.5,0]
[0,null,"LIGHT OPAL FROST","420/309",null,null,null,null,null,null,null,"LIGHT OPAL FROST","LIGHT OPAL FROST",null,null,1.5,0]
[0,null,"FULL ROLLUX",300,null,null,null,null,null,null,null,"FULL ROLLUX","FULL ROLLUX",null,null,1.5,0]
[0,null,"ROLLUX 1/2",301,null,null,null,null,null,null,null,"ROLLUX 1/2","ROLLUX 1/2",null,null,1.5,0]
[0,null,"SOFT FROST",302,null,null,null,null,null,null,null,"SOFT FROST","SOFT FROST",null,null,1.5,0]
[0,null,"1/2 SOFT FROST",304,null,null,null,null,null,null,null,"1/2 SOFT FROST","1/2 SOFT FROST",null,null,1.5,0]
[0,null,"GRID CLOTH","430/330",null,null,null,null,null,null,null,"GRID CLOTH","GRID CLOTH",null,null,1.5,0]
[0,null,{"$f":"IF($I$1=\"x\",M1639,L1639)","v":"LIGHT GRID CLOTH"},"432/332D",null,null,null,null,null,null,null,"LIGHT GRID CLOTH","LIGHT GRID CLOTH",null,null,1.5,0]
[0,null,"FULL TOUGH SPUN",214,null,null,null,null,null,null,null,"FULL TOUGH SPUN","FULL TOUGH SPUN",null,null,1.5,0]
[0,null,"1/2 TOUGH SPUN",215,null,null,null,null,null,null,null,"1/2 TOUGH SPUN","1/2 TOUGH SPUN",null,null,1.5,0]
[0,null,"1/4 TOUGH SPUN",229,null,null,null,null,null,null,null,"1/4 TOUGH SPUN","1/4 TOUGH SPUN",null,null,1.5,0]
[0,null,"SILENT FROST",329,null,null,null,null,null,null,null,"SILENT FROST","SILENT FROST",null,null,1.5,0]
[0,null,"HEAVY FROST",129,null,null,null,null,null,null,null,"HEAVY FROST","HEAVY FROST",null,null,1.5,0]
[0,null,"WHITE FROST",220,null,null,null,null,null,null,null,"WHITE FROST","WHITE FROST",null,null,1.5,0]
[0,null,"BLUE FROST",221,null,null,null,null,null,null,null,"BLUE FROST","BLUE FROST",null,null,1.5,0]
[0,null,"BLEU DIFFUSION",217,null,null,null,null,null,null,null,"BLEU DIFFUSION","BLUE DIFFUSION",null,null,1.5,0]
[0,null,"LEE LUX",400,null,null,null,null,null,null,null,"LEE LUX","LEE LUX",null,null,null,0]
[0,{"$f":"IF(SUM(B1650:B1654)>0,\"Marq\",0)","v":0},"ULTRA VIOLET",null,{"$f":"IF(I1=\"x\",\"Sheet 1/4fts\",\"Feuille 0,35/1,22\")","v":"Feuille 0,35/1,22"},{"$f":"IF(I242=\"x\",\"Sheet\",\"Feuille\")","v":"Feuille"},null,{"$f":"IF(I1=\"x\",\"5 feet\",\"1m50\")","v":"1m50"},null,null,null,"ULTRA VIOLET","ULTRA VIOLET"]
[0,null,"LEE UV",226,null,null,null,null,null,null,null,"LEE UV","LEE UV",null,null,1.5,{"$f":"P1650*B1650","v":0}]
[0,null,"SUPER HEAT SHIELD","LEE-ROSCO",null,null,null,null,null,null,null,"SUPER HEAT SHIELD","SUPER HEAT SHIELD",null,null,1.5,{"$f":"P1651*B1651","v":0}]
[0,null,"ROULEAU 7,62 X 0,61 M",null,null,null,null,null,null,null,null,"ROULEAU 7,62 X 0,61 M","SCROLL 7,62 X 0,61 M",null,null,1.5,{"$f":"P1652*B1652","v":0}]
[0,null,"FEUILLE 1 X 0,61 M",null,null,null,null,null,null,null,null,"FEUILLE 1 X 0,61 M","SHEET 1 X 0,61 M",null,null,1.5,{"$f":"P1653*B1653","v":0}]
[0,null,"POLARISANTE 1,27 X 0,48 M",239,null,null,null,null,null,null,null,"POLARISANTE 1,27 X 0,48 M","POLARISING 1,27 X 0,48 M",null,null,1.5,{"$f":"P1654*B1654","v":0}]
[0,{"$f":"IF(SUM(B1656:B1662)>0,\"Marq\",0)","v":0},"REFLECTEURS",null,{"$f":"IF(I1=\"x\",\"Sheet 1/4fts\",\"Feuille 0,35/1,22\")","v":"Feuille 0,35/1,22"},{"$f":"IF(I249=\"x\",\"Sheet\",\"Feuille\")","v":"Feuille"},null,{"$f":"IF(I1=\"x\",\"5 feet\",\"1m50\")","v":"1m50"},null,null,null,"REFLECTEURS","REFLECTORS"]
[0,null,"BLACK SCRIM",269,null,null,null,null,null,null,null,"BLACK SCRIM","BLACK SCRIM",null,null,1.5,{"$f":"P1656*B1656","v":0}]
[0,null,"LEE SCRIM",270,null,null,null,null,null,null,null,"LEE SCRIM","LEE SCRIM",null,null,1.5,0]
[0,null,"MIRROR SILVER",271,null,null,null,null,null,null,null,"MIRROR SILVER","MIRROR SILVER",null,null,1.5,0]
[0,null,"REFLECTEUR H","271A",null,null,null,null,null,null,null,"REFLECTEUR H","REFLECTOR H",null,null,1.5,0]
[0,null,"SOFT GOLD REFLECTEUR",272,null,null,null,null,null,null,null,"SOFT GOLD REFLECTEUR","SOFT GOLD REFLECTOR",null,null,1.5,0]
[0,null,"SOFT SILVER REFLECTEUR",273,null,null,null,null,null,null,null,"SOFT SILVER REFLECTEUR","SOFT SILVER REFLECTOR",null,null,1.5,0]
[0,null,"MIRROR GOLD",274,null,null,null,null,null,null,null,"MIRROR GOLD","MIRROR GOLD",null,null,1.5,0]
[0,{"$f":"IF(SUM(B1664:B1796)>0,\"Marq\",0)","v":0},"GELATINE COLOREES",null,{"$f":"IF(I1=\"x\",\"Sheet 1/4fts\",\"Feuille 0,35/1,22\")","v":"Feuille 0,35/1,22"},{"$f":"IF(I258=\"x\",\"Sheet\",\"Feuille\")","v":"Feuille"},null,{"$f":"IF(I1=\"x\",\"5 feet\",\"1m50\")","v":"1m50"},null,null,null,"GELATINE COLOREES","COLOR GELS"]
[0,null,"ROSE PINK",2,null,null,null,null,null,null,null,"ROSE PINK","ROSE PINK",null,null,1.5,{"$f":"P1664*B1664","v":0}]
[0,null,"LAVENDER",3,null,null,null,null,null,null,null,"LAVENDER","LAVENDER",null,null,1.5,0]
[0,null,"MEDIUM BASTARD AMBER",4,null,null,null,null,null,null,null,"MEDIUM BASTARD AMBER","MEDIUM BASTARD AMBER",null,null,1.5,0]
[0,null,"PALE YELLOW",7,null,null,null,null,null,null,null,"PALE YELLOW","PALE YELLOW",null,null,1.5,0]
[0,null,"DARK SALMON",8,null,null,null,null,null,null,null,"DARK SALMON","DARK SALMON",null,null,1.5,0]
[0,null,"PALE AMBER GOLD",9,null,null,null,null,null,null,null,"PALE AMBER GOLD","PALE AMBER GOLD",null,null,1.5,0]
[0,null,"MEDIUM YELLOW",10,null,null,null,null,null,null,null,"MEDIUM YELLOW","MEDIUM YELLOW",null,null,1.5,0]
[0,null,"STRAW TINT",13,null,null,null,null,null,null,null,"STRAW TINT","STRAW TINT",null,null,1.5,0]
[0,null,"DEEP STRAW",15,null,null,null,null,null,null,null,"DEEP STRAW","DEEP STRAW",null,null,1.5,0]
[0,null,"SURPRISE PEACH",17,null,null,null,null,null,null,null,"SURPRISE PEACH","SURPRISE PEACH",null,null,1.5,0]
[0,null,"FIRE",19,null,null,null,null,null,null,null,"FIRE","FIRE",null,null,1.5,0]
[0,null,"MEDIUM AMBER",20,null,null,null,null,null,null,null,"MEDIUM AMBER","MEDIUM AMBER",null,null,1.5,0]
[0,null,"GOLD AMBER",21,null,null,null,null,null,null,null,"GOLD AMBER","GOLD AMBER",null,null,1.5,0]
[0,null,"DARK AMBER",22,null,null,null,null,null,null,null,"DARK AMBER","DARK AMBER",null,null,1.5,0]
[0,null,"SCARLET",24,null,null,null,null,null,null,null,"SCARLET","SCARLET",null,null,1.5,0]
[{"$f":"IF(B1679>0,\"x\",0)","v":0},null,"SUNSET RED",25,null,null,null,null,null,null,null,"SUNSET RED","SUNSET RED",null,null,1.5,0]
[0,null,"BRIGHT RED",26,null,null,null,null,null,null,null,"BRIGHT RED","BRIGHT RED",null,null,1.5,0]
[0,null,"MEDIUM RED",27,null,null,null,null,null,null,null,"MEDIUM RED","MEDIUM RED",null,null,1.5,0]
[0,null,"PLASA RED",29,null,null,null,null,null,null,null,"PLASA RED","PLASA RED",null,null,1.5,0]
[0,null,"LIGHT PINK",35,null,null,null,null,null,null,null,"LIGHT PINK","LIGHT PINK",null,null,1.5,0]
[0,null,"MEDIUM PINK",36,null,null,null,null,null,null,null,"MEDIUM PINK","MEDIUM PINK",null,null,1.5,0]
[0,null,"PINK CARNATION",39,null,null,null,null,null,null,null,"PINK CARNATION","PINK CARNATION",null,null,1.5,0]
[0,null,"DARK MAGENTA",46,null,null,null,null,null,null,null,"DARK MAGENTA","DARK MAGENTA",null,null,1.5,0]
[0,null,"ROSE PURPLE",48,null,null,null,null,null,null,null,"ROSE PURPLE","ROSE PURPLE",null,null,1.5,0]
[0,null,"LIGHT LAVENDER",52,null,null,null,null,null,null,null,"LIGHT LAVENDER","LIGHT LAVENDER",null,null,1.5,0]
[0,null,"PALE LAVENDER",53,null,null,null,null,null,null,null,"PALE LAVENDER","PALE LAVENDER",null,null,1.5,0]
[0,null,"LAVENDER",58,null,null,null,null,null,null,null,"LAVENDER","LAVENDER",null,null,1.5,0]
[0,null,"MIST BLUE",61,null,null,null,null,null,null,null,"MIST BLUE","MIST BLUE",null,null,1.5,0]
[0,null,"PALE BLUE",63,null,null,null,null,null,null,null,"PALE BLUE","PALE BLUE",null,null,1.5,0]
[0,null,"SKY BLUE",68,null,null,null,null,null,null,null,"SKY BLUE","SKY BLUE",null,null,1.5,0]
[0,null,"TOKYO BLUE",71,null,null,null,null,null,null,null,"TOKYO BLUE","TOKYO BLUE",null,null,1.5,0]
[0,null,"EVENING BLUE",75,null,null,null,null,null,null,null,"EVENING BLUE","EVENING BLUE",null,null,1.5,0]
[0,null,"JUST BLUE",79,null,null,null,null,null,null,null,"JUST BLUE","JUST BLUE",null,null,1.5,{"$f":"P1696*B1696","v":0}]
[0,null,"DEEPER BLUE",85,null,null,null,null,null,null,null,"DEEPER BLUE","DEEPER BLUE",null,null,1.5,0]
[0,null,"LIME GREEN",88,null,null,null,null,null,null,null,"LIME GREEN","LIME GREEN",null,null,1.5,0]
[0,null,"MOSS GREEN",89,null,null,null,null,null,null,null,"MOSS GREEN","MOSS GREEN",null,null,1.5,0]
[0,null,"DARK YELLOW GREEN",90,null,null,null,null,null,null,null,"DARK YELLOW GREEN","DARK YELLOW GREEN",null,null,1.5,0]
[0,null,"SPRING YELLOW",100,null,null,null,null,null,null,null,"SPRING YELLOW","SPRING YELLOW",null,null,1.5,0]
[0,null,"YELLOW",101,null,null,null,null,null,null,null,"YELLOW","YELLOW",null,null,1.5,0]
[0,null,{"$f":"IF($I$1=\"x\",M1703,L1703)","v":"LIGHT AMBER"},102,null,null,null,null,null,null,null,"LIGHT AMBER","LIGHT AMBER",null,null,1.5,0]
[0,null,"STRAW ",103,null,null,null,null,null,null,null,"STRAW ","STRAW ",null,null,1.5,0]
[0,null,"DEEP AMBER",104,null,null,null,null,null,null,null,"DEEP AMBER","DEEP AMBER",null,null,1.5,0]
[0,null,"ORANGE",105,null,null,null,null,null,null,null,"ORANGE","ORANGE",null,null,1.5,0]
[0,null,"PRIMARY RED",106,null,null,null,null,null,null,null,"PRIMARY RED","PRIMARY RED",null,null,1.5,0]
[0,null,"LIGHT ROSE",107,null,null,null,null,null,null,null,"LIGHT ROSE","LIGHT ROSE",null,null,1.5,0]
[0,null,"ENGLISH ROSE",108,null,null,null,null,null,null,null,"ENGLISH ROSE","ENGLISH ROSE",null,null,1.5,0]
[0,null,"LIGHT SALMON",109,null,null,null,null,null,null,null,"LIGHT SALMON","LIGHT SALMON",null,null,1.5,0]
[0,null,"MIDDLE ROSE",110,null,null,null,null,null,null,null,"MIDDLE ROSE","MIDDLE ROSE",null,null,1.5,0]
[0,null,"DARK PINK",111,null,null,null,null,null,null,null,"DARK PINK","DARK PINK",null,null,1.5,0]
[0,null,"MAGENTA",113,null,null,null,null,null,null,null,"MAGENTA","MAGENTA",null,null,1.5,0]
[0,null,"PEACOCK BLUE",115,null,null,null,null,null,null,null,"PEACOCK BLUE","PEACOCK BLUE",null,null,1.5,0]
[0,null,"MEDIUM BLUE GREEN ",116,null,null,null,null,null,null,null,"MEDIUM BLUE GREEN ","MEDIUM BLUE GREEN ",null,null,1.5,0]
[0,null,"STEEL BLUE",117,null,null,null,null,null,null,null,"STEEL BLUE","STEEL BLUE",null,null,1.5,0]
[0,null,"LIGHT BLUE",118,null,null,null,null,null,null,null,"LIGHT BLUE","LIGHT BLUE",null,null,1.5,0]
[0,null,"DARK BLUE",119,null,null,null,null,null,null,null,"DARK BLUE","DARK BLUE",null,null,1.5,0]
[0,null,"DEEP BLUE",120,null,null,null,null,null,null,null,"DEEP BLUE","DEEP BLUE",null,null,1.5,0]
[0,null,"LEE GREEN",121,null,null,null,null,null,null,null,"LEE GREEN","LEE GREEN",null,null,1.5,0]
[0,null,"FERN GREEN",122,null,null,null,null,null,null,null,"FERN GREEN","FERN GREEN",null,null,1.5,0]
[0,null,"DARK GREEN",124,null,null,null,null,null,null,null,"DARK GREEN","DARK GREEN",null,null,1.5,0]
[0,null,"MAUVE",126,null,null,null,null,null,null,null,"MAUVE","MAUVE",null,null,1.5,0]
[0,null,"SMOKEY PINK",127,null,null,null,null,null,null,null,"SMOKEY PINK","SMOKEY PINK",null,null,1.5,0]
[0,null,"BRIGHT PINK",128,null,null,null,null,null,null,null,"BRIGHT PINK","BRIGHT PINK",null,null,1.5,0]
[0,null,"CLEAR",130,null,null,null,null,null,null,null,"CLEAR","CLEAR",null,null,1.5,0]
[0,null,"MARINE BLUE",131,null,null,null,null,null,null,null,"MARINE BLUE","MARINE BLUE",null,null,1.5,0]
[0,null,"MEDIUM BLUE",132,null,null,null,null,null,null,null,"MEDIUM BLUE","MEDIUM BLUE",null,null,1.5,{"$f":"P1728*B1728","v":0}]
[0,null,"GOLDEN AMBER",134,null,null,null,null,null,null,null,"GOLDEN AMBER","GOLDEN AMBER",null,null,1.5,0]
[0,null,"DEEP GOLDEN AMBER",135,null,null,null,null,null,null,null,"DEEP GOLDEN AMBER","DEEP GOLDEN AMBER",null,null,1.5,0]
[0,null,"PALE LAVENDER",136,null,null,null,null,null,null,null,"PALE LAVENDER","PALE LAVENDER",null,null,1.5,0]
[0,null,"SPECIAL LAVENDER",137,null,null,null,null,null,null,null,"SPECIAL LAVENDER","SPECIAL LAVENDER",null,null,1.5,0]
[0,null,"PALE GREEN",138,null,null,null,null,null,null,null,"PALE GREEN","PALE GREEN",null,null,1.5,0]
[0,null,"PRIMARY GREEN",139,null,null,null,null,null,null,null,"PRIMARY GREEN","PRIMARY GREEN",null,null,1.5,0]
[0,null,"SUMMER BLUE",140,null,null,null,null,null,null,null,"SUMMER BLUE","SUMMER BLUE",null,null,1.5,0]
[0,null,"BRIGHT BLUE",141,null,null,null,null,null,null,null,"BRIGHT BLUE","BRIGHT BLUE",null,null,1.5,0]
[0,null,"PALE VIOLET",142,null,null,null,null,null,null,null,"PALE VIOLET","PALE VIOLET",null,null,1.5,0]
[0,null,"PALE NAVY BLUE",143,null,null,null,null,null,null,null,"PALE NAVY BLUE","PALE NAVY BLUE",null,null,1.5,0]
[0,null,"NO COLOUR BLUE",144,null,null,null,null,null,null,null,"NO COLOUR BLUE","NO COLOUR BLUE",null,null,1.5,0]
[0,null,"APRICOT",147,null,null,null,null,null,null,null,"APRICOT","APRICOT",null,null,1.5,0]
[0,null,"BRIGHT ROSE",148,null,null,null,null,null,null,null,"BRIGHT ROSE","BRIGHT ROSE",null,null,1.5,0]
[0,null,"GOLD TINT",151,null,null,null,null,null,null,null,"GOLD TINT","GOLD TINT",null,null,1.5,0]
[{"$f":"IF(B1743>0,\"x\",0)","v":0},null,"PALE GOLD",152,null,null,null,null,null,null,null,"PALE GOLD","PALE GOLD",null,null,1.5,0]
[0,null,"PALE SALMON",153,null,null,null,null,null,null,null,"PALE SALMON","PALE SALMON",null,null,1.5,0]
[0,null,"PALE ROSE",154,null,null,null,null,null,null,null,"PALE ROSE","PALE ROSE",null,null,1.5,0]
[0,null,"CHOCOLATE",156,null,null,null,null,null,null,null,"CHOCOLATE","CHOCOLATE",null,null,1.5,0]
[0,null,"PINK",157,null,null,null,null,null,null,null,"PINK","PINK",null,null,1.5,0]
[0,null,"DEEP ORANGE",158,null,null,null,null,null,null,null,"DEEP ORANGE","DEEP ORANGE",null,null,1.5,0]
[0,null,"NO COLOUR STRAW",159,null,null,null,null,null,null,null,"NO COLOUR STRAW","NO COLOUR STRAW",null,null,1.5,0]
[0,null,"SLATE BLUE",161,null,null,null,null,null,null,null,"SLATE BLUE","SLATE BLUE",null,null,1.5,0]
[0,null,"BASTARD AMBER",162,null,null,null,null,null,null,null,"BASTARD AMBER","BASTARD AMBER",null,null,1.5,0]
[0,null,"FLAME RED",164,null,null,null,null,null,null,null,"FLAME RED","FLAME RED",null,null,1.5,0]
[0,null,"DAYLIGHT BLUE",165,null,null,null,null,null,null,null,"DAYLIGHT BLUE","DAYLIGHT BLUE",null,null,1.5,0]
[0,null,"PALE RED",166,null,null,null,null,null,null,null,"PALE RED","PALE RED",null,null,1.5,0]
[0,null,"LILAC TINT",169,null,null,null,null,null,null,null,"LILAC TINT","LILAC TINT",null,null,1.5,0]
[0,null,"DEEP LAVENDER",170,null,null,null,null,null,null,null,"DEEP LAVENDER","DEEP LAVENDER",null,null,1.5,0]
[0,null,"LAGOON BLUE",172,null,null,null,null,null,null,null,"LAGOON BLUE","LAGOON BLUE",null,null,1.5,0]
[0,null,"DARK STEEL BLUE",174,null,null,null,null,null,null,null,"DARK STEEL BLUE","DARK STEEL BLUE",null,null,1.5,0]
[0,null,"LOVING AMBER",176,null,null,null,null,null,null,null,"LOVING AMBER","LOVING AMBER",null,null,1.5,0]
[0,null,"CHROME ORANGE",179,null,null,null,null,null,null,null,"CHROME ORANGE","CHROME ORANGE",null,null,1.5,{"$f":"P1760*B1760","v":0}]
[0,null,"DARK LAVENDER",180,null,null,null,null,null,null,null,"DARK LAVENDER","DARK LAVENDER",null,null,1.5,0]
[0,null,"CONGO BLUE",181,null,null,null,null,null,null,null,"CONGO BLUE","CONGO BLUE",null,null,1.5,0]
[0,null,"LIGHT RED",182,null,null,null,null,null,null,null,"LIGHT RED","LIGHT RED",null,null,1.5,0]
[0,null,"MOONLIGHT BLUE",183,null,null,null,null,null,null,null,"MOONLIGHT BLUE","MOONLIGHT BLUE",null,null,1.5,0]
[0,null,"COSMETIC PEACH",184,null,null,null,null,null,null,null,"COSMETIC PEACH","COSMETIC PEACH",null,null,1.5,0]
[0,null,"COSMETIC BURGUNDY",185,null,null,null,null,null,null,null,"COSMETIC BURGUNDY","COSMETIC BURGUNDY",null,null,1.5,0]
[0,null,{"$f":"IF($I$1=\"x\",M1767,L1767)","v":"COSMETIC SILVER ROSE"},186,null,null,null,null,null,null,null,"COSMETIC SILVER ROSE","COSMETIC SILVER ROSE",null,null,1.5,0]
[0,null,"COSMETIC ROUGE",187,null,null,null,null,null,null,null,"COSMETIC ROUGE","COSMETIC RED",null,null,1.5,0]
[0,null,"COSMETIC HIGHLIGHT",188,null,null,null,null,null,null,null,"COSMETIC HIGHLIGHT","COSMETIC HIGHLIGHT",null,null,1.5,0]
[0,null,"COSMETIC SILVER MOSS",189,null,null,null,null,null,null,null,"COSMETIC SILVER MOSS","COSMETIC SILVER MOSS",null,null,1.5,0]
[0,null,"COSMETIC EMERALD",190,null,null,null,null,null,null,null,"COSMETIC EMERALD","COSMETIC EMERALD",null,null,1.5,0]
[0,null,"COSMETIC AQUA BLUE",191,null,null,null,null,null,null,null,"COSMETIC AQUA BLUE","COSMETIC AQUA BLUE",null,null,1.5,0]
[0,null,"FLESH PINK ",192,null,null,null,null,null,null,null,"FLESH PINK ","FLESH PINK ",null,null,1.5,0]
[0,null,"ROSY AMBER",193,null,null,null,null,null,null,null,"ROSY AMBER","ROSY AMBER",null,null,1.5,0]
[0,null,"SURPRISE PINK",194,null,null,null,null,null,null,null,"SURPRISE PINK","SURPRISE PINK",null,null,1.5,0]
[0,null,"ZENITH BLUE",195,null,null,null,null,null,null,null,"ZENITH BLUE","ZENITH BLUE",null,null,1.5,0]
[0,null,"TRUE BLUE",196,null,null,null,null,null,null,null,"TRUE BLUE","TRUE BLUE",null,null,1.5,0]
[0,null,"ALICE BLUE",197,null,null,null,null,null,null,null,"ALICE BLUE","ALICE BLUE",null,null,1.5,0]
[0,null,"PALACE BLUE",198,null,null,null,null,null,null,null,"PALACE BLUE","PALACE BLUE",null,null,1.5,0]
[0,null,"HAMBURG FROST",254,null,null,null,null,null,null,null,"HAMBURG FROST","HAMBURG FROST",null,null,1.5,0]
[0,null,"SOFT GREEN",322,null,null,null,null,null,null,null,"SOFT GREEN","SOFT GREEN",null,null,1.5,0]
[0,null,"JADE",323,null,null,null,null,null,null,null,"JADE","JADE",null,null,1.5,0]
[0,null,"MALLARD GREEN",325,null,null,null,null,null,null,null,"MALLARD GREEN","MALLARD GREEN",null,null,1.5,0]
[0,null,"FOREST GREEN",327,null,null,null,null,null,null,null,"FOREST GREEN","FOREST GREEN",null,null,1.5,0]
[0,null,"FOLLIES PINK",328,null,null,null,null,null,null,null,"FOLLIES PINK","FOLLIES PINK",null,null,1.5,0]
[0,null,"SPECIAL ROSE PINK",332,null,null,null,null,null,null,null,"SPECIAL ROSE PINK","SPECIAL ROSE PINK",null,null,1.5,0]
[0,null,"PLUM",341,null,null,null,null,null,null,null,"PLUM","PLUM",null,null,1.5,0]
[0,null,"SPECIAL MEDIUM LAVENDER",343,null,null,null,null,null,null,null,"SPECIAL MEDIUM LAVENDER","SPECIAL MEDIUM LAVENDER",null,null,1.5,0]
[0,null,"VIOLET",344,null,null,null,null,null,null,null,"VIOLET","VIOLET",null,null,1.5,0]
[0,null,"FUSCHIA PINK",345,null,null,null,null,null,null,null,"FUSCHIA PINK","FUSCHIA PINK",null,null,1.5,0]
[0,null,"GLACIER BLUE",352,null,null,null,null,null,null,null,"GLACIER BLUE","GLACIER BLUE",null,null,1.5,0]
[0,null,"LIGHTER BLUE",363,null,null,null,null,null,null,null,"LIGHTER BLUE","LIGHTER BLUE",null,null,1.5,{"$f":"P1792*B1792","v":0}]
[0,null,"SPECIAL STEEL BLUE",354,null,null,null,null,null,null,null,"SPECIAL STEEL BLUE","SPECIAL STEEL BLUE",null,null,1.5,{"$f":"P1793*B1793","v":0}]
[0,null,"SPECIAL MEDIUM",363,null,null,null,null,null,null,null,"SPECIAL MEDIUM","SPECIAL MEDIUM",null,null,1.5,{"$f":"P1794*B1794","v":0}]
[0,null,"CORNFLOWER",366,null,null,null,null,null,null,null,"CORNFLOWER","CORNFLOWER",null,null,1.5,{"$f":"P1795*B1795","v":0}]
[0,null,"30  CYAN","rosco4330",null,null,null,null,null,null,null,"30  CYAN","30  CYAN",null,null,1.5,{"$f":"P1796*B1796","v":0}]
[0,{"$f":"IF(SUM(B1798:B1841)>0,\"Marq\",0)","v":0},"HAUTE TEMPERATURE",null,{"$f":"IF(I1=\"x\",\"Sheet 1/4fts\",\"Feuille 0,35/1,22\")","v":"Feuille 0,35/1,22"},{"$f":"IF(I497=\"x\",\"Sheet\",\"Feuille\")","v":"Feuille"},null,{"$f":"IF(I1=\"x\",\"5 feet\",\"1m50\")","v":"1m50"},null,null,null,"HAUTE TEMPERATURE","HIGH TEMPERATURE"]
[0,null,"MEDIUM BASTARD AMBER","HT004",null,null,null,null,null,null,null,"MEDIUM BASTARD AMBER","MEDIUM BASTARD AMBER",null,null,1.5,{"$f":"P1798*B1798","v":0}]
[0,null,"PALE YELLOW","HT007",null,null,null,null,null,null,null,"PALE YELLOW","PALE YELLOW",null,null,1.5,0]
[0,null,"DARK SALMON","HT008",null,null,null,null,null,null,null,"DARK SALMON","DARK SALMON",null,null,1.5,0]
[0,null,"PALE AMBER GOLD","HT009",null,null,null,null,null,null,null,"PALE AMBER GOLD","PALE AMBER GOLD",null,null,1.5,0]
[0,null,"MEDIUM YELLOW","HT010",null,null,null,null,null,null,null,"MEDIUM YELLOW","MEDIUM YELLOW",null,null,1.5,0]
[0,null,"STRAW TINT","HT013",null,null,null,null,null,null,null,"STRAW TINT","STRAW TINT",null,null,1.5,0]
[0,null,"DEEP STRAW","HT015",null,null,null,null,null,null,null,"DEEP STRAW","DEEP STRAW",null,null,1.5,0]
[0,null,"FIRE","HT019",null,null,null,null,null,null,null,"FIRE","FIRE",null,null,1.5,0]
[0,null,"MEDIUM AMBER","HT020",null,null,null,null,null,null,null,"MEDIUM AMBER","MEDIUM AMBER",null,null,1.5,0]
[{"$f":"IF(B1807>0,\"x\",0)","v":0},null,"GOLDEN AMBER","HT021",null,null,null,null,null,null,null,"GOLDEN AMBER","GOLDEN AMBER",null,null,1.5,0]
[0,null,"DARK AMBER","HT022",null,null,null,null,null,null,null,"DARK AMBER","DARK AMBER",null,null,1.5,0]
[0,null,"SCARLET","HT024",null,null,null,null,null,null,null,"SCARLET","SCARLET",null,null,1.5,0]
[0,null,"BRIGHT RED","HT026",null,null,null,null,null,null,null,"BRIGHT RED","BRIGHT RED",null,null,1.5,0]
[0,null,"MEDIUM RED","HT027",null,null,null,null,null,null,null,"MEDIUM RED","MEDIUM RED",null,null,1.5,0]
[0,null,"LIGHT PINK","HT035",null,null,null,null,null,null,null,"LIGHT PINK","LIGHT PINK",null,null,1.5,0]
[0,null,"MEDIUM PINK","HT036",null,null,null,null,null,null,null,"MEDIUM PINK","MEDIUM PINK",null,null,1.5,0]
[0,null,"DARK MAGENTA","HT046",null,null,null,null,null,null,null,"DARK MAGENTA","DARK MAGENTA",null,null,1.5,0]
[0,null,"LIGHT LAVENDER","HT052",null,null,null,null,null,null,null,"LIGHT LAVENDER","LIGHT LAVENDER",null,null,1.5,0]
[0,null,"PALE LAVENDER","HT053",null,null,null,null,null,null,null,"PALE LAVENDER","PALE LAVENDER",null,null,1.5,0]
[0,null,"LAVENDER","HT058",null,null,null,null,null,null,null,"LAVENDER","LAVENDER",null,null,1.5,0]
[0,null,"MIST BLUE","HT061",null,null,null,null,null,null,null,"MIST BLUE","MIST BLUE",null,null,1.5,0]
[0,null,"PALE BLUE","HT063",null,null,null,null,null,null,null,"PALE BLUE","PALE BLUE",null,null,1.5,0]
[0,null,"JUST BLUE","HT079",null,null,null,null,null,null,null,"JUST BLUE","JUST BLUE",null,null,1.5,0]
[0,null,"DEEPER BLUE","HT085",null,null,null,null,null,null,null,"DEEPER BLUE","DEEPER BLUE",null,null,1.5,0]
[0,null,"MOSS GREEN","HT089",null,null,null,null,null,null,null,"MOSS GREEN","MOSS GREEN",null,null,1.5,0]
[0,null,"DARK YELLOW GREEN","HT090",null,null,null,null,null,null,null,"DARK YELLOW GREEN","DARK YELLOW GREEN",null,null,1.5,0]
[0,null,"PEACOCK BLUE","HT115",null,null,null,null,null,null,null,"PEACOCK BLUE","PEACOCK BLUE",null,null,1.5,0]
[0,null,"MEDIUM BLUE GREEN","HT116",null,null,null,null,null,null,null,"MEDIUM BLUE GREEN","MEDIUM BLUE GREEN",null,null,1.5,0]
[0,null,"LIGHT BLUE","HT118",null,null,null,null,null,null,null,"LIGHT BLUE","LIGHT BLUE",null,null,1.5,0]
[0,null,"DARK BLUE","HT119",null,null,null,null,null,null,null,"DARK BLUE","DARK BLUE",null,null,1.5,0]
[0,null,"DEEP BLUE","HT120",null,null,null,null,null,null,null,"DEEP BLUE","DEEP BLUE",null,null,1.5,0]
[0,null,"LEE GREEN","HT121",null,null,null,null,null,null,null,"LEE GREEN","LEE GREEN",null,null,1.5,0]
[0,null,"FERN GREEN","HT122",null,null,null,null,null,null,null,"FERN GREEN","FERN GREEN",null,null,1.5,0]
[0,null,{"$f":"IF($I$1=\"x\",M1831,L1831)","v":"DARK GREEN"},"HT124",null,null,null,null,null,null,null,"DARK GREEN","DARK GREEN",null,null,1.5,0]
[0,null,"MEDIUM BLUE","HT132",null,null,null,null,null,null,null,"MEDIUM BLUE","MEDIUM BLUE",null,null,1.5,0]
[0,null,"PRIMARY GREEN","HT139",null,null,null,null,null,null,null,"PRIMARY GREEN","PRIMARY GREEN",null,null,1.5,0]
[0,null,"BRIGHT BLUE","HT141",null,null,null,null,null,null,null,"BRIGHT BLUE","BRIGHT BLUE",null,null,1.5,0]
[0,null,"LAGOON BLUE","HT172",null,null,null,null,null,null,null,"LAGOON BLUE","LAGOON BLUE",null,null,1.5,0]
[0,null,"CONGO BLUE","HT181",null,null,null,null,null,null,null,"CONGO BLUE","CONGO BLUE",null,null,1.5,0]
[0,null,"ZENITH BLUE","HT195",null,null,null,null,null,null,null,"ZENITH BLUE","ZENITH BLUE",null,null,1.5,0]
[0,null,"ALICE BLUE","HT197",null,null,null,null,null,null,null,"ALICE BLUE","ALICE BLUE",null,null,1.5,0]
[0,null,"HAMBURG FROST","HT254",null,null,null,null,null,null,null,"HAMBURG FROST","HAMBURG FROST",null,null,1.5,0]
[0,null,"ZENITH BLUE","HT195",null,null,null,null,null,null,null,"ZENITH BLUE","ZENITH BLUE",null,null,1.5,0]
[0,null,"SPECIAL MEDIUM BLUE","HT 363",null,null,null,null,null,null,null,"SPECIAL MEDIUM BLUE","SPECIAL MEDIUM BLUE",null,null,1.5,0]
[0,{"$f":"IF(SUM(B1843:B1855)>0,\"Marq\",0)","v":0},"SERIE 700",null,{"$f":"IF(I1=\"x\",\"Sheet 1/4fts\",\"Feuille 0,35/1,22\")","v":"Feuille 0,35/1,22"},{"$f":"IF(I600=\"x\",\"Sheet\",\"Feuille\")","v":"Feuille"},null,{"$f":"IF(I1=\"x\",\"5 feet\",\"1m50\")","v":"1m50"},null,null,null,"SERIE 700","SERIE 700"]
[0,null,"COLD BLUE",711,null,null,null,null,null,null,null,"COLD BLUE","COLD BLUE",null,null,1.5,{"$f":"P1843*B1843","v":0}]
[0,null,"COLOUR WASH BLUE",719,null,null,null,null,null,null,null,"COLOUR WASH BLUE","COLOUR WASH BLUE",null,null,1.5,0]
[0,null,"OCEAN BLUE",724,null,null,null,null,null,null,null,"OCEAN BLUE","OCEAN BLUE",null,null,1.5,0]
[0,null,"OLD STEEL BLUE",725,null,null,null,null,null,null,null,"OLD STEEL BLUE","OLD STEEL BLUE",null,null,1.5,0]
[0,null,"STEEL GREEN",728,null,null,null,null,null,null,null,"STEEL GREEN","STEEL GREEN",null,null,1.5,0]
[0,null,"VELVET GREEN",735,null,null,null,null,null,null,null,"VELVET GREEN","VELVET GREEN",null,null,1.5,0]
[0,null,"BROWN",746,null,null,null,null,null,null,null,"BROWN","BROWN",null,null,1.5,0]
[0,null,"WHEAT",763,null,null,null,null,null,null,null,"WHEAT","WHEAT",null,null,1.5,0]
[0,null,"SUN COLOUR STRAW",764,null,null,null,null,null,null,null,"SUN COLOUR STRAW","SUN COLOUR STRAW",null,null,1.5,0]
[0,null,"NECTARINE",776,null,null,null,null,null,null,null,"NECTARINE","NECTARINE",null,null,1.5,0]
[0,null,"RUST",777,null,null,null,null,null,null,null,"RUST","RUST",null,null,1.5,0]
[0,null,"BASTARD PINK",779,null,null,null,null,null,null,null,"BASTARD PINK","BASTARD PINK",null,null,1.5,0]
[0,null,"BLOOD RED",789,null,null,null,null,null,null,null,"BLOOD RED","BLOOD RED",null,null,1.5,0]
[0,{"$f":"IF(SUM(B1857:B1868)>0,\"Marq\",0)","v":0},"LAMPES MSR",null,null,null,null,null,null,null,null,"LAMPES MSR","BULBS MSR"]
[0,null,"MSR 18 KW",null,null,null,null,null,null,null,null,"MSR 18 KW","MSR 18 KW",null,null,null,{"$f":"P1857*B1857","v":0}]
[0,null,"MSR 12 KW",null,null,null,null,null,null,null,null,"MSR 12 KW","MSR 12 KW",null,null,null,0]
[0,null,"MSR 6 KW",null,null,null,null,null,null,null,null,"MSR 6 KW","MSR 6 KW",null,null,null,0]
[0,null,"MSR 4 KW",null,null,null,null,null,null,null,null,"MSR 4 KW","MSR 4 KW",null,null,null,0]
[0,null,"MSR 2500 W",null,null,null,null,null,null,null,null,"MSR 2500 W","MSR 2500 W",null,null,null,0]
[0,null,"MSR 1200 W",null,null,null,null,null,null,null,null,"MSR 1200 W","MSR 1200 W",null,null,null,0]
[0,null,"MSR 800W HR",null,null,null,null,null,null,null,null,"MSR 800W HR","MSR 800W HR"]
[0,null,"MSR 575 W",null,null,null,null,null,null,null,null,"MSR 575 W","MSR 575 W",null,null,null,{"$f":"P1864*B1864","v":0}]
[0,null,"MSR 400 W HR",null,null,null,null,null,null,null,null,"MSR 400 W HR","MSR 400 W HR",null,null,null,{"$f":"P1865*B1865","v":0}]
[0,null,"MSR 200 W HR",null,null,null,null,null,null,null,null,"MSR 200 W HR","MSR 200 W HR",null,null,null,{"$f":"P1866*B1866","v":0}]
[0,null,"MSR 125 W",null,null,null,null,null,null,null,null,"MSR 125 W","MSR 125 W",null,null,null,{"$f":"P1867*B1867","v":0}]
[0,null,"MSR 1200 HR-JOKER",null,null,null,null,null,null,null,null,"MSR 1200 HR-JOKER","MSR 1200 HR-JOKER",null,null,null,{"$f":"P1868*B1868","v":0}]
[0,{"$f":"IF(SUM(B1870:B1878)>0,\"Marq\",0)","v":0},"LAMPES HMI DOUBLE CULOT",null,null,null,null,null,null,null,null,"LAMPES HMI DOUBLE CULOT","BULBS HMI DOUBLE CULOT"]
[0,null,"HMI 18 KW",null,null,null,null,null,null,null,null,"HMI 18 KW","HMI 18 KW",null,null,null,{"$f":"P1870*B1870","v":0}]
[{"$f":"IF(B1871>0,\"x\",0)","v":0},null,"HMI 12 KW",null,null,null,null,null,null,null,null,"HMI 12 KW","HMI 12 KW",null,null,null,0]
[0,null,"HMI 6 KW",null,null,null,null,null,null,null,null,"HMI 6 KW","HMI 6 KW",null,null,null,0]
[0,null,"HMI 4 KW",null,null,null,null,null,null,null,null,"HMI 4 KW","HMI 4 KW",null,null,null,0]
[0,null,"HMI 2500 W",null,null,null,null,null,null,null,null,"HMI 2500 W","HMI 2500 W",null,null,null,0]
[0,null,"HMI 1200 W",null,null,null,null,null,null,null,null,"HMI 1200 W","HMI 1200 W",null,null,null,0]
[0,null,"HMI 575 W",null,null,null,null,null,null,null,null,"HMI 575 W","HMI 575 W",null,null,null,0]
[0,null,"HMI 400W",null,null,null,null,null,null,null,null,"HMI 400W","HMI 400W"]
[0,null,"HMI 200 W",null,null,null,null,null,null,null,null,"HMI 200 W","HMI 200 W",null,null,null,{"$f":"P1878*B1878","v":0}]
[0,null,0]
[0,{"$f":"IF(SUM(B1881:B1884)>0,\"Marq\",0)","v":0},"LAMPES XENON",null,null,null,null,null,null,null,null,"LAMPES XENON","BULBS XENON"]
[0,null,"AF 1000",null,null,null,null,null,null,null,null,"AF 1000","AF 1000",null,null,null,{"$f":"P1881*B1881","v":0}]
[0,null,"XENON 7 KW",null,null,null,null,null,null,null,null,"XENON 7 KW","XENON 7 KW",null,null,null,{"$f":"P1882*B1882","v":0}]
[0,null,"XENON 4 KW",null,null,null,null,null,null,null,null,"XENON 4 KW","XENON 4 KW",null,null,null,{"$f":"P1883*B1883","v":0}]
[0,null,0]
[0,{"$f":"IF(SUM(B1886:B1903)>0,\"Marq\",0)","v":0},"TUBES FLUO",null,"J","A","B","V","2900°",null,null,"TUBES FLUO","TUBES FLUO"]
[0,null,"TUBES 2,40M","KINO FLO",null,null,null,null,null,null,null,"TUBES 2,40M","8 FT KINO TUBE",null,null,null,{"$f":"P1886*B1886","v":0}]
[0,null,"TUBES 1,80M","KINO FLO",null,null,null,null,null,null,null,"TUBES 1,80M","6 FT KINO TUBE",null,null,null,0]
[0,null,"TUBES 1,20M ","KINO FLO",null,null,null,null,null,null,null,"TUBES 1,20M ","4 FT KINO TUBE",null,null,null,0]
[0,null,"TUBES 0,60 M","KINO FLO",null,null,null,null,null,null,null,"TUBES 0,60 M","2 FT KINO TUBE",null,null,0.4,0]
[0,null,"TUBES 0,40 M ","KINO FLO",null,null,null,null,null,null,null,"TUBES 0,40 M ","18'' KINO TUBE",null,null,0.3,0]
[0,null,"DIVA ","KINO FLO",null,null,null,null,null,null,null,"DIVA ","DIVA TUBE",null,null,null,0]
[0,null,"BAR FLY","KINO FLO",null,null,null,null,null,null,null,"BAR FLY","BAR FLY TUBE",null,null,null,0]
[0,null,"VISTA","KINO FLO",null,null,null,null,null,null,null,"VISTA","VISTA TUBE",null,null,null,0]
[0,null,"PARABEAM","KINO FLO",null,null,null,null,null,null,null,"PARABEAM","PARABEAM TUBE",null,null,null,0]
[0,null,{"$f":"IF($I$1=\"x\",M1895,L1895)","v":0},null,null,null,null,null,null,null,null,null,null,null,null,0.1,0]
[0,null,"TUBES 36/32 OSRAM","OSRAM",null,null,null,null,null,null,null,"TUBES 36/32 OSRAM","TUBES 36/32 OSRAM",null,null,0.1,0]
[0,null,"TUBES 36/72","OSRAM",null,null,null,null,null,null,null,"TUBES 36/72","TUBES 36/72",null,null,0.1,0]
[0,null,"TUBES 18/32","OSRAM",null,null,null,null,null,null,null,"TUBES 18/32","TUBES 18/32",null,null,0.1,0]
[0,null,"TUBES 18/72","OSRAM",null,null,null,null,null,null,null,"TUBES 18/72","TUBES 18/72",null,null,0.1,0]
[0,null,"TUBES DULUX 18 L 12","OSRAM",null,null,null,null,null,null,null,"TUBES DULUX 18 L 12","TUBES DULUX 18 L 12",null,null,0.1,0]
[0,null,"TUBES DULUX 18 L 32","OSRAM",null,null,null,null,null,null,null,"TUBES DULUX 18 L 32","TUBES DULUX 18 L 32",null,null,0.1,0]
[0,null,"TUBES DULUX 36 L 12","OSRAM",null,null,null,null,null,null,null,"TUBES DULUX 36 L 12","TUBES DULUX 36 L 12",null,null,0.1,0]
[0,null,"TUBES DULUX 36 L 32","OSRAM",null,null,null,null,null,null,null,"TUBES DULUX 36 L 32","TUBES DULUX 36 L 32",null,null,0.1,0]
[0,{"$f":"IF(SUM(B1906:B1948)>0,\"Marq\",0)","v":0},"LAMPES 1/4Z",null,null,null,null,null,null,null,null,"LAMPES 1/4Z","BULBS 1/4Z"]
[0,null,"SIMPLE CULOT","Voltage","Culot",null,null,null,null,null,null,"SIMPLE CULOT"]
[0,null,"CP 27 POUR 20 KW","240v/85A","simple",null,null,null,null,null,null,"CP 27 POUR 20 KW","CP 27 FOR 20 KW",null,null,null,{"$f":"P1906*B1906","v":0}]
[0,null,"CP ? POUR 12KW","240v/50A","simple",null,null,null,null,null,null,"CP ? POUR 12KW",null,null,null,null,0]
[0,null,"CP 83 10KW","240v/42A","simple",null,null,null,null,null,null,"CP 83 10KW","CP 83 10KW",null,null,null,0]
[0,null,"CP 85 5kw","240v/21A","simple",null,null,null,null,null,null,"CP 85 5kw",null,null,null,null,0]
[0,null,"CP 32 2500-5000W","240v/21A","simple",null,null,null,null,null,null,"CP 32 2500-5000W","CP 32 2500-5000W",null,null,null,0]
[0,null,"CP 41 2kw","240v/8,5A","simple",null,null,null,null,null,null,"CP 41 2kw","CP 41",null,null,null,0]
[0,null,"CP 40 1000W","240v/4,2A","simple",null,null,null,null,null,null,"CP 40 1000W","CP 40 1000W",null,null,null,0]
[0,null,"CP 30 1250-2500W","240v/10,5A","simple",null,null,null,null,null,null,"CP 30 1250-2500W","CP 30 1250-2500W",null,null,null,0]
[0,null,"CP 29","240V","simple",null,null,null,null,null,null,"CP 29","CP 29",null,null,null,0]
[0,null,"CP 89 650w","240v/2,7A","simple",null,null,null,null,null,null,"CP 89 650w","CP 89 650w",null,null,null,0]
[0,null,"CP 39","240V","simple",null,null,null,null,null,null,"CP 39","CP 39",null,null,null,0]
[0,null,"DYR 650 W","240v/2,7A","simple",null,null,null,null,null,null,"DYR 650 W","DYR 650 W",null,null,null,0]
[0,null,"CP 82 500WMizard","240v/2,1A","simple",null,null,null,null,null,null,"CP 82 500WMizard","CP 82 500WMizard",null,null,null,0]
[0,null,"CP 81 300W Mizard","240v/1,25A","simple",null,null,null,null,null,null,"CP 81 300W Mizard","CP 81 300W Mizard",null,null,null,0]
[0,null,"LT 150 W","240v/0,6A","simple",null,null,null,null,null,null,"LT 150 W","LT 150 W",null,null,null,0]
[0,null,0,null,null,null,null,null,null,null,null,null,null,null,null,null,0]
[0,null,null,null,null,null,null,null,null,null,null,null,null,null,null,null,0]
[0,null,{"$f":"IF($I$1=\"x\",M1923,L1923)","v":"CRAYON"},"Voltage","Culot",null,null,null,null,null,null,"CRAYON"]
[0,null,"FEX Blonde 2KW","240v/8,5A",null,null,null,null,null,null,null,"FEX Blonde 2KW","FEX Blonde 2KW",null,null,null,{"$f":"P1924*B1924","v":0}]
[0,null,"DXX Mandarine 800W",null,null,null,null,null,null,null,null,"DXX Mandarine 800W","DXX ReadHead 800W",null,null,null,0]
[0,null,"AMBIANCE 10 KW",null,null,null,null,null,null,null,null,"AMBIANCE 10 KW","AMBIANCE 10 KW",null,null,null,0]
[0,null,"AMBIANCE 5 KW",null,null,null,null,null,null,null,null,"AMBIANCE 5 KW","AMBIANCE 5 KW",null,null,null,0]
[0,null,"AMBIANCE 2 KW","240v/8,5A",null,null,null,null,null,null,null,"AMBIANCE 2 KW","AMBIANCE 2 KW",null,null,null,0]
[0,null,"P 2/27 2kw ","240v/8,5A",null,null,null,null,null,null,null,"P 2/27 2kw ",null,null,null,null,0]
[0,null,"P2/12 1250 w",null,null,null,null,null,null,null,null,"P2/12 1250 w","P2/12 1250 w",null,null,null,0]
[0,null,"P 2/20 1000W",null,null,null,null,null,null,null,null,"P 2/20 1000W","P 2/20",null,null,null,0]
[0,null,"P 2/11 800 W",null,null,null,null,null,null,null,null,"P 2/11 800 W","P 2/11 800 W",null,null,null,0]
[0,null,"P 2/10",null,null,null,null,null,null,null,null,"P 2/10","P 2/10",null,null,null,0]
[0,null,0,null,null,null,null,null,null,null,null,null,null,null,null,null,0]
[{"$f":"IF(B1935>0,\"x\",0)","v":0},null,"FEP 1000 W",null,null,null,null,null,null,null,null,"FEP 1000 W","FEP 1000 W",null,null,null,0]
[0,null,"IDE",null,null,null,null,null,null,null,null,"IDE"]
[0,null,0,null,null,null,null,null,null,null,null,null,null,null,null,null,{"$f":"P1937*B1937","v":0}]
[0,null,"IDE 2 KW E40",null,null,null,null,null,null,null,null,"IDE 2 KW E40","IDE 2 KW",null,null,null,0]
[0,null,"IDE 1000 W E40",null,null,null,null,null,null,null,null,"IDE 1000 W E40","IDE 1000 W",null,null,null,0]
[0,null,"IDE 500W E40",null,null,null,null,null,null,null,null,"IDE 500W E40",null,null,null,null,0]
[0,null,0,null,null,null,null,null,null,null,null,null,null,null,null,null,0]
[0,null,"SVOBODA 24V 250W E40",null,null,null,null,null,null,null,null,"SVOBODA 24V 250W E40","SVOBODA",null,null,null,0]
[0,null,0,null,null,null,null,null,null,null,null,null,null,null,null,null,0]
[0,null,"10-1CTN Flood 500W Jour",null,"E27",null,null,null,null,null,null,"10-1CTN Flood 500W Jour","10-1CTN Flood 500W Day",null,null,null,0]
[0,null,"10-1CTN Flood 500W Artif",null,"E27",null,null,null,null,null,null,"10-1CTN Flood 500W Artif","10-1CTN Flood 500W Artif",null,null,null,0]
[0,null,0,null,null,null,null,null,null,null,null,null,null,null,null,null,0]
[0,null,0,null,null,null,null,null,null,null,null,null,null,null,null,null,0]
[0,null,0]
[0,{"$f":"IF(SUM(B1950:B1976)>0,\"Marq\",0)","v":0},"LAMPES PAR","Voltage","Culot",null,null,null,null,null,null,"LAMPES PAR","BULBS PAR"]
[0,null,"RFL",null,null,null,null,null,null,null,null,"RFL","RFL",null,null,null,{"$f":"P1950*B1950","v":0}]
[0,null,"DWE",null,null,null,null,null,null,null,null,"DWE","DWE",null,null,0.76,0]
[0,null,"PAR 64",null,null,null,null,null,null,null,null,"PAR 64",null,null,null,null,0]
[0,null,"CP 60 1000W VNSP",null,null,null,null,null,null,null,null,"CP 60 1000W VNSP","CP 60 1000W 220V VNSP",null,null,0.76,0]
[0,null,"CP 61 1000W NSP",null,null,null,null,null,null,null,null,"CP 61 1000W NSP","CP 61 1000W 220V NSP",null,null,0.76,0]
[0,null,{"$f":"IF($I$1=\"x\",M1955,L1955)","v":"CP 62 1000W MEDIUM"},null,null,null,null,null,null,null,null,"CP 62 1000W MEDIUM","CP 62 1000W 220V MEDIUM",null,null,0.76,0]
[0,null,"CP 90 1000W WIDE",null,null,null,null,null,null,null,null,"CP 90 1000W WIDE","CP90 1000W 220V WIDE FLOOD",null,null,null,0]
[0,null,"CP 95 1000W NID D'ABEILLE",null,null,null,null,null,null,null,null,"CP 95 1000W NID D'ABEILLE","CP 95 1000W 220V VERY WIDE FLOOD",null,null,null,0]
[0,null,"CP 86 500W VNSP",null,null,null,null,null,null,null,null,"CP 86 500W VNSP","CP 86 500W VNSP",null,null,null,0]
[0,null,"CP87 500W NSP",null,null,null,null,null,null,null,null,"CP87 500W NSP","CP87 500W NSP",null,null,null,0]
[0,null,"CP88 500W MFL",null,null,null,null,null,null,null,null,"CP88 500W MFL","CP88 500W MFL",null,null,null,0]
[0,null,0,null,null,null,null,null,null,null,null,null,null,null,null,null,0]
[0,null,0,null,null,null,null,null,null,null,null,null,null,null,null,null,0]
[0,null,"ACL 250W",null,null,null,null,null,null,null,null,"ACL 250W","ACL 250W",null,null,null,0]
[0,null,0,null,null,null,null,null,null,null,null,null,null,null,null,null,0]
[0,null,"PAR 56",null,null,null,null,null,null,null,null,"PAR 56","PAR 56",null,null,null,0]
[0,null,"PAR 36",null,null,null,null,null,null,null,null,"PAR 36","PAR 36",null,null,null,0]
[0,null,0,null,null,null,null,null,null,null,null,null,null,null,null,null,0]
[0,null,"PAR 30 100W/10°",null,null,null,null,null,null,null,null,"PAR 30 100W/10°","PAR 30 100W/10°",null,null,null,0]
[0,null,"PAR 30 75W/10°",null,null,null,null,null,null,null,null,"PAR 30 75W/10°","PAR 30 75W/10°",null,null,null,0]
[0,null,"PAR 30 100W/30°",null,null,null,null,null,null,null,null,"PAR 30 100W/30°","PAR 30 100W/30°",null,null,null,0]
[0,null,"PAR 30 75W/30°",null,null,null,null,null,null,null,null,"PAR 30 75W/30°","PAR 30 75W/30°",null,null,null,0]
[0,null,"PAR 20 50W/10°",null,null,null,null,null,null,null,null,"PAR 20 50W/10°","PAR 20 50W/10°",null,null,null,0]
[0,null,"PAR 20 50W/25°",null,null,null,null,null,null,null,null,"PAR 20 50W/25°","PAR 20 50W/25°",null,null,null,0]
[0,null,"PAR 16 50W",null,null,null,null,null,null,null,null,"PAR 16 50W","PAR 16 50W",null,null,null,0]
[0,null,"PAR 16 35W",null,null,null,null,null,null,null,null,"PAR 16 35W","PAR 16 35W",null,null,null,0]
[0,null,0,null,null,null,null,null,null,null,null,null,null,null,null,null,0]
[0,{"$f":"IF(SUM(B1978:B1985)>0,\"Marq\",0)","v":0},"LAMPES DECOUPE","Voltage","Culot",null,null,null,null,null,null,"LAMPES DECOUPE","BULBS SILHOUETTE"]
[0,null,"IPR 12V 100W",null,null,null,null,null,null,null,null,"IPR 12V 100W","IPR 12V 100W",null,null,null,{"$f":"P1978*B1978","v":0}]
[0,null,"IPR 24V 150W",null,null,null,null,null,null,null,null,"IPR 24V 150W","IPR 24V 150W",null,null,null,0]
[0,null,"HPL 575 W",null,null,null,null,null,null,null,null,"HPL 575 W","HPL 575 W",null,null,null,0]
[0,null,"T11 1000W",null,null,null,null,null,null,null,null,"T11 1000W","T11 1000W",null,null,null,0]
[0,null,"CP 43 2 KW",null,null,null,null,null,null,null,null,"CP 43 2 KW","CP 43 2 KW",null,null,null,0]
[0,null,"EPX 90W 14,5V",null,null,null,null,null,null,null,null,"EPX 90W 14,5V","EPX 90W 14,5V",null,null,null,0]
[0,null,"LAMPE 12V 300W ETANCHE",null,null,null,null,null,null,null,null,"LAMPE 12V 300W ETANCHE","LAMPE 12V 300W WATERPROFF",null,null,null,0]
[0,null,"FBV 250W 30V",null,null,null,null,null,null,null,null,"FBV 250W 30V","FBV 250W 30V",null,null,null,0]
[]
[null,null,null,"Faire un don =>"]
[null,null,null,"version 14 Aout 2022"]